{"text_format":"1","workbook":"xlsx","n_sheets":44,"sheets":["modHyperlink","Инструкция","Лог обновления","Титульный","Стр 1-3","Стр 4-6","Стр 7-9","Стр 10-12","Стр 13","Стр 14","Комментарии","Проверка","AllSheetsInThisWorkbook","modfrmCheckUpdates","modUpdTemplMain","et_union","TEHSHEET","REESTR_ORG","REESTR_FILTERED","REESTR_MO","modChange","modPROV","modTitleSheetHeaders","modServiceModule","modCommandButton","modReestr","modClassifierValidate","modInfo","modfrmReestr","modfrmDateChoose","modDblClick","Паспорт","modRegionSelectSub","modThisWorkbook","modReestrMO","modSheetMain01","modSheetMain02","modSheetMain03","modSheetMain04","modSheetMain05","modSheetMain06","modSheetMain07","modSheetMain08","modSheetMain09"],"not_rendered":{"charts":0,"images":19,"macros":1,"external_links":0,"defined_names":277,"comments":1,"pivot_tables":0},"unopened":[],"bounds":{"document_bytes":16777216,"sheet_cells":100000,"rows_first":2000,"rows_last":500,"rows_between":2000,"halvings":0,"cell_chars":16384,"cell_head_chars":4096},"cells_cut":0,"cells_raw":0,"read":"whole","date_system":"1900"}

{"sheet":"modHyperlink","index":0,"n_rows":0,"n_cols":0,"rows_kept":0,"cut":false,"hidden":true,"merged":[]}

{"sheet":"Инструкция","index":1,"n_rows":103,"n_cols":27,"rows_kept":103,"cut":false,"hidden":false,"merged":[[98,4,98,23],[100,5,100,18],[102,5,102,23],[82,7,82,23],[79,6,79,15],[79,16,79,23],[81,4,81,6],[81,7,81,23],[83,4,83,6],[77,6,77,15],[77,16,77,23],[78,4,78,5],[78,6,78,15],[78,16,78,23],[84,7,84,23],[83,7,83,23],[79,4,79,5],[82,4,82,6],[77,4,77,5],[75,4,75,5],[75,6,75,15],[75,16,75,23],[76,4,76,5],[76,6,76,15],[76,16,76,23],[73,4,73,5],[73,6,73,15],[73,16,73,23],[74,4,74,5],[74,6,74,15],[74,16,74,23],[59,7,59,23],[60,7,60,23],[69,4,69,23],[71,4,71,5],[71,6,71,15],[71,16,71,23],[34,4,38,23],[39,4,39,23],[72,4,72,5],[72,6,72,15],[72,16,72,23],[57,4,57,6],[57,7,57,23],[58,4,58,6],[58,7,58,23],[59,4,59,6],[40,4,44,23],[45,4,56,23],[1,1,1,6],[2,1,2,2],[4,1,4,24],[6,4,18,23],[20,5,20,12],[20,15,20,23],[21,5,21,12],[21,15,21,23]]}
[null,null,null,null,null,null,null,null,null,null,null,null,null,null,null,null,null,null,null,null,null,null,null,null,null,null," (требуется обновление)"]
[null,{"$f":"\"Код шаблона: \" & GetCode()","v":"Код шаблона: FORMA5.BH"}]
[null,{"$f":"\"Версия \" & GetVersion()","v":"Версия 1.1"}]
[]
[null,"Приложение к бухгалтерскому балансу"]
[]
[null,null,null,null,"• На рабочем месте должен быть установлен MS Office 2003 SP3, 2007 SP3, 2010 с полной версией MS Excel\n\n• Макросы во время работы должны быть включены (!)\n\n• Для корректной работы отчёта требуется выбрать низкий уровень безопасности\n(В меню MS Excel 2003: Сервис | Макрос | Безопасность | выбрать пункт «Низкая безопасность» | OK)\n(В меню MS Excel 2007/2010: Параметры Excel | Центр управления безопасностью | Параметры центра управления безопасностью | Параметры макросов | Включить все макросы | ОК)\n\n• Если Вы работаете в табличном процессоре MS Excel 2007 и выше, то можете использовать для работы формат XLSM (Книга Excel с поддержкой макросов). При работе в формате XLSM заметно быстрее происходит сохранение файла, а также уменьшается размер по сравнению с форматом XLS\n\n• Не рекомендуется снимать защиту с листов и каким-либо образом модифицировать защищаемые формулы и расчётные поля, в противном случае, отчёт будет отклонён системой\n\n• При сохранении не следует выбирать формат XLSX (Книга Excel), так как в указанном формате макросы, необходимы для работы отчёта, безвозвратно удаляются"]
[]
[]
[]
[]
[]
[]
[]
[]
[]
[]
[]
[]
[]
[null,null,null,null,"A"," - предназначенные для заполнения",null,null,null,null,null,null,null,null,"A"," - обязательные для заполнения поля"]
[null,null,null,null,"A"," - с формулами и константами",null,null,null,null,null,null,null,null,"A"," - незаполняемые поля"]
[]
[]
[]
[]
[]
[]
[]
[]
[]
[]
[]
[]
[null,null,null,null,"Если в предложенном Вам списке необходимая организация, МР/МО отсутствуют, обновите реестры с помощью кнопок\n\nВ результате синхронизации с базой данных список организаций (МР/МО) будет заменён актуальным (механизм синхронизации требует подключения к сети Интернет и основан на использовании протокола HTTPS (TCP порт 443))\n\nЕсли после обновления Вам не удалось найти необходимую организацию в списке, обратитесь к ответственному за поддержание реестра Вашего региона. Информация о региональных органах регулирования доступна по ссылке:"]
[]
[]
[]
[]
[null,null,null,null,"http://www.fstrf.ru/regions/region/showlist"]
[null,null,null,null,"• Работа с отчётом начинается с выбора наименования субъекта Российской Федерации\n\n• После выбора субъекта производится обновление реестра муниципальных образований, также за одно нажатие можно обновить реестры организаций по всем сферам деятельности\n\n• Отображение и скрытие группы листов, а также автозаполнение листов, производится с помощью кнопок, либо при нажатии на ОКТМО, либо номер муниципального образования, все действия, манипуляции, вызов форм ввода на листах осуществляются двойным щелчком мыши"]
[]
[]
[]
[]
[null,null,null,null,"• При сохранении шаблона осуществляется проверка корректности данных, в том числе на наличие значений в ячейках, обязательных для заполнения\n\n• Если какая-то ячейка не удовлетворяет условию проверки, на лист «Проверка» добавляется гиперссылка на данную ячейку и указывается причина ошибки\n\n• В колонке «Статус» для каждого сообщения возможны 2 значения: ошибка и предупреждение\n\n• При наличии сообщений со статусом «Ошибка» шаблон будет отклонён системой и не будет загружен в хранилище данных, сообщения со статусом «Предупреждение» носят информационный характер, и такой шаблон будет принят системой"]
[]
[]
[]
[]
[]
[]
[]
[]
[]
[]
[]
[null,null,null,null,"Web-сайт:",null,null,"http://support.eias.ru/index.php?a=add&catid=5"]
[null,null,null,null,"Дистрибутивы:",null,null,"http://eias.ru/?page=show_distrs"]
[null,null,null,null,null,null,null,"для устранения ошибок (например, \"Compile error in hidden module\")"]
[]
[]
[]
[]
[]
[]
[]
[]
[]
[null,null,null,null,"Список сокращений"]
[]
[null,null,null,null,"ОКПО",null,"Общероссийский классификатор предприятий и организаций"]
[null,null,null,null,"ОКВЭД",null,"Общероссийский классификатор видов экономической деятельности",null,null,null,null,null,null,null,null,null,"http://www.gmcgks.ru/index.php?id=21053"]
[null,null,null,null,"ОКАТО",null,"Общероссийский классификатор объектов административно-территориального деления",null,null,null,null,null,null,null,null,null,"http://www.gmcgks.ru/index.php?id=21046"]
[null,null,null,null,"ОКОГУ",null,"Общероссийский классификатор органов государственной власти и управления",null,null,null,null,null,null,null,null,null,"http://www.gmcgks.ru/index.php?id=21036"]
[null,null,null,null,"ОКОПФ",null,"Общероссийский классификатор организационно-правовых форм",null,null,null,null,null,null,null,null,null,"http://www.gmcgks.ru/index.php?id=21052"]
[null,null,null,null,"ОКФС",null,"Общероссийский классификатор форм собственности",null,null,null,null,null,null,null,null,null,"http://www.gmcgks.ru/index.php?id=21051"]
[null,null,null,null,"ОКУД",null,"Общероссийский классификатор управленческой документации",null,null,null,null,null,null,null,null,null,"http://www.gmcgks.ru/index.php?id=21039"]
[null,null,null,null,"ОКЕИ",null,"Общероссийский классификатор единиц измерения",null,null,null,null,null,null,null,null,null,"http://www.gmcgks.ru/index.php?id=21042"]
[null,null,null,null,"ОКТМО",null,"Общероссийский классификатор территорий муниципальных образований",null,null,null,null,null,null,null,null,null,"http://www.gks.ru/metod/classifiers.html"]
[]
[]
[null,null,null,null,"Web-сайт:",null,null,"http://support.eias.ru/index.php?a=add&catid=5"]
[]
[]
[]
[]
[]
[]
[]
[]
[]
[]
[]
[]
[]
[]
[]
[null,null,null,null,"При наличии подключения к Интернет, можно автоматически проверять наличие доступных обновлений. Выберите способ оповещения о наличии обновлений для отчёта:"]
[]
[null,null,null,null,null,"проверять доступные обновления (рекомендуется)",null,null,null,null,null,null,null,null,null,null,null,null,null,null,null,null,null,null,null,null,"y"]
[]
[null,null,null,null,null,"никогда не проверять наличие обновлений (не рекомендуется)"]

{"sheet":"Лог обновления","index":2,"n_rows":44,"n_cols":4,"rows_kept":44,"cut":false,"hidden":true,"merged":[]}
[]
["3/17/2012 12:12:41 AM","Дата/Время","Сообщение","Статус"]
[null,"4/1/2014  9:48:47 AM","Проверка доступных обновлений...","Информация"]
[null,"4/1/2014  9:48:50 AM","Доступно обновление до версии 1.1","Информация"]
[null,"4/1/2014  9:48:50 AM","Описание изменений: Версия 1.1\n1. Добавлена возможность указания перехода долгосрочной дебиторской задолженности в краткосрочную на листе \"Стр 10-12\" п/п 5.1.2 в графе 12","Информация"]
[null,"4/1/2014  9:48:50 AM","Размер файла обновления: 295424 байт","Информация"]
[null,"4/1/2014  9:48:53 AM","Обновление отменено пользователем","Предупреждение"]
[null,"4/1/2014  9:51:53 AM","Проверка доступных обновлений...","Информация"]
[null,"4/1/2014  9:51:56 AM","Доступно обновление до версии 1.1","Информация"]
[null,"4/1/2014  9:51:56 AM","Описание изменений: Версия 1.1\n1. Добавлена возможность указания перехода долгосрочной дебиторской задолженности в краткосрочную на листе \"Стр 10-12\" п/п 5.1.2 в графе 12","Информация"]
[null,"4/1/2014  9:51:57 AM","Размер файла обновления: 295424 байт","Информация"]
[null,"4/1/2014  9:52:01 AM","Подготовка к обновлению...","Информация"]
[null,"4/1/2014  9:52:07 AM","Сохранение файла резервной копии: C:\\Documents and Settings\\Admin\\Рабочий стол\\Бухгалтерсий отчет 2013\\FORMA5.BH.BKP..xls","Информация"]
[null,"4/1/2014  9:52:18 AM","Резервная копия создана: C:\\Documents and Settings\\Admin\\Рабочий стол\\Бухгалтерсий отчет 2013\\FORMA5.BH.BKP..xls","Информация"]
[null,"4/1/2014  9:52:18 AM","Создание книги для установки обновлений...","Информация"]
[null,"4/1/2014  9:52:38 AM","Файл обновления загружен: C:\\Documents and Settings\\Admin\\Рабочий стол\\Бухгалтерсий отчет 2013\\UPDATE.FORMA5.BH.TO.1.1.33.xls","Информация"]
[null,"4/1/2014  9:52:52 AM","Обновление завершилось удачно! Шаблон 'FORMA5.BH.xls' сохранен под именем 'FORMA5.BH(v1.1).xls'","Информация"]
[null,"5/7/2015  4:51:20 PM","Проверка доступных обновлений...","Информация"]
[null,"5/7/2015  4:51:24 PM","Доступно обновление до версии 1.2","Информация"]
[null,"5/7/2015  4:51:24 PM","Описание изменений: Версия 1.2\n1. Добавлена возможность указания отрицательных значений (используя скобки) на листе \"Стр 10-12\" п/п 5.1.2 в графе 12\n2. Добавлена возможность указания перехода долгосрочной дебиторской задолженности в краткосрочную на листе \"Стр 10-12\" п/п 5.3.2 в графе 12","Информация"]
[null,"5/7/2015  4:51:24 PM","Размер файла обновления: 334848 байт","Информация"]
[null,"5/7/2015  4:52:05 PM","Подготовка к обновлению...","Информация"]
[null,"5/7/2015  4:52:19 PM","Сохранение файла резервной копии: \\\\ВЫСКУБОВА-ПК\\Users\\Выскубова\\Desktop\\Документы ТВР\\ТВР 2014\\Бухгалтерский отчет 2014 ООО ТВР\\1.BKP.xls","Информация"]
[null,"5/18/2015  10:06:12 AM","Проверка доступных обновлений...","Информация"]
[null,"5/18/2015  10:06:15 AM","Доступно обновление до версии 1.2","Информация"]
[null,"5/18/2015  10:06:15 AM","Описание изменений: Версия 1.2\n1. Добавлена возможность указания отрицательных значений (используя скобки) на листе \"Стр 10-12\" п/п 5.1.2 в графе 12\n2. Добавлена возможность указания перехода долгосрочной дебиторской задолженности в краткосрочную на листе \"Стр 10-12\" п/п 5.3.2 в графе 12","Информация"]
[null,"5/18/2015  10:06:15 AM","Размер файла обновления: 334848 байт","Информация"]
[null,"5/18/2015  10:06:29 AM","Обновление отменено пользователем","Предупреждение"]
[null,"6/18/2015  1:52:24 PM","Проверка доступных обновлений...","Информация"]
[null,"6/18/2015  1:52:25 PM","Доступно обновление до версии 1.2","Информация"]
[null,"6/18/2015  1:52:25 PM","Описание изменений: Версия 1.2\n1. Добавлена возможность указания отрицательных значений (используя скобки) на листе \"Стр 10-12\" п/п 5.1.2 в графе 12\n2. Добавлена возможность указания перехода долгосрочной дебиторской задолженности в краткосрочную на листе \"Стр 10-12\" п/п 5.3.2 в графе 12","Информация"]
[null,"6/18/2015  1:52:25 PM","Размер файла обновления: 334848 байт","Информация"]
[null,"6/18/2015  1:52:32 PM","Подготовка к обновлению...","Информация"]
[null,"6/18/2015  1:52:35 PM","Создание резервной копии отменено, обновление прервано","Предупреждение"]
[null,"6/18/2015  1:53:00 PM","Проверка доступных обновлений...","Информация"]
[null,"6/18/2015  1:53:01 PM","Доступно обновление до версии 1.2","Информация"]
[null,"6/18/2015  1:53:01 PM","Описание изменений: Версия 1.2\n1. Добавлена возможность указания отрицательных значений (используя скобки) на листе \"Стр 10-12\" п/п 5.1.2 в графе 12\n2. Добавлена возможность указания перехода долгосрочной дебиторской задолженности в краткосрочную на листе \"Стр 10-12\" п/п 5.3.2 в графе 12","Информация"]
[null,"6/18/2015  1:53:01 PM","Размер файла обновления: 334848 байт","Информация"]
[null,"6/18/2015  1:53:13 PM","Обновление отменено пользователем","Предупреждение"]
[null,"6/18/2015  1:57:40 PM","Проверка доступных обновлений...","Информация"]
[null,"6/18/2015  1:57:41 PM","Доступно обновление до версии 1.2","Информация"]
[null,"6/18/2015  1:57:41 PM","Описание изменений: Версия 1.2\n1. Добавлена возможность указания отрицательных значений (используя скобки) на листе \"Стр 10-12\" п/п 5.1.2 в графе 12\n2. Добавлена возможность указания перехода долгосрочной дебиторской задолженности в краткосрочную на листе \"Стр 10-12\" п/п 5.3.2 в графе 12","Информация"]
[null,"6/18/2015  1:57:41 PM","Размер файла обновления: 334848 байт","Информация"]
[null,"6/18/2015  1:57:45 PM","Обновление отменено пользователем","Предупреждение"]

{"sheet":"Титульный","index":3,"n_rows":52,"n_cols":10,"rows_kept":52,"cut":false,"hidden":false,"merged":[[55,2,55,9],[43,3,43,5],[44,3,44,5],[45,3,45,5],[47,3,47,5],[48,3,48,5],[49,3,49,5],[50,3,50,5],[51,3,51,5],[39,3,39,5],[40,3,40,5],[41,3,41,5],[53,3,53,5],[29,10,31,10],[31,3,31,5],[33,3,33,5],[37,3,37,5],[35,3,35,5],[36,3,36,5],[29,3,29,5],[20,3,20,5],[21,3,21,5],[25,8,26,9],[22,3,22,5],[23,3,23,5],[23,8,23,9],[25,3,25,5],[21,8,21,9],[13,3,13,5],[15,3,15,5],[17,8,17,9],[18,3,18,5],[18,8,18,9],[28,3,28,5],[19,3,19,5],[19,8,19,9],[20,7,20,9],[12,3,12,5],[3,2,3,9],[5,1,5,10],[8,3,8,5],[8,7,11,9],[10,3,10,5],[11,3,11,5]]}
[]
[]
[null,null,null,null,null,null,null,null,null,{"$f":"version","v":"Версия 1.1"}]
[null,null,"Приложение к бухгалтерскому балансу"]
[]
[]
[]
[]
[null,null,"Субъект РФ","Иркутская область",null,null,null,"Приложение\nк Приказу Минфина РФ\nот 02.07.2010 № 66н\n(в ред. Приказов Минфина России от 05.10.2011 №124н, \nот 17.08.2012 №113н, от 04.12.2012 №154н)"]
[]
[null,null,null,"Отчётный период"]
[null,null,"Год",2013]
[]
[null,null,"Отчётная дата","31.12.2014"]
[]
[null,null,"Признак филиала","нет"]
[]
[null,null,null,null,null,null,null,"Форма по ОКУД","0710005"]
[null,null,null,null,null,null,null,"Дата (год,месяц,число)","31.12.2014"]
[null,null,"Организация","ООО \"ТеплоВодоРесурс\"",null,null,null,"Код* по ОКПО","30059700"]
[null,null,"Наименование филиала:"]
[null,null,"ИНН","3802013391",null,null,null,"Код* по ОКВЭД","40.30.14"]
[null,null,"КПП","380201001",null,null,null,"Код* по ОКОПФ/ОКФС ","65","14"]
[null,null,"Вид деятельности","производство пара и горячей воды (тепловой энергии) котельными",null,null,null,"Код* по ОКЕИ","384"]
[null,null,"Организационно-правовая форма/форма собственности","общество с ограниченной ответственностью","/","муниципальная"]
[null,null,"Единица измерения","тыс.руб.",null,null,null,null,"* Расшифровки всех сокращений и ссылки приведены на листе \"Инструкция\""]
[null,null,null,null,null," "]
[]
[null,null,null,"Дата последнего обновления реестра МР/МО: 01.04.2014 9:49:32"]
[null,null,"Муниципальный район","Бодайбинский муниципальный район"]
[]
[null,null,"Муниципальное образование","Бодайбинский муниципальный район"]
[]
[null,null,"ОКТМО","25602000"]
[]
[null,null,null,"Адрес организации"]
[null,null,"Юридический адрес","666902, Иркутская область, г.Бодайбо, ул.П.Поручикова, 41 А"]
[null,null,"Почтовый адрес","666902, Иркутская область, г.Бодайбо, ул.П.Поручикова, 41 А"]
[]
[null,null,null,"Руководитель"]
[null,null,"Фамилия, имя, отчество","Матвеев Петр Ярославович"]
[null,null,"(код) номер телефона","(39561) 5-64-88"]
[]
[null,null,null,"Главный бухгалтер"]
[null,null,"Фамилия, имя, отчество","Глущенко Ирина Александровна"]
[null,null,"(код) номер телефона","(39561) 5-62-80"]
[]
[null,null,null,"Должностное лицо,\nответственное за составление формы"]
[null,null,"Фамилия, имя, отчество","Глущенко Ирина Александровна"]
[null,null,"Должность","Главный бухгалтер"]
[null,null,"(код) номер телефона","(39561) 5-62-80"]
[null,null,"e-mail","umpts@irmail.ru"]

{"sheet":"Стр 1-3","index":4,"n_rows":77,"n_cols":43,"rows_kept":77,"cut":false,"hidden":false,"merged":[[7,4,7,40],[12,4,14,4],[12,5,14,5],[12,6,14,6],[12,7,14,7],[13,14,14,16],[13,17,13,22],[13,23,14,25],[14,29,14,31],[14,32,14,34],[13,35,14,37],[15,11,15,13],[15,17,15,19],[15,23,15,25],[13,38,14,40],[9,4,9,40],[12,14,12,34],[12,35,12,40],[13,8,14,10],[14,17,14,19],[13,11,14,13],[12,8,12,13],[14,20,14,22],[13,26,14,28],[13,29,13,34],[25,4,25,16],[28,5,28,6],[28,8,28,10],[28,11,28,13],[28,14,28,16],[15,38,15,40],[16,4,17,4],[16,5,17,5],[18,4,19,4],[18,5,19,5],[29,5,29,6],[38,14,38,16],[38,8,38,10],[38,11,38,13],[38,5,38,6],[29,11,29,13],[30,5,30,6],[48,14,48,25],[48,26,48,31],[45,4,45,31],[31,5,31,6],[40,5,40,6],[41,5,41,6],[48,8,48,13],[39,5,39,6],[39,11,39,13],[35,4,35,16],[49,29,50,31],[48,4,50,4],[48,5,50,5],[48,6,50,6],[48,7,50,7],[49,11,50,13],[49,14,50,16],[49,17,49,22],[49,23,50,25],[49,26,50,28],[52,4,53,4],[52,5,53,5],[51,23,51,25],[49,8,50,10],[50,17,50,19],[50,20,50,22],[51,11,51,13],[51,17,51,19],[51,29,51,31],[54,4,55,4],[54,5,55,5],[62,8,63,10],[62,11,62,19],[62,4,63,4],[62,5,63,5],[62,6,63,6],[62,7,63,7],[59,4,59,22],[64,14,64,16],[64,17,64,19],[65,4,66,4],[65,5,66,5],[62,20,63,22],[63,11,63,13],[63,14,63,16],[63,17,63,19],[72,4,73,4],[72,5,73,5],[67,4,68,4],[67,5,68,5],[70,4,71,4],[70,5,71,5]]}
[]
[]
[]
[]
[]
[]
[null,null,null,null,null,null,null,null,null,null,null,null,null,null,null,null,null,null,null,null,null,null,null,null,null,null,null,null,null,null,null,null,null,null,null,null,null,null,null,null,"Форма 0710005 с. 1-3"]
[null,null,null,null,"1. Нематериальные активы и расходы на научно-исследовательские, опытно-конструкторские и технологические работы (НИОКР)"]
[]
[null,null,null,null,"1.1. Наличие и движение нематериальных активов"]
[]
[null,null,null,null,null,null,null,null,null,null,null,null,null,null,null,null,null,null,null,null,null,null,null,null,null,null,null,null,null,null,null,null,null,null,null,null,null,null,null,{"$f":"IF(unit=\"\",\"\",unit)","v":"тыс.руб."}]
[null,null,null,null,"№\nп/п","Наименование","Период","Код","На начало года",null,null,null,null,null,"Изменения за период",null,null,null,null,null,null,null,null,null,null,null,null,null,null,null,null,null,null,null,null,"На конец периода"]
[null,null,null,null,null,null,null,null,"первоначальная стоимость *",null,null,"накопленная амортизация и убытки от обесценения",null,null,"поступило",null,null,"выбыло",null,null,null,null,null,"начислено амортизации",null,null,"убыток\nот обесценения",null,null,"переоценка",null,null,null,null,null,"первоначальная стоимость *",null,null,"накопленная амортизация и убытки от обесценения"]
[null,null,null,null,null,null,null,null,null,null,null,null,null,null,null,null,null,"первоначальная стоимость *",null,null,"накопленная амортизация и убытки от обесценения",null,null,null,null,null,null,null,null,"первоначальная стоимость *",null,null,"накопленная амортизация и убытки от обесценения"]
[null,null,null,null,1,2,3,4," ",5," ",6,null,null," ",7," ",8,null,null," ",9," ",10,null,null," ",11," "," ",12," "," ",13," "," ",14," ",15]
[null,null,null,null,"1.1","Нематериальные активы - всего, в том числе: ",{"$f":"\"за \"&IF(god=\"\",\"отчётный год\",god&\" год\")","v":"за 2013 год"},5100,{"$f":"IF((SUM(IF($AQ$19:$AQ$21=\"c\",IF(I$19:I$21=\"(\",-J$19:J$21,J$19:J$21))))<0,\"(\",\"\")","v":""},{"$f":"ABS(SUM(IF($AQ$19:$AQ$21=\"c\",IF(I$19:I$21=\"(\",-J$19:J$21,J$19:J$21))))","v":0},{"$f":"IF(I17=\"(\",\")\",\"\")","v":""},"(",{"$f":"SUMIF($AQ$19:$AQ$21,$AQ17,M$19:M$21)","v":0},")",{"$f":"IF((SUM(IF($AQ$19:$AQ$21=\"c\",IF(O$19:O$21=\"(\",-P$19:P$21,P$19:P$21))))<0,\"(\",\"\")","v":""},{"$f":"ABS(SUM(IF($AQ$19:$AQ$21=\"c\",IF(O$19:O$21=\"(\",-P$19:P$21,P$19:P$21))))","v":0},{"$f":"IF(O17=\"(\",\")\",\"\")","v":""},"(",{"$f":"SUMIF($AQ$19:$AQ$21,$AQ17,S$19:S$21)","v":0},")",{"$f":"IF((SUM(IF($AQ$19:$AQ$21=\"c\",IF(U$19:U$21=\"(\",-V$19:V$21,V$19:V$21))))<0,\"(\",\"\")","v":""},{"$f":"ABS(SUM(IF($AQ$19:$AQ$21=\"c\",IF(U$19:U$21=\"(\",-V$19:V$21,V$19:V$21))))","v":0},{"$f":"IF(U17=\"(\",\")\",\"\")","v":""},"(",{"$f":"SUMIF($AQ$19:$AQ$21,$AQ17,Y$19:Y$21)","v":0},")",{"$f":"IF((SUM(IF($AQ$19:$AQ$21=\"c\",IF(AA$19:AA$21=\"(\",-AB$19:AB$21,AB$19:AB$21))))<0,\"(\",\"\")","v":""},{"$f":"ABS(SUM(IF($AQ$19:$AQ$21=\"c\",IF(AA$19:AA$21=\"(\",-AB$19:AB$21,AB$19:AB$21))))","v":0},{"$f":"IF(AA17=\"(\",\")\",\"\")","v":""},{"$f":"IF((SUM(IF($AQ$19:$AQ$21=\"c\",IF(AD$19:AD$21=\"(\",-AE$19:AE$21,AE$19:AE$21))))<0,\"(\",\"\")","v":""},{"$f":"ABS(SUM(IF($AQ$19:$AQ$21=\"c\",IF(AD$19:AD$21=\"(\",-AE$19:AE$21,AE$19:AE$21))))","v":0},{"$f":"IF(AD17=\"(\",\")\",\"\")","v":""},{"$f":"IF((SUM(IF($AQ$19:$AQ$21=\"c\",IF(AG$19:AG$21=\"(\",-AH$19:AH$21,AH$19:AH$21))))<0,\"(\",\"\")","v":""},{"$f":"ABS(SUM(IF($AQ$19:$AQ$21=\"c\",IF(AG$19:AG$21=\"(\",-AH$19:AH$21,AH$19:AH$21))))","v":0},{"$f":"IF(AG17=\"(\",\")\",\"\")","v":""},{"$f":"IF((SUM(IF($AQ$19:$AQ$21=\"c\",IF(AJ$19:AJ$21=\"(\",-AK$19:AK$21,AK$19:AK$21))))<0,\"(\",\"\")","v":""},{"$f":"ABS(SUM(IF($AQ$19:$AQ$21=\"c\",IF(AJ$19:AJ$21=\"(\",-AK$19:AK$21,AK$19:AK$21))))","v":0},{"$f":"IF(AJ17=\"(\",\")\",\"\")","v":""},"(",{"$f":"SUMIF($AQ$19:$AQ$21,$AQ17,AN$19:AN$21)","v":0},")",null,"c"]
[null,null,null,null,null,null,{"$f":"\"за \"&IF(god=\"\",\"предыдущий год\",god-1&\" год\")","v":"за 2012 год"},5110,{"$f":"IF((SUM(IF($AQ$19:$AQ$21=\"p\",IF(I$19:I$21=\"(\",-J$19:J$21,J$19:J$21))))<0,\"(\",\"\")","v":""},{"$f":"ABS(SUM(IF($AQ$19:$AQ$21=\"p\",IF(I$19:I$21=\"(\",-J$19:J$21,J$19:J$21))))","v":0},{"$f":"IF(I18=\"(\",\")\",\"\")","v":""},"(",{"$f":"SUMIF($AQ$19:$AQ$21,$AQ18,M$19:M$21)","v":0},")",{"$f":"IF((SUM(IF($AQ$19:$AQ$21=\"p\",IF(O$19:O$21=\"(\",-P$19:P$21,P$19:P$21))))<0,\"(\",\"\")","v":""},{"$f":"ABS(SUM(IF($AQ$19:$AQ$21=\"p\",IF(O$19:O$21=\"(\",-P$19:P$21,P$19:P$21))))","v":0},{"$f":"IF(O18=\"(\",\")\",\"\")","v":""},"(",{"$f":"SUMIF($AQ$19:$AQ$21,$AQ18,S$19:S$21)","v":0},")",{"$f":"IF((SUM(IF($AQ$19:$AQ$21=\"p\",IF(U$19:U$21=\"(\",-V$19:V$21,V$19:V$21))))<0,\"(\",\"\")","v":""},{"$f":"ABS(SUM(IF($AQ$19:$AQ$21=\"p\",IF(U$19:U$21=\"(\",-V$19:V$21,V$19:V$21))))","v":0},{"$f":"IF(U18=\"(\",\")\",\"\")","v":""},"(",{"$f":"SUMIF($AQ$19:$AQ$21,$AQ18,Y$19:Y$21)","v":0},")",{"$f":"IF((SUM(IF($AQ$19:$AQ$21=\"p\",IF(AA$19:AA$21=\"(\",-AB$19:AB$21,AB$19:AB$21))))<0,\"(\",\"\")","v":""},{"$f":"ABS(SUM(IF($AQ$19:$AQ$21=\"p\",IF(AA$19:AA$21=\"(\",-AB$19:AB$21,AB$19:AB$21))))","v":0},{"$f":"IF(AA18=\"(\",\")\",\"\")","v":""},{"$f":"IF((SUM(IF($AQ$19:$AQ$21=\"p\",IF(AD$19:AD$21=\"(\",-AE$19:AE$21,AE$19:AE$21))))<0,\"(\",\"\")","v":""},{"$f":"ABS(SUM(IF($AQ$19:$AQ$21=\"p\",IF(AD$19:AD$21=\"(\",-AE$19:AE$21,AE$19:AE$21))))","v":0},{"$f":"IF(AD18=\"(\",\")\",\"\")","v":""},{"$f":"IF((SUM(IF($AQ$19:$AQ$21=\"p\",IF(AG$19:AG$21=\"(\",-AH$19:AH$21,AH$19:AH$21))))<0,\"(\",\"\")","v":""},{"$f":"ABS(SUM(IF($AQ$19:$AQ$21=\"p\",IF(AG$19:AG$21=\"(\",-AH$19:AH$21,AH$19:AH$21))))","v":0},{"$f":"IF(AG18=\"(\",\")\",\"\")","v":""},{"$f":"IF((SUM(IF($AQ$19:$AQ$21=\"p\",IF(AJ$19:AJ$21=\"(\",-AK$19:AK$21,AK$19:AK$21))))<0,\"(\",\"\")","v":""},{"$f":"ABS(SUM(IF($AQ$19:$AQ$21=\"p\",IF(AJ$19:AJ$21=\"(\",-AK$19:AK$21,AK$19:AK$21))))","v":0},{"$f":"IF(AJ18=\"(\",\")\",\"\")","v":""},"(",{"$f":"SUMIF($AQ$19:$AQ$21,$AQ18,AN$19:AN$21)","v":0},")",null,"p"]
[null,null,null,null,"1.1.1",null,{"$f":"\"за \"&IF(god=\"\",\"отчётный год\",god&\" год\")","v":"за 2013 год"},null,null,null,null,"(",null,")",null,null,null,"(",null,")",null,null,null,"(",null,")",null,null,null,null,null,null,null,null,null,null,null,null,"(",null,")",null,"c"]
[null,null,null,null,null,null,{"$f":"\"за \"&IF(god=\"\",\"предыдущий год\",god-1&\" год\")","v":"за 2012 год"},null,null,null,null,"(",null,")",null,null,null,"(",null,")",null,null,null,"(",null,")",null,null,null,null,null,null,null,null,null,null,null,null,"(",null,")",null,"p"]
[null,null,null,null,null,"Добавить вид нематериальных активов"]
[]
[]
[]
[]
[null,null,null,null,"1.2. Первоначальная стоимость нематериальных активов, созданных самой организацией"]
[]
[null,null,null,null,null,null,null,null,null,null,null,null,null,null,null,{"$f":"IF(unit=\"\",\"\",unit)","v":"тыс.руб."}]
[null,null,null,null,"№\nп/п","Наименование",null,"Код",{"$f":"\"На \"&IF(report_date = \"\",\"отчётную дату отчётного года\",report_date& \" г.\")","v":"На 31.12.2014 г."},null,null,{"$f":"\"На 31 декабря \"&IF(god = \"\",\"предыдущего года\",god-1& \" г.\")","v":"На 31 декабря 2012 г."},null,null,{"$f":"\"На 31 декабря \"&IF(god = \"\",\"года, предшествующего предыдущему\",god-2& \" г.\")","v":"На 31 декабря 2011 г."}]
[null,null,null,null,1,2,null,3,null,4,null,5,null,null,null,6]
[null,null,null,null,"1.2","Всего, в том числе: ",null,5120,{"$f":"IF((SUMIF(I32:I33,\"\",J32:J33)-SUMIF(I32:I33,\"(\",J32:J33))<0,\"(\",\"\")","v":""},{"$f":"ABS(SUMIF(I32:I33,\"\",J32:J33)-SUMIF(I32:I33,\"(\",J32:J33))","v":0},{"$f":"IF(I31=\"(\",\")\",\"\")","v":""},{"$f":"IF((SUMIF(L32:L33,\"\",M32:M33)-SUMIF(L32:L33,\"(\",M32:M33))<0,\"(\",\"\")","v":""},{"$f":"ABS(SUMIF(L32:L33,\"\",M32:M33)-SUMIF(L32:L33,\"(\",M32:M33))","v":0},{"$f":"IF(L31=\"(\",\")\",\"\")","v":""},{"$f":"IF((SUMIF(O32:O33,\"\",P32:P33)-SUMIF(O32:O33,\"(\",P32:P33))<0,\"(\",\"\")","v":""},{"$f":"ABS(SUMIF(O32:O33,\"\",P32:P33)-SUMIF(O32:O33,\"(\",P32:P33))","v":0},{"$f":"IF(O31=\"(\",\")\",\"\")","v":""}]
[null,null,null,null,"1.2.1"]
[null,null,null,null,null,"Добавить вид нематериальных активов"]
[]
[]
[null,null,null,null,"1.3. Нематериальные активы с полностью погашенной стоимостью"]
[]
[null,null,null,null,null,null,null,null,null,null,null,null,null,null,null,{"$f":"IF(unit=\"\",\"\",unit)","v":"тыс.руб."}]
[null,null,null,null,"№\nп/п","Наименование",null,"Код",{"$f":"\"На \"&IF(report_date = \"\",\"отчётную дату отчётного года\",report_date& \" г.\")","v":"На 31.12.2014 г."},null,null,{"$f":"\"На 31 декабря \"&IF(god = \"\",\"предыдущего года\",god-1& \" г.\")","v":"На 31 декабря 2012 г."},null,null,{"$f":"\"На 31 декабря \"&IF(god = \"\",\"года, предшествующего предыдущему\",god-2& \" г.\")","v":"На 31 декабря 2011 г."}]
[null,null,null,null,1,2,null,3,null,4,null,5,null,null,null,6]
[null,null,null,null,"1.3","Всего, в том числе: ",null,5130,{"$f":"IF((SUMIF(I42:I43,\"\",J42:J43)-SUMIF(I42:I43,\"(\",J42:J43))<0,\"(\",\"\")","v":""},{"$f":"ABS(SUMIF(I42:I43,\"\",J42:J43)-SUMIF(I42:I43,\"(\",J42:J43))","v":0},{"$f":"IF(I41=\"(\",\")\",\"\")","v":""},{"$f":"IF((SUMIF(L42:L43,\"\",M42:M43)-SUMIF(L42:L43,\"(\",M42:M43))<0,\"(\",\"\")","v":""},{"$f":"ABS(SUMIF(L42:L43,\"\",M42:M43)-SUMIF(L42:L43,\"(\",M42:M43))","v":0},{"$f":"IF(L41=\"(\",\")\",\"\")","v":""},{"$f":"IF((SUMIF(O42:O43,\"\",P42:P43)-SUMIF(O42:O43,\"(\",P42:P43))<0,\"(\",\"\")","v":""},{"$f":"ABS(SUMIF(O42:O43,\"\",P42:P43)-SUMIF(O42:O43,\"(\",P42:P43))","v":0},{"$f":"IF(O41=\"(\",\")\",\"\")","v":""}]
[null,null,null,null,"1.3.1"]
[null,null,null,null,null,"Добавить вид нематериальных активов"]
[]
[]
[null,null,null,null,"1.4. Наличие и движение результатов НИОКР"]
[]
[null,null,null,null,null,null,null,null,null,null,null,null,null,null,null,null,null,null,null,null,null,null,null,null,null,null,null,null,null,null,{"$f":"IF(unit=\"\",\"\",unit)","v":"тыс.руб."}]
[null,null,null,null,"№\nп/п","Наименование","Период","Код","На начало года",null,null,null,null,null,"Изменения за период",null,null,null,null,null,null,null,null,null,null,null,"На конец периода"]
[null,null,null,null,null,null,null,null,"первоначальная стоимость *",null,null,"часть стоимости, списанной на расходы",null,null,"поступило",null,null,"выбыло",null,null,null,null,null,"часть стоимости, списанная на расходы за период",null,null,"первоначальная стоимость *",null,null,"часть стоимости, списанная на расходы"]
[null,null,null,null,null,null,null,null,null,null,null,null,null,null,null,null,null,"первоначальная стоимость",null,null,"часть стоимости, списанной на расходы"]
[null,null,null,null,1,2,3,4,null,5,null,6,null,null,null,7,null,8,null,null,null,9,null,10,null,null,null,11,null,12]
[null,null,null,null,"1.4","НИОКР - всего, в том числе: ",{"$f":"\"за \"&IF(god=\"\",\"отчётный год\",god&\" год\")","v":"за 2013 год"},5140,{"$f":"IF((SUM(IF($AH$55:$AH$57=\"c\",IF(I$55:I$57=\"(\",-J$55:J$57,J$55:J$57))))<0,\"(\",\"\")","v":""},{"$f":"ABS(SUM(IF($AH$55:$AH$57=\"c\",IF(I$55:I$57=\"(\",-J$55:J$57,J$55:J$57))))","v":0},{"$f":"IF(I53=\"(\",\")\",\"\")","v":""},"(",{"$f":"SUMIF($AH$55:$AH$57,$AH53,M$55:M$57)","v":0},")",{"$f":"IF((SUM(IF($AH$55:$AH$57=\"c\",IF(O$55:O$57=\"(\",-P$55:P$57,P$55:P$57))))<0,\"(\",\"\")","v":""},{"$f":"ABS(SUM(IF($AH$55:$AH$57=\"c\",IF(O$55:O$57=\"(\",-P$55:P$57,P$55:P$57))))","v":0},{"$f":"IF(O53=\"(\",\")\",\"\")","v":""},"(",{"$f":"SUMIF($AH$55:$AH$57,$AH53,S$55:S$57)","v":0},")",{"$f":"IF((SUM(IF($AH$55:$AH$57=\"c\",IF(U$55:U$57=\"(\",-V$55:V$57,V$55:V$57))))<0,\"(\",\"\")","v":""},{"$f":"ABS(SUM(IF($AH$55:$AH$57=\"c\",IF(U$55:U$57=\"(\",-V$55:V$57,V$55:V$57))))","v":0},{"$f":"IF(U53=\"(\",\")\",\"\")","v":""},"(",{"$f":"SUMIF($AH$55:$AH$57,$AH53,Y$55:Y$57)","v":0},")",{"$f":"IF((SUM(IF($AH$55:$AH$57=\"c\",IF(AA$55:AA$57=\"(\",-AB$55:AB$57,AB$55:AB$57))))<0,\"(\",\"\")","v":""},{"$f":"ABS(SUM(IF($AH$55:$AH$57=\"c\",IF(AA$55:AA$57=\"(\",-AB$55:AB$57,AB$55:AB$57))))","v":0},{"$f":"IF(AA53=\"(\",\")\",\"\")","v":""},"(",{"$f":"SUMIF($AH$55:$AH$57,$AH53,AE$55:AE$57)","v":0},")",null,"c"]
[null,null,null,null,null,null,{"$f":"\"за \"&IF(god=\"\",\"предыдущий год\",god-1&\" год\")","v":"за 2012 год"},5150,{"$f":"IF((SUM(IF($AH$55:$AH$57=\"p\",IF(I$55:I$57=\"(\",-J$55:J$57,J$55:J$57))))<0,\"(\",\"\")","v":""},{"$f":"ABS(SUM(IF($AH$55:$AH$57=\"p\",IF(I$55:I$57=\"(\",-J$55:J$57,J$55:J$57))))","v":0},{"$f":"IF(I54=\"(\",\")\",\"\")","v":""},"(",{"$f":"SUMIF($AH$55:$AH$57,$AH54,M$55:M$57)","v":0},")",{"$f":"IF((SUM(IF($AH$55:$AH$57=\"p\",IF(O$55:O$57=\"(\",-P$55:P$57,P$55:P$57))))<0,\"(\",\"\")","v":""},{"$f":"ABS(SUM(IF($AH$55:$AH$57=\"p\",IF(O$55:O$57=\"(\",-P$55:P$57,P$55:P$57))))","v":0},{"$f":"IF(O54=\"(\",\")\",\"\")","v":""},"(",{"$f":"SUMIF($AH$55:$AH$57,$AH54,S$55:S$57)","v":0},")",{"$f":"IF((SUM(IF($AH$55:$AH$57=\"p\",IF(U$55:U$57=\"(\",-V$55:V$57,V$55:V$57))))<0,\"(\",\"\")","v":""},{"$f":"ABS(SUM(IF($AH$55:$AH$57=\"p\",IF(U$55:U$57=\"(\",-V$55:V$57,V$55:V$57))))","v":0},{"$f":"IF(U54=\"(\",\")\",\"\")","v":""},"(",{"$f":"SUMIF($AH$55:$AH$57,$AH54,Y$55:Y$57)","v":0},")",{"$f":"IF((SUM(IF($AH$55:$AH$57=\"p\",IF(AA$55:AA$57=\"(\",-AB$55:AB$57,AB$55:AB$57))))<0,\"(\",\"\")","v":""},{"$f":"ABS(SUM(IF($AH$55:$AH$57=\"p\",IF(AA$55:AA$57=\"(\",-AB$55:AB$57,AB$55:AB$57))))","v":0},{"$f":"IF(AA54=\"(\",\")\",\"\")","v":""},"(",{"$f":"SUMIF($AH$55:$AH$57,$AH54,AE$55:AE$57)","v":0},")",null,"p"]
[null,null,null,null,"1.4.1",null,{"$f":"\"за \"&IF(god=\"\",\"отчётный год\",god&\" год\")","v":"за 2013 год"},null,null,null,null,"(",null,")",null,null,null,"(",null,")",null,null,null,"(",null,")",null,null,null,"(",null,")",null,"c"]
[null,null,null,null,null,null,{"$f":"\"за \"&IF(god=\"\",\"предыдущий год\",god-1&\" год\")","v":"за 2012 год"},null,null,null,null,"(",null,")",null,null,null,"(",null,")",null,null,null,"(",null,")",null,null,null,"(",null,")",null,"p"]
[null,null,null,null,null,"Добавить объект"]
[]
[]
[null,null,null,null,"1.5. Незаконченные и неоформленные НИОКР и незаконченные операции по приобретению нематериальных активов"]
[null,null,null,null,null,null,null,null,null,null,null,null,null,null,null,null,null,null,null,null,null,{"$f":"IF(unit=\"\",\"\",unit)","v":"тыс.руб."}]
[]
[null,null,null,null,"№\nп/п","Наименование","Период","Код","На начало года",null,null,"Изменения за период",null,null,null,null,null,null,null,null,"На конец периода"]
[null,null,null,null,null,null,null,null,null,null,null,"затраты за период",null,null,"списано затрат как не давших положительного результата",null,null,"принято к учету в качестве нематериальных активов или НИОКР"]
[null,null,null,null,1,2,3,4,null,5,null,null,6,null,7,null,null,8,null,null,null,9]
[null,null,null,null,"1.5.1","Затраты по незаконченным исследованиям и разработкам - всего, в том числе: ",{"$f":"\"за \"&IF(god=\"\",\"отчётный год\",god&\" год\")","v":"за 2013 год"},5160,{"$f":"IF((SUM(IF($Y$68:$Y$70=\"c\",IF(I$68:I$70=\"(\",-J$68:J$70,J$68:J$70))))<0,\"(\",\"\")","v":""},{"$f":"ABS(SUM(IF($Y$68:$Y$70=\"c\",IF(I$68:I$70=\"(\",-J$68:J$70,J$68:J$70))))","v":0},{"$f":"IF(I66=\"(\",\")\",\"\")","v":""},{"$f":"IF((SUM(IF($Y$68:$Y$70=\"c\",IF(L$68:L$70=\"(\",-M$68:M$70,M$68:M$70))))<0,\"(\",\"\")","v":""},{"$f":"ABS(SUM(IF($Y$68:$Y$70=\"c\",IF(L$68:L$70=\"(\",-M$68:M$70,M$68:M$70))))","v":0},{"$f":"IF(L66=\"(\",\")\",\"\")","v":""},"(",{"$f":"SUMIF($Y$68:$Y$70,$Y66,P$68:P$70)","v":0},")","(",{"$f":"SUMIF($Y$68:$Y$70,$Y66,S$68:S$70)","v":0},")",{"$f":"IF((SUM(IF($Y$68:$Y$70=\"c\",IF(U$68:U$70=\"(\",-V$68:V$70,V$68:V$70))))<0,\"(\",\"\")","v":""},{"$f":"ABS(SUM(IF($Y$68:$Y$70=\"c\",IF(U$68:U$70=\"(\",-V$68:V$70,V$68:V$70))))","v":0},{"$f":"IF(U66=\"(\",\")\",\"\")","v":""},null,"c"]
[null,null,null,null,null,null,{"$f":"\"за \"&IF(god=\"\",\"предыдущий год\",god-1&\" год\")","v":"за 2012 год"},5170,{"$f":"IF((SUM(IF($Y$68:$Y$70=\"p\",IF(I$68:I$70=\"(\",-J$68:J$70,J$68:J$70))))<0,\"(\",\"\")","v":""},{"$f":"ABS(SUM(IF($Y$68:$Y$70=\"p\",IF(I$68:I$70=\"(\",-J$68:J$70,J$68:J$70))))","v":0},{"$f":"IF(I67=\"(\",\")\",\"\")","v":""},{"$f":"IF((SUM(IF($Y$68:$Y$70=\"p\",IF(L$68:L$70=\"(\",-M$68:M$70,M$68:M$70))))<0,\"(\",\"\")","v":""},{"$f":"ABS(SUM(IF($Y$68:$Y$70=\"p\",IF(L$68:L$70=\"(\",-M$68:M$70,M$68:M$70))))","v":0},{"$f":"IF(L67=\"(\",\")\",\"\")","v":""},"(",{"$f":"SUMIF($Y$68:$Y$70,$Y67,P$68:P$70)","v":0},")","(",{"$f":"SUMIF($Y$68:$Y$70,$Y67,S$68:S$70)","v":0},")",{"$f":"IF((SUM(IF($Y$68:$Y$70=\"p\",IF(U$68:U$70=\"(\",-V$68:V$70,V$68:V$70))))<0,\"(\",\"\")","v":""},{"$f":"ABS(SUM(IF($Y$68:$Y$70=\"p\",IF(U$68:U$70=\"(\",-V$68:V$70,V$68:V$70))))","v":0},{"$f":"IF(U67=\"(\",\")\",\"\")","v":""},null,"p"]
[null,null,null,null,"1.5.1.1",null,{"$f":"\"за \"&IF(god=\"\",\"отчётный год\",god&\" год\")","v":"за 2013 год"},null,null,null,null,null,null,null,"(",null,")","(",null,")",null,null,null,null,"c"]
[null,null,null,null,null,null,{"$f":"\"за \"&IF(god=\"\",\"предыдущий год\",god-1&\" год\")","v":"за 2012 год"},null,null,null,null,null,null,null,"(",null,")","(",null,")",null,null,null,null,"p"]
[null,null,null,null,null,"Добавить объект"]
[null,null,null,null,"1.5.2","Незаконченные операции по приобретению нематериальных активов - всего, в том числе: ",{"$f":"\"за \"&IF(god=\"\",\"отчётный год\",god&\" год\")","v":"за 2013 год"},5180,{"$f":"IF((SUM(IF($Y$73:$Y$75=\"c\",IF(I$73:I$75=\"(\",-J$73:J$75,J$73:J$75))))<0,\"(\",\"\")","v":""},{"$f":"ABS(SUM(IF($Y$73:$Y$75=\"c\",IF(I$73:I$75=\"(\",-J$73:J$75,J$73:J$75))))","v":0},{"$f":"IF(I71=\"(\",\")\",\"\")","v":""},{"$f":"IF((SUM(IF($Y$73:$Y$75=\"c\",IF(L$73:L$75=\"(\",-M$73:M$75,M$73:M$75))))<0,\"(\",\"\")","v":""},{"$f":"ABS(SUM(IF($Y$73:$Y$75=\"c\",IF(L$73:L$75=\"(\",-M$73:M$75,M$73:M$75))))","v":0},{"$f":"IF(L71=\"(\",\")\",\"\")","v":""},"(",{"$f":"SUMIF($Y$73:$Y$75,$Y71,P$73:P$75)","v":0},")","(",{"$f":"SUMIF($Y$73:$Y$75,$Y71,S$73:S$75)","v":0},")",{"$f":"IF((SUM(IF($Y$73:$Y$75=\"c\",IF(U$73:U$75=\"(\",-V$73:V$75,V$73:V$75))))<0,\"(\",\"\")","v":""},{"$f":"ABS(SUM(IF($Y$73:$Y$75=\"c\",IF(U$73:U$75=\"(\",-V$73:V$75,V$73:V$75))))","v":0},{"$f":"IF(U71=\"(\",\")\",\"\")","v":""},null,"c"]
[null,null,null,null,null,null,{"$f":"\"за \"&IF(god=\"\",\"предыдущий год\",god-1&\" год\")","v":"за 2012 год"},5190,{"$f":"IF((SUM(IF($Y$73:$Y$75=\"p\",IF(I$73:I$75=\"(\",-J$73:J$75,J$73:J$75))))<0,\"(\",\"\")","v":""},{"$f":"ABS(SUM(IF($Y$73:$Y$75=\"p\",IF(I$73:I$75=\"(\",-J$73:J$75,J$73:J$75))))","v":0},{"$f":"IF(I72=\"(\",\")\",\"\")","v":""},{"$f":"IF((SUM(IF($Y$73:$Y$75=\"p\",IF(L$73:L$75=\"(\",-M$73:M$75,M$73:M$75))))<0,\"(\",\"\")","v":""},{"$f":"ABS(SUM(IF($Y$73:$Y$75=\"p\",IF(L$73:L$75=\"(\",-M$73:M$75,M$73:M$75))))","v":0},{"$f":"IF(L72=\"(\",\")\",\"\")","v":""},"(",{"$f":"SUMIF($Y$73:$Y$75,$Y72,P$73:P$75)","v":0},")","(",{"$f":"SUMIF($Y$73:$Y$75,$Y72,S$73:S$75)","v":0},")",{"$f":"IF((SUM(IF($Y$73:$Y$75=\"p\",IF(U$73:U$75=\"(\",-V$73:V$75,V$73:V$75))))<0,\"(\",\"\")","v":""},{"$f":"ABS(SUM(IF($Y$73:$Y$75=\"p\",IF(U$73:U$75=\"(\",-V$73:V$75,V$73:V$75))))","v":0},{"$f":"IF(U72=\"(\",\")\",\"\")","v":""},null,"p"]
[null,null,null,null,"1.5.2.1",null,{"$f":"\"за \"&IF(god=\"\",\"отчётный год\",god&\" год\")","v":"за 2013 год"},null,null,null,null,null,null,null,"(",null,")","(",null,")",null,null,null,null,"c"]
[null,null,null,null,null,null,{"$f":"\"за \"&IF(god=\"\",\"предыдущий год\",god-1&\" год\")","v":"за 2012 год"},null,null,null,null,null,null,null,"(",null,")","(",null,")",null,null,null,null,"p"]
[null,null,null,null,null,"Добавить объект"]
[]
[null,null,null,null,"*","В случае переоценки в графе \"Первоначальная стоимость\" приводится текущая рыночная стоимость или текущая (восстановительная) стоимость."]

{"sheet":"Стр 4-6","index":5,"n_rows":71,"n_cols":40,"rows_kept":71,"cut":false,"hidden":false,"merged":[[9,4,9,37],[15,11,15,13],[15,17,15,19],[15,23,15,25],[13,11,14,13],[14,20,14,22],[13,32,14,34],[7,4,7,37],[12,7,14,7],[12,8,12,13],[13,23,14,25],[13,26,13,31],[12,14,12,31],[12,4,14,4],[12,5,14,5],[12,6,14,6],[14,26,14,28],[16,4,17,4],[16,5,17,5],[15,35,15,37],[12,32,12,37],[13,8,14,10],[13,14,14,16],[13,17,13,22],[13,35,14,37],[14,17,14,19],[14,29,14,31],[23,4,24,4],[23,5,24,5],[34,4,35,4],[34,5,35,5],[18,4,19,4],[18,5,19,5],[21,4,22,4],[21,5,22,5],[34,20,35,22],[35,17,35,19],[31,4,31,22],[37,4,38,4],[37,5,38,5],[35,11,35,13],[35,14,35,16],[34,8,35,10],[34,6,35,6],[34,7,35,7],[44,4,44,13],[52,5,52,6],[34,11,34,19],[36,11,36,13],[36,17,36,19],[48,5,48,6],[48,11,48,13],[49,5,49,6],[39,4,40,4],[39,5,40,5],[60,14,60,16],[57,4,57,16],[50,5,50,6],[47,5,47,6],[47,8,47,10],[47,11,47,13],[53,5,53,6],[60,5,60,6],[60,8,60,10],[60,11,60,13],[61,5,61,6],[61,11,61,13],[68,5,68,6],[69,5,69,6],[62,5,62,6],[63,5,63,6],[64,5,64,6],[65,5,65,6],[66,5,66,6],[67,5,67,6]]}
[]
[]
[]
[]
[]
[]
[null,null,null,null,null,null,null,null,null,null,null,null,null,null,null,null,null,null,null,null,null,null,null,null,null,null,null,null,null,null,null,null,null,null,null,null,null,"Форма 0710005 с. 4-6"]
[null,null,null,null,"2. Основные средства"]
[]
[null,null,null,null,"2.1. Наличие и движение основных средств"]
[]
[null,null,null,null,null,null,null,null,null,null,null,null,null,null,null,null,null,null,null,null,null,null,null,null,null,null,null,null,null,null,null,null,null,null,null,null,{"$f":"IF(unit=\"\",\"\",unit)","v":"тыс.руб."}]
[null,null,null,null,"№\nп/п","Наименование","Период","Код","На начало года",null,null,null,null,null,"Изменения за период",null,null,null,null,null,null,null,null,null,null,null,null,null,null,null,null,null,"На конец периода"]
[null,null,null,null,null,null,null,null,"первоначальная стоимость *",null,null,"накопленная амортизация **",null,null,"поступило",null,null,"выбыло объектов",null,null,null,null,null,"начислено амортизации **",null,null,"переоценка",null,null,null,null,null,"первоначальная стоимость *",null,null,"накопленная амортизация **"]
[null,null,null,null,null,null,null,null,null,null,null,null,null,null,null,null,null,"первоначальная стоимость *",null,null,"накопленная амортизация **",null,null,null,null,null,"первоначальная стоимость *",null,null,"накопленная амортизация **"]
[null,null,null,null,1,2,3,4," ",5," ",6,null,null," ",7," ",8,null,null," ",9," ",10,null,null," ",11," "," ",12," "," ",13," ",14]
[null,null,null,null,"2.1.1","Основные средства (без учета доходных вложений в материальные ценности) - всего, в том числе: ",{"$f":"\"за \"&IF(god=\"\",\"отчётный год\",god&\" год\")","v":"за 2013 год"},5200,{"$f":"IF((SUM(IF($AN$19:$AN$21=\"c\",IF(I$19:I$21=\"(\",-J$19:J$21,J$19:J$21))))<0,\"(\",\"\")","v":""},{"$f":"ABS(SUM(IF($AN$19:$AN$21=\"c\",IF(I$19:I$21=\"(\",-J$19:J$21,J$19:J$21))))","v":0},{"$f":"IF(I17=\"(\",\")\",\"\")","v":""},"(",{"$f":"SUMIF($AN$19:$AN$21,$AN17,M$19:M$21)","v":0},")",{"$f":"IF((SUM(IF($AN$19:$AN$21=\"c\",IF(O$19:O$21=\"(\",-P$19:P$21,P$19:P$21))))<0,\"(\",\"\")","v":""},{"$f":"ABS(SUM(IF($AN$19:$AN$21=\"c\",IF(O$19:O$21=\"(\",-P$19:P$21,P$19:P$21))))","v":0},{"$f":"IF(O17=\"(\",\")\",\"\")","v":""},"(",{"$f":"SUMIF($AN$19:$AN$21,$AN17,S$19:S$21)","v":0},")",{"$f":"IF((SUM(IF($AN$19:$AN$21=\"c\",IF(U$19:U$21=\"(\",-V$19:V$21,V$19:V$21))))<0,\"(\",\"\")","v":""},{"$f":"ABS(SUM(IF($AN$19:$AN$21=\"c\",IF(U$19:U$21=\"(\",-V$19:V$21,V$19:V$21))))","v":0},{"$f":"IF(U17=\"(\",\")\",\"\")","v":""},"(",{"$f":"SUMIF($AN$19:$AN$21,$AN17,Y$19:Y$21)","v":0},")",{"$f":"IF((SUM(IF($AN$19:$AN$21=\"c\",IF(AA$19:AA$21=\"(\",-AB$19:AB$21,AB$19:AB$21))))<0,\"(\",\"\")","v":""},{"$f":"ABS(SUM(IF($AN$19:$AN$21=\"c\",IF(AA$19:AA$21=\"(\",-AB$19:AB$21,AB$19:AB$21))))","v":0},{"$f":"IF(AA17=\"(\",\")\",\"\")","v":""},{"$f":"IF((SUM(IF($AN$19:$AN$21=\"c\",IF(AD$19:AD$21=\"(\",-AE$19:AE$21,AE$19:AE$21))))<0,\"(\",\"\")","v":""},{"$f":"ABS(SUM(IF($AN$19:$AN$21=\"c\",IF(AD$19:AD$21=\"(\",-AE$19:AE$21,AE$19:AE$21))))","v":0},{"$f":"IF(AD17=\"(\",\")\",\"\")","v":""},{"$f":"IF((SUM(IF($AN$19:$AN$21=\"c\",IF(AG$19:AG$21=\"(\",-AH$19:AH$21,AH$19:AH$21))))<0,\"(\",\"\")","v":""},{"$f":"ABS(SUM(IF($AN$19:$AN$21=\"c\",IF(AG$19:AG$21=\"(\",-AH$19:AH$21,AH$19:AH$21))))","v":0},{"$f":"IF(AG17=\"(\",\")\",\"\")","v":""},"(",{"$f":"SUMIF($AN$19:$AN$21,$AN17,AK$19:AK$21)","v":0},")",null,"c"]
[null,null,null,null,null,null,{"$f":"\"за \"&IF(god=\"\",\"предыдущий год\",god-1&\" год\")","v":"за 2012 год"},5210,{"$f":"IF((SUM(IF($AN$19:$AN$21=\"p\",IF(I$19:I$21=\"(\",-J$19:J$21,J$19:J$21))))<0,\"(\",\"\")","v":""},{"$f":"ABS(SUM(IF($AN$19:$AN$21=\"p\",IF(I$19:I$21=\"(\",-J$19:J$21,J$19:J$21))))","v":0},{"$f":"IF(I18=\"(\",\")\",\"\")","v":""},"(",{"$f":"SUMIF($AN$19:$AN$21,$AN18,M$19:M$21)","v":0},")",{"$f":"IF((SUM(IF($AN$19:$AN$21=\"p\",IF(O$19:O$21=\"(\",-P$19:P$21,P$19:P$21))))<0,\"(\",\"\")","v":""},{"$f":"ABS(SUM(IF($AN$19:$AN$21=\"p\",IF(O$19:O$21=\"(\",-P$19:P$21,P$19:P$21))))","v":0},{"$f":"IF(O18=\"(\",\")\",\"\")","v":""},"(",{"$f":"SUMIF($AN$19:$AN$21,$AN18,S$19:S$21)","v":0},")",{"$f":"IF((SUM(IF($AN$19:$AN$21=\"p\",IF(U$19:U$21=\"(\",-V$19:V$21,V$19:V$21))))<0,\"(\",\"\")","v":""},{"$f":"ABS(SUM(IF($AN$19:$AN$21=\"p\",IF(U$19:U$21=\"(\",-V$19:V$21,V$19:V$21))))","v":0},{"$f":"IF(U18=\"(\",\")\",\"\")","v":""},"(",{"$f":"SUMIF($AN$19:$AN$21,$AN18,Y$19:Y$21)","v":0},")",{"$f":"IF((SUM(IF($AN$19:$AN$21=\"p\",IF(AA$19:AA$21=\"(\",-AB$19:AB$21,AB$19:AB$21))))<0,\"(\",\"\")","v":""},{"$f":"ABS(SUM(IF($AN$19:$AN$21=\"p\",IF(AA$19:AA$21=\"(\",-AB$19:AB$21,AB$19:AB$21))))","v":0},{"$f":"IF(AA18=\"(\",\")\",\"\")","v":""},{"$f":"IF((SUM(IF($AN$19:$AN$21=\"p\",IF(AD$19:AD$21=\"(\",-AE$19:AE$21,AE$19:AE$21))))<0,\"(\",\"\")","v":""},{"$f":"ABS(SUM(IF($AN$19:$AN$21=\"p\",IF(AD$19:AD$21=\"(\",-AE$19:AE$21,AE$19:AE$21))))","v":0},{"$f":"IF(AD18=\"(\",\")\",\"\")","v":""},{"$f":"IF((SUM(IF($AN$19:$AN$21=\"p\",IF(AG$19:AG$21=\"(\",-AH$19:AH$21,AH$19:AH$21))))<0,\"(\",\"\")","v":""},{"$f":"ABS(SUM(IF($AN$19:$AN$21=\"p\",IF(AG$19:AG$21=\"(\",-AH$19:AH$21,AH$19:AH$21))))","v":0},{"$f":"IF(AG18=\"(\",\")\",\"\")","v":""},"(",{"$f":"SUMIF($AN$19:$AN$21,$AN18,AK$19:AK$21)","v":0},")",null,"p"]
[null,null,null,null,"2.1.1.1",null,{"$f":"\"за \"&IF(god=\"\",\"отчётный год\",god&\" год\")","v":"за 2013 год"},null,null,null,null,"(",null,")",null,null,null,"(",null,")",null,null,null,"(",null,")",null,null,null,null,null,null,null,null,null,"(",null,")",null,"c"]
[null,null,null,null,null,null,{"$f":"\"за \"&IF(god=\"\",\"предыдущий год\",god-1&\" год\")","v":"за 2012 год"},null,null,null,null,"(",null,")",null,null,null,"(",null,")",null,null,null,"(",null,")",null,null,null,null,null,null,null,null,null,"(",null,")",null,"p"]
[null,null,null,null,null,"Добавить группу основных средств"]
[null,null,null,null,"2.1.2","Учтено в составе доходных вложений в материальные ценности - всего, в том числе: ",{"$f":"\"за \"&IF(god=\"\",\"отчётный год\",god&\" год\")","v":"за 2013 год"},5220,{"$f":"IF((SUM(IF($AN$24:$AN$26=\"c\",IF(I$24:I$26=\"(\",-J$24:J$26,J$24:J$26))))<0,\"(\",\"\")","v":""},{"$f":"ABS(SUM(IF($AN$24:$AN$26=\"c\",IF(I$24:I$26=\"(\",-J$24:J$26,J$24:J$26))))","v":0},{"$f":"IF(I22=\"(\",\")\",\"\")","v":""},"(",{"$f":"SUMIF($AN$24:$AN$26,$AN22,M$24:M$26)","v":0},")",{"$f":"IF((SUM(IF($AN$24:$AN$26=\"c\",IF(O$24:O$26=\"(\",-P$24:P$26,P$24:P$26))))<0,\"(\",\"\")","v":""},{"$f":"ABS(SUM(IF($AN$24:$AN$26=\"c\",IF(O$24:O$26=\"(\",-P$24:P$26,P$24:P$26))))","v":0},{"$f":"IF(O22=\"(\",\")\",\"\")","v":""},"(",{"$f":"SUMIF($AN$24:$AN$26,$AN22,S$24:S$26)","v":0},")",{"$f":"IF((SUM(IF($AN$24:$AN$26=\"c\",IF(U$24:U$26=\"(\",-V$24:V$26,V$24:V$26))))<0,\"(\",\"\")","v":""},{"$f":"ABS(SUM(IF($AN$24:$AN$26=\"c\",IF(U$24:U$26=\"(\",-V$24:V$26,V$24:V$26))))","v":0},{"$f":"IF(U22=\"(\",\")\",\"\")","v":""},"(",{"$f":"SUMIF($AN$24:$AN$26,$AN22,Y$24:Y$26)","v":0},")",{"$f":"IF((SUM(IF($AN$24:$AN$26=\"c\",IF(AA$24:AA$26=\"(\",-AB$24:AB$26,AB$24:AB$26))))<0,\"(\",\"\")","v":""},{"$f":"ABS(SUM(IF($AN$24:$AN$26=\"c\",IF(AA$24:AA$26=\"(\",-AB$24:AB$26,AB$24:AB$26))))","v":0},{"$f":"IF(AA22=\"(\",\")\",\"\")","v":""},{"$f":"IF((SUM(IF($AN$24:$AN$26=\"c\",IF(AD$24:AD$26=\"(\",-AE$24:AE$26,AE$24:AE$26))))<0,\"(\",\"\")","v":""},{"$f":"ABS(SUM(IF($AN$24:$AN$26=\"c\",IF(AD$24:AD$26=\"(\",-AE$24:AE$26,AE$24:AE$26))))","v":0},{"$f":"IF(AD22=\"(\",\")\",\"\")","v":""},{"$f":"IF((SUM(IF($AN$24:$AN$26=\"c\",IF(AG$24:AG$26=\"(\",-AH$24:AH$26,AH$24:AH$26))))<0,\"(\",\"\")","v":""},{"$f":"ABS(SUM(IF($AN$24:$AN$26=\"c\",IF(AG$24:AG$26=\"(\",-AH$24:AH$26,AH$24:AH$26))))","v":0},{"$f":"IF(AG22=\"(\",\")\",\"\")","v":""},"(",{"$f":"SUMIF($AN$24:$AN$26,$AN22,AK$24:AK$26)","v":0},")",null,"c"]
[null,null,null,null,null,null,{"$f":"\"за \"&IF(god=\"\",\"предыдущий год\",god-1&\" год\")","v":"за 2012 год"},5230,{"$f":"IF((SUM(IF($AN$24:$AN$26=\"p\",IF(I$24:I$26=\"(\",-J$24:J$26,J$24:J$26))))<0,\"(\",\"\")","v":""},{"$f":"ABS(SUM(IF($AN$24:$AN$26=\"p\",IF(I$24:I$26=\"(\",-J$24:J$26,J$24:J$26))))","v":0},{"$f":"IF(I23=\"(\",\")\",\"\")","v":""},"(",{"$f":"SUMIF($AN$24:$AN$26,$AN23,M$24:M$26)","v":0},")",{"$f":"IF((SUM(IF($AN$24:$AN$26=\"p\",IF(O$24:O$26=\"(\",-P$24:P$26,P$24:P$26))))<0,\"(\",\"\")","v":""},{"$f":"ABS(SUM(IF($AN$24:$AN$26=\"p\",IF(O$24:O$26=\"(\",-P$24:P$26,P$24:P$26))))","v":0},{"$f":"IF(O23=\"(\",\")\",\"\")","v":""},"(",{"$f":"SUMIF($AN$24:$AN$26,$AN23,S$24:S$26)","v":0},")",{"$f":"IF((SUM(IF($AN$24:$AN$26=\"p\",IF(U$24:U$26=\"(\",-V$24:V$26,V$24:V$26))))<0,\"(\",\"\")","v":""},{"$f":"ABS(SUM(IF($AN$24:$AN$26=\"p\",IF(U$24:U$26=\"(\",-V$24:V$26,V$24:V$26))))","v":0},{"$f":"IF(U23=\"(\",\")\",\"\")","v":""},"(",{"$f":"SUMIF($AN$24:$AN$26,$AN23,Y$24:Y$26)","v":0},")",{"$f":"IF((SUM(IF($AN$24:$AN$26=\"p\",IF(AA$24:AA$26=\"(\",-AB$24:AB$26,AB$24:AB$26))))<0,\"(\",\"\")","v":""},{"$f":"ABS(SUM(IF($AN$24:$AN$26=\"p\",IF(AA$24:AA$26=\"(\",-AB$24:AB$26,AB$24:AB$26))))","v":0},{"$f":"IF(AA23=\"(\",\")\",\"\")","v":""},{"$f":"IF((SUM(IF($AN$24:$AN$26=\"p\",IF(AD$24:AD$26=\"(\",-AE$24:AE$26,AE$24:AE$26))))<0,\"(\",\"\")","v":""},{"$f":"ABS(SUM(IF($AN$24:$AN$26=\"p\",IF(AD$24:AD$26=\"(\",-AE$24:AE$26,AE$24:AE$26))))","v":0},{"$f":"IF(AD23=\"(\",\")\",\"\")","v":""},{"$f":"IF((SUM(IF($AN$24:$AN$26=\"p\",IF(AG$24:AG$26=\"(\",-AH$24:AH$26,AH$24:AH$26))))<0,\"(\",\"\")","v":""},{"$f":"ABS(SUM(IF($AN$24:$AN$26=\"p\",IF(AG$24:AG$26=\"(\",-AH$24:AH$26,AH$24:AH$26))))","v":0},{"$f":"IF(AG23=\"(\",\")\",\"\")","v":""},"(",{"$f":"SUMIF($AN$24:$AN$26,$AN23,AK$24:AK$26)","v":0},")",null,"p"]
[null,null,null,null,"2.1.2.1",null,{"$f":"\"за \"&IF(god=\"\",\"отчётный год\",god&\" год\")","v":"за 2013 год"},null,null,null,null,"(",null,")",null,null,null,"(",null,")",null,null,null,"(",null,")",null,null,null,null,null,null,null,null,null,"(",null,")",null,"c"]
[null,null,null,null,null,null,{"$f":"\"за \"&IF(god=\"\",\"предыдущий год\",god-1&\" год\")","v":"за 2012 год"},null,null,null,null,"(",null,")",null,null,null,"(",null,")",null,null,null,"(",null,")",null,null,null,null,null,null,null,null,null,"(",null,")",null,"p"]
[null,null,null,null,null,"Добавить группу объектов"]
[]
[null,null,null,null,"*","В случае переоценки в графе \"Первоначальная стоимость\" приводится текущая рыночная стоимость или текущая (восстановительная) стоимость."]
[null,null,null,null,"**","Некоммерческая организация графы \"Накопленная амортизация\" и \"Начисленная амортизация\" именует соответственно \"Накопленный износ\" и \"Начисленный износ\""]
[]
[]
[null,null,null,null,"2.2. Незавершенные капитальные вложения"]
[]
[null,null,null,null,null,null,null,null,null,null,null,null,null,null,null,null,null,null,null,null,null,{"$f":"IF(unit=\"\",\"\",unit)","v":"тыс.руб."}]
[null,null,null,null,"№\nп/п","Наименование","Период","Код","На начало года",null,null,"Изменения за период",null,null,null,null,null,null,null,null,"На конец периода"]
[null,null,null,null,null,null,null,null,null,null,null,"затраты за период",null,null,"списано",null,null,"принято к учету в качестве основных средств или увеличена стоимость"]
[null,null,null,null,1,2,3,4,null,5,null,6,null,null,null,7,null,8,null,null,null,9]
[null,null,null,null,"2.2","Незавершенное строительство и незаконченные операции по приобретению, модернизации и т.п. основных средств - всего, в том числе: ",{"$f":"\"за \"&IF(god=\"\",\"отчётный год\",god&\" год\")","v":"за 2013 год"},5240,{"$f":"IF((SUM(IF($Y$40:$Y$42=\"c\",IF(I$40:I$42=\"(\",-J$40:J$42,J$40:J$42))))<0,\"(\",\"\")","v":""},{"$f":"ABS(SUM(IF($Y$40:$Y$42=\"c\",IF(I$40:I$42=\"(\",-J$40:J$42,J$40:J$42))))","v":0},{"$f":"IF(I38=\"(\",\")\",\"\")","v":""},{"$f":"IF((SUM(IF($Y$40:$Y$42=\"c\",IF(L$40:L$42=\"(\",-M$40:M$42,M$40:M$42))))<0,\"(\",\"\")","v":""},{"$f":"ABS(SUM(IF($Y$40:$Y$42=\"c\",IF(L$40:L$42=\"(\",-M$40:M$42,M$40:M$42))))","v":0},{"$f":"IF(L38=\"(\",\")\",\"\")","v":""},"(",{"$f":"SUMIF($Y$40:$Y$42,$Y38,P$40:P$42)","v":0},")","(",{"$f":"SUMIF($Y$40:$Y$42,$Y38,S$40:S$42)","v":0},")",{"$f":"IF((SUM(IF($Y$40:$Y$42=\"c\",IF(U$40:U$42=\"(\",-V$40:V$42,V$40:V$42))))<0,\"(\",\"\")","v":""},{"$f":"ABS(SUM(IF($Y$40:$Y$42=\"c\",IF(U$40:U$42=\"(\",-V$40:V$42,V$40:V$42))))","v":0},{"$f":"IF(U38=\"(\",\")\",\"\")","v":""},null,"c"]
[null,null,null,null,null,null,{"$f":"\"за \"&IF(god=\"\",\"предыдущий год\",god-1&\" год\")","v":"за 2012 год"},5250,{"$f":"IF((SUM(IF($Y$40:$Y$42=\"p\",IF(I$40:I$42=\"(\",-J$40:J$42,J$40:J$42))))<0,\"(\",\"\")","v":""},{"$f":"ABS(SUM(IF($Y$40:$Y$42=\"p\",IF(I$40:I$42=\"(\",-J$40:J$42,J$40:J$42))))","v":0},{"$f":"IF(I39=\"(\",\")\",\"\")","v":""},{"$f":"IF((SUM(IF($Y$40:$Y$42=\"p\",IF(L$40:L$42=\"(\",-M$40:M$42,M$40:M$42))))<0,\"(\",\"\")","v":""},{"$f":"ABS(SUM(IF($Y$40:$Y$42=\"p\",IF(L$40:L$42=\"(\",-M$40:M$42,M$40:M$42))))","v":0},{"$f":"IF(L39=\"(\",\")\",\"\")","v":""},"(",{"$f":"SUMIF($Y$40:$Y$42,$Y39,P$40:P$42)","v":0},")","(",{"$f":"SUMIF($Y$40:$Y$42,$Y39,S$40:S$42)","v":0},")",{"$f":"IF((SUM(IF($Y$40:$Y$42=\"p\",IF(U$40:U$42=\"(\",-V$40:V$42,V$40:V$42))))<0,\"(\",\"\")","v":""},{"$f":"ABS(SUM(IF($Y$40:$Y$42=\"p\",IF(U$40:U$42=\"(\",-V$40:V$42,V$40:V$42))))","v":0},{"$f":"IF(U39=\"(\",\")\",\"\")","v":""},null,"p"]
[null,null,null,null,"2.2.1",null,{"$f":"\"за \"&IF(god=\"\",\"отчётный год\",god&\" год\")","v":"за 2013 год"},null,null,null,null,null,null,null,"(",null,")","(",null,")",null,null,null,null,"c"]
[null,null,null,null,null,null,{"$f":"\"за \"&IF(god=\"\",\"предыдущий год\",god-1&\" год\")","v":"за 2012 год"},null,null,null,null,null,null,null,"(",null,")","(",null,")",null,null,null,null,"p"]
[null,null,null,null,null,"Добавить группу объектов"]
[]
[]
[null,null,null,null,"2.3. Изменение стоимости основных средств в результате достройки, дооборудования, реконструкции и частичной ликвидации"]
[]
[null,null,null,null,null,null,null,null,null,null,null,null,{"$f":"IF(unit=\"\",\"\",unit)","v":"тыс.руб."}]
[null,null,null,null,"№\nп/п","Наименование",null,"Код",{"$f":"\"За \"&IF(god=\"\",\"отчётный год\",god&\" год\")","v":"За 2013 год"},null,null,{"$f":"\"За \"&IF(god=\"\",\"предыдущий год\",god-1&\" год\")","v":"За 2012 год"}]
[null,null,null,null,1,2,null,3,null,4,null,5]
[null,null,null,null,"2.3.1","Увеличение стоимости объектов основных средств в результате достройки, дооборудования, реконструкции - всего, в том числе: ",null,5260,{"$f":"IF((SUMIF(I51:I52,\"\",J51:J52)-SUMIF(I51:I52,\"(\",J51:J52))<0,\"(\",\"\")","v":""},{"$f":"ABS(SUMIF(I51:I52,\"\",J51:J52)-SUMIF(I51:I52,\"(\",J51:J52))","v":0},{"$f":"IF(I50=\"(\",\")\",\"\")","v":""},{"$f":"IF((SUMIF(L51:L52,\"\",M51:M52)-SUMIF(L51:L52,\"(\",M51:M52))<0,\"(\",\"\")","v":""},{"$f":"ABS(SUMIF(L51:L52,\"\",M51:M52)-SUMIF(L51:L52,\"(\",M51:M52))","v":0},{"$f":"IF(L50=\"(\",\")\",\"\")","v":""}]
[null,null,null,null,"2.3.1.1"]
[null,null,null,null,null,"Добавить объект основных средств"]
[null,null,null,null,"2.3.2","Уменьшение стоимости объектов основных средств в результате частичной ликвидации - всего, в том числе: ",null,5270,"(",{"$f":"SUM(J54:J55)","v":0},")","(",{"$f":"SUM(M54:M55)","v":0},")"]
[null,null,null,null,"2.3.2.1",null,null,null,"(",null,")","(",null,")"]
[null,null,null,null,null,"Добавить объект основных средств"]
[]
[]
[null,null,null,null,"2.4. Иное использование основных средств"]
[]
[null,null,null,null,null,null,null,null,null,null,null,null,null,null,null,{"$f":"IF(unit=\"\",\"\",unit)","v":"тыс.руб."}]
[null,null,null,null,"№\nп/п","Наименование",null,"Код",{"$f":"\"На \"&IF(report_date = \"\",\"отчётную дату отчётного года\",report_date& \" г.\")","v":"На 31.12.2014 г."},null,null,{"$f":"\"На 31 декабря \"&IF(god = \"\",\"предыдущего года\",god-1& \" г.\")","v":"На 31 декабря 2012 г."},null,null,{"$f":"\"На 31 декабря \"&IF(god = \"\",\"года, предшествующего предыдущему\",god-2& \" г.\")","v":"На 31 декабря 2011 г."}]
[null,null,null,null,1,2,null,3,null,4,null,5,null,null,null,6]
[null,null,null,null,"2.4.1","Переданные в аренду основные средства, числящиеся на балансе",null,5280]
[null,null,null,null,"2.4.2","Переданные в аренду основные средства, числящиеся за балансом",null,5281]
[null,null,null,null,"2.4.3","Полученные в аренду основные средства, числящиеся на балансе",null,5282]
[null,null,null,null,"2.4.4","Полученные в аренду основные средства, числящиеся за балансом",null,5283]
[null,null,null,null,"2.4.5","Объекты недвижимости, принятые в эксплуатацию и фактически используемые, находящиеся в процессе государственной регистрации",null,5284]
[null,null,null,null,"2.4.6","Основные средства, переведенные на консервацию",null,5285]
[null,null,null,null,"2.4.7","Иное использование основных средств (залог и др.)",null,5286,{"$f":"IF((SUMIF(I70:I71,\"\",J70:J71)-SUMIF(I70:I71,\"(\",J70:J71))<0,\"(\",\"\")","v":""},{"$f":"ABS(SUMIF(I70:I71,\"\",J70:J71)-SUMIF(I70:I71,\"(\",J70:J71))","v":0},{"$f":"IF(I69=\"(\",\")\",\"\")","v":""},{"$f":"IF((SUMIF(L70:L71,\"\",M70:M71)-SUMIF(L70:L71,\"(\",M70:M71))<0,\"(\",\"\")","v":""},{"$f":"ABS(SUMIF(L70:L71,\"\",M70:M71)-SUMIF(L70:L71,\"(\",M70:M71))","v":0},{"$f":"IF(L69=\"(\",\")\",\"\")","v":""},{"$f":"IF((SUMIF(O70:O71,\"\",P70:P71)-SUMIF(O70:O71,\"(\",P70:P71))<0,\"(\",\"\")","v":""},{"$f":"ABS(SUMIF(O70:O71,\"\",P70:P71)-SUMIF(O70:O71,\"(\",P70:P71))","v":0},{"$f":"IF(O69=\"(\",\")\",\"\")","v":""}]
[null,null,null,null,"2.4.7.1"]
[null,null,null,null,null,"Добавить объект основных средств"]

{"sheet":"Стр 7-9","index":6,"n_rows":76,"n_cols":37,"rows_kept":76,"cut":false,"hidden":false,"merged":[[13,29,14,31],[13,11,14,13],[13,14,14,16],[13,23,14,25],[13,26,14,28],[14,17,14,19],[7,4,7,34],[9,4,9,34],[12,4,14,4],[12,5,14,5],[12,6,14,6],[12,8,12,13],[13,32,14,34],[12,14,12,28],[12,29,12,34],[12,7,14,7],[35,4,35,16],[18,4,19,4],[18,5,19,5],[13,17,13,22],[14,20,14,22],[13,8,14,10],[16,4,17,4],[16,5,17,5],[15,17,15,19],[51,4,51,34],[38,14,38,16],[21,4,22,4],[21,5,22,5],[23,4,24,4],[23,5,24,5],[26,4,27,4],[26,5,27,5],[38,5,38,6],[38,11,38,13],[46,5,46,6],[39,5,39,6],[49,4,49,34],[55,11,56,13],[54,4,56,4],[54,5,56,5],[54,6,56,6],[54,7,56,7],[55,29,56,31],[55,23,56,25],[39,11,39,13],[40,5,40,6],[41,5,41,6],[38,8,38,10],[43,5,43,6],[44,5,44,6],[54,29,54,34],[55,8,56,10],[56,20,56,22],[55,14,56,16],[55,17,55,22],[55,32,56,34],[55,26,56,28],[54,8,54,13],[68,5,68,6],[68,8,68,10],[68,11,68,13],[54,14,54,28],[56,17,56,19],[65,4,65,16],[68,14,68,16],[57,32,57,34],[58,4,59,4],[60,4,61,4],[60,5,61,5],[57,11,57,13],[57,17,57,19],[58,5,59,5],[57,23,57,25],[74,5,74,6],[69,5,69,6],[69,11,69,13],[70,5,70,6],[71,5,71,6],[73,5,73,6]]}
[]
[]
[]
[]
[]
[]
[null,null,null,null,null,null,null,null,null,null,null,null,null,null,null,null,null,null,null,null,null,null,null,null,null,null,null,null,null,null,null,null,null,null,"Форма 0710005 с. 7-9"]
[null,null,null,null,"3. Финансовые вложения"]
[]
[null,null,null,null,"3.1. Наличие и движение финансовых вложений"]
[]
[null,null,null,null,null,null,null,null,null,null,null,null,null,null,null,null,null,null,null,null,null,null,null,null,null,null,null,null,null,null,null,null,null,{"$f":"IF(unit=\"\",\"\",unit)","v":"тыс.руб."}]
[null,null,null,null,"№\nп/п","Наименование","Период","Код","На начало года",null,null,null,null,null,"Изменения за период",null,null,null,null,null,null,null,null,null,null,null,null,null,null,"На конец периода"]
[null,null,null,null,null,null,null,null,"первоначальная стоимость",null,null,"накопленная корректировка *",null,null,"поступило",null,null,"выбыло (погашено)",null,null,null,null,null,"начисление процентов (включая доведение перво-начальной стоимости до номинальной)",null,null,"текущей рыночной стоимости (убытков от обесценения)",null,null,"первоначальная стоимость",null,null,"накопленная корректировка *"]
[null,null,null,null,null,null,null,null,null,null,null,null,null,null,null,null,null,"первоначальная стоимость",null,null,"накопленная корректировка *"]
[null,null,null,null,1,2,3,4," ",5," "," ",6," "," ",7," ",8,null,null," ",9," "," ",10," "," ",11," "," ",12," "," ",13," "]
[null,null,null,null,"3.1.1","Долгосрочные - всего, в том числе: ",{"$f":"\"за \"&IF(god=\"\",\"отчётный год\",god&\" год\")","v":"за 2013 год"},5301,{"$f":"IF((SUM(IF($AK$19:$AK$21=\"c\",IF(I$19:I$21=\"(\",-J$19:J$21,J$19:J$21))))<0,\"(\",\"\")","v":""},{"$f":"ABS(SUM(IF($AK$19:$AK$21=\"c\",IF(I$19:I$21=\"(\",-J$19:J$21,J$19:J$21))))","v":0},{"$f":"IF(I17=\"(\",\")\",\"\")","v":""},{"$f":"IF((SUM(IF($AK$19:$AK$21=\"c\",IF(L$19:L$21=\"(\",-M$19:M$21,M$19:M$21))))<0,\"(\",\"\")","v":""},{"$f":"ABS(SUM(IF($AK$19:$AK$21=\"c\",IF(L$19:L$21=\"(\",-M$19:M$21,M$19:M$21))))","v":0},{"$f":"IF(L17=\"(\",\")\",\"\")","v":""},{"$f":"IF((SUM(IF($AK$19:$AK$21=\"c\",IF(O$19:O$21=\"(\",-P$19:P$21,P$19:P$21))))<0,\"(\",\"\")","v":""},{"$f":"ABS(SUM(IF($AK$19:$AK$21=\"c\",IF(O$19:O$21=\"(\",-P$19:P$21,P$19:P$21))))","v":0},{"$f":"IF(O17=\"(\",\")\",\"\")","v":""},"(",{"$f":"SUMIF($AK$19:$AK$21,$AK17,S$19:S$21)","v":0},")",{"$f":"IF((SUM(IF($AK$19:$AK$21=\"c\",IF(U$19:U$21=\"(\",-V$19:V$21,V$19:V$21))))<0,\"(\",\"\")","v":""},{"$f":"ABS(SUM(IF($AK$19:$AK$21=\"c\",IF(U$19:U$21=\"(\",-V$19:V$21,V$19:V$21))))","v":0},{"$f":"IF(U17=\"(\",\")\",\"\")","v":""},{"$f":"IF((SUM(IF($AK$19:$AK$21=\"c\",IF(X$19:X$21=\"(\",-Y$19:Y$21,Y$19:Y$21))))<0,\"(\",\"\")","v":""},{"$f":"ABS(SUM(IF($AK$19:$AK$21=\"c\",IF(X$19:X$21=\"(\",-Y$19:Y$21,Y$19:Y$21))))","v":0},{"$f":"IF(X17=\"(\",\")\",\"\")","v":""},{"$f":"IF((SUM(IF($AK$19:$AK$21=\"c\",IF(AA$19:AA$21=\"(\",-AB$19:AB$21,AB$19:AB$21))))<0,\"(\",\"\")","v":""},{"$f":"ABS(SUM(IF($AK$19:$AK$21=\"c\",IF(AA$19:AA$21=\"(\",-AB$19:AB$21,AB$19:AB$21))))","v":0},{"$f":"IF(AA17=\"(\",\")\",\"\")","v":""},{"$f":"IF((SUM(IF($AK$19:$AK$21=\"c\",IF(AD$19:AD$21=\"(\",-AE$19:AE$21,AE$19:AE$21))))<0,\"(\",\"\")","v":""},{"$f":"ABS(SUM(IF($AK$19:$AK$21=\"c\",IF(AD$19:AD$21=\"(\",-AE$19:AE$21,AE$19:AE$21))))","v":0},{"$f":"IF(AD17=\"(\",\")\",\"\")","v":""},{"$f":"IF((SUM(IF($AK$19:$AK$21=\"c\",IF(AG$19:AG$21=\"(\",-AH$19:AH$21,AH$19:AH$21))))<0,\"(\",\"\")","v":""},{"$f":"ABS(SUM(IF($AK$19:$AK$21=\"c\",IF(AG$19:AG$21=\"(\",-AH$19:AH$21,AH$19:AH$21))))","v":0},{"$f":"IF(AG17=\"(\",\")\",\"\")","v":""},null,"c"]
[null,null,null,null,null,null,{"$f":"\"за \"&IF(god=\"\",\"предыдущий год\",god-1&\" год\")","v":"за 2012 год"},5311,{"$f":"IF((SUM(IF($AK$19:$AK$21=\"p\",IF(I$19:I$21=\"(\",-J$19:J$21,J$19:J$21))))<0,\"(\",\"\")","v":""},{"$f":"ABS(SUM(IF($AK$19:$AK$21=\"p\",IF(I$19:I$21=\"(\",-J$19:J$21,J$19:J$21))))","v":0},{"$f":"IF(I18=\"(\",\")\",\"\")","v":""},{"$f":"IF((SUM(IF($AK$19:$AK$21=\"p\",IF(L$19:L$21=\"(\",-M$19:M$21,M$19:M$21))))<0,\"(\",\"\")","v":""},{"$f":"ABS(SUM(IF($AK$19:$AK$21=\"p\",IF(L$19:L$21=\"(\",-M$19:M$21,M$19:M$21))))","v":0},{"$f":"IF(L18=\"(\",\")\",\"\")","v":""},{"$f":"IF((SUM(IF($AK$19:$AK$21=\"p\",IF(O$19:O$21=\"(\",-P$19:P$21,P$19:P$21))))<0,\"(\",\"\")","v":""},{"$f":"ABS(SUM(IF($AK$19:$AK$21=\"p\",IF(O$19:O$21=\"(\",-P$19:P$21,P$19:P$21))))","v":0},{"$f":"IF(O18=\"(\",\")\",\"\")","v":""},"(",{"$f":"SUMIF($AK$19:$AK$21,$AK18,S$19:S$21)","v":0},")",{"$f":"IF((SUM(IF($AK$19:$AK$21=\"p\",IF(U$19:U$21=\"(\",-V$19:V$21,V$19:V$21))))<0,\"(\",\"\")","v":""},{"$f":"ABS(SUM(IF($AK$19:$AK$21=\"p\",IF(U$19:U$21=\"(\",-V$19:V$21,V$19:V$21))))","v":0},{"$f":"IF(U18=\"(\",\")\",\"\")","v":""},{"$f":"IF((SUM(IF($AK$19:$AK$21=\"p\",IF(X$19:X$21=\"(\",-Y$19:Y$21,Y$19:Y$21))))<0,\"(\",\"\")","v":""},{"$f":"ABS(SUM(IF($AK$19:$AK$21=\"p\",IF(X$19:X$21=\"(\",-Y$19:Y$21,Y$19:Y$21))))","v":0},{"$f":"IF(X18=\"(\",\")\",\"\")","v":""},{"$f":"IF((SUM(IF($AK$19:$AK$21=\"p\",IF(AA$19:AA$21=\"(\",-AB$19:AB$21,AB$19:AB$21))))<0,\"(\",\"\")","v":""},{"$f":"ABS(SUM(IF($AK$19:$AK$21=\"p\",IF(AA$19:AA$21=\"(\",-AB$19:AB$21,AB$19:AB$21))))","v":0},{"$f":"IF(AA18=\"(\",\")\",\"\")","v":""},{"$f":"IF((SUM(IF($AK$19:$AK$21=\"p\",IF(AD$19:AD$21=\"(\",-AE$19:AE$21,AE$19:AE$21))))<0,\"(\",\"\")","v":""},{"$f":"ABS(SUM(IF($AK$19:$AK$21=\"p\",IF(AD$19:AD$21=\"(\",-AE$19:AE$21,AE$19:AE$21))))","v":0},{"$f":"IF(AD18=\"(\",\")\",\"\")","v":""},{"$f":"IF((SUM(IF($AK$19:$AK$21=\"p\",IF(AG$19:AG$21=\"(\",-AH$19:AH$21,AH$19:AH$21))))<0,\"(\",\"\")","v":""},{"$f":"ABS(SUM(IF($AK$19:$AK$21=\"p\",IF(AG$19:AG$21=\"(\",-AH$19:AH$21,AH$19:AH$21))))","v":0},{"$f":"IF(AG18=\"(\",\")\",\"\")","v":""},null,"p"]
[null,null,null,null,"3.1.1.1",null,{"$f":"\"за \"&IF(god=\"\",\"отчётный год\",god&\" год\")","v":"за 2013 год"},null,null,null,null,null,null,null,null,null,null,"(",null,")",null,null,null,null,null,null,null,null,null,null,null,null,null,null,null,null,"c"]
[null,null,null,null,null,null,{"$f":"\"за \"&IF(god=\"\",\"предыдущий год\",god-1&\" год\")","v":"за 2012 год"},null,null,null,null,null,null,null,null,null,null,"(",null,")",null,null,null,null,null,null,null,null,null,null,null,null,null,null,null,null,"p"]
[null,null,null,null,null,"Добавить группу/вид"]
[null,null,null,null,"3.1.2","Краткосрочные - всего, в том числе: ",{"$f":"\"за \"&IF(god=\"\",\"отчётный год\",god&\" год\")","v":"за 2013 год"},5305,{"$f":"IF((SUM(IF($AK$24:$AK$26=\"c\",IF(I$24:I$26=\"(\",-J$24:J$26,J$24:J$26))))<0,\"(\",\"\")","v":""},{"$f":"ABS(SUM(IF($AK$24:$AK$26=\"c\",IF(I$24:I$26=\"(\",-J$24:J$26,J$24:J$26))))","v":0},{"$f":"IF(I22=\"(\",\")\",\"\")","v":""},{"$f":"IF((SUM(IF($AK$24:$AK$26=\"c\",IF(L$24:L$26=\"(\",-M$24:M$26,M$24:M$26))))<0,\"(\",\"\")","v":""},{"$f":"ABS(SUM(IF($AK$24:$AK$26=\"c\",IF(L$24:L$26=\"(\",-M$24:M$26,M$24:M$26))))","v":0},{"$f":"IF(L22=\"(\",\")\",\"\")","v":""},{"$f":"IF((SUM(IF($AK$24:$AK$26=\"c\",IF(O$24:O$26=\"(\",-P$24:P$26,P$24:P$26))))<0,\"(\",\"\")","v":""},{"$f":"ABS(SUM(IF($AK$24:$AK$26=\"c\",IF(O$24:O$26=\"(\",-P$24:P$26,P$24:P$26))))","v":0},{"$f":"IF(O22=\"(\",\")\",\"\")","v":""},"(",{"$f":"SUMIF($AK$24:$AK$26,$AK22,S$24:S$26)","v":0},")",{"$f":"IF((SUM(IF($AK$24:$AK$26=\"c\",IF(U$24:U$26=\"(\",-V$24:V$26,V$24:V$26))))<0,\"(\",\"\")","v":""},{"$f":"ABS(SUM(IF($AK$24:$AK$26=\"c\",IF(U$24:U$26=\"(\",-V$24:V$26,V$24:V$26))))","v":0},{"$f":"IF(U22=\"(\",\")\",\"\")","v":""},{"$f":"IF((SUM(IF($AK$24:$AK$26=\"c\",IF(X$24:X$26=\"(\",-Y$24:Y$26,Y$24:Y$26))))<0,\"(\",\"\")","v":""},{"$f":"ABS(SUM(IF($AK$24:$AK$26=\"c\",IF(X$24:X$26=\"(\",-Y$24:Y$26,Y$24:Y$26))))","v":0},{"$f":"IF(X22=\"(\",\")\",\"\")","v":""},{"$f":"IF((SUM(IF($AK$24:$AK$26=\"c\",IF(AA$24:AA$26=\"(\",-AB$24:AB$26,AB$24:AB$26))))<0,\"(\",\"\")","v":""},{"$f":"ABS(SUM(IF($AK$24:$AK$26=\"c\",IF(AA$24:AA$26=\"(\",-AB$24:AB$26,AB$24:AB$26))))","v":0},{"$f":"IF(AA22=\"(\",\")\",\"\")","v":""},{"$f":"IF((SUM(IF($AK$24:$AK$26=\"c\",IF(AD$24:AD$26=\"(\",-AE$24:AE$26,AE$24:AE$26))))<0,\"(\",\"\")","v":""},{"$f":"ABS(SUM(IF($AK$24:$AK$26=\"c\",IF(AD$24:AD$26=\"(\",-AE$24:AE$26,AE$24:AE$26))))","v":0},{"$f":"IF(AD22=\"(\",\")\",\"\")","v":""},{"$f":"IF((SUM(IF($AK$24:$AK$26=\"c\",IF(AG$24:AG$26=\"(\",-AH$24:AH$26,AH$24:AH$26))))<0,\"(\",\"\")","v":""},{"$f":"ABS(SUM(IF($AK$24:$AK$26=\"c\",IF(AG$24:AG$26=\"(\",-AH$24:AH$26,AH$24:AH$26))))","v":0},{"$f":"IF(AG22=\"(\",\")\",\"\")","v":""},null,"c"]
[null,null,null,null,null,null,{"$f":"\"за \"&IF(god=\"\",\"предыдущий год\",god-1&\" год\")","v":"за 2012 год"},5315,{"$f":"IF((SUM(IF($AK$24:$AK$26=\"p\",IF(I$24:I$26=\"(\",-J$24:J$26,J$24:J$26))))<0,\"(\",\"\")","v":""},{"$f":"ABS(SUM(IF($AK$24:$AK$26=\"p\",IF(I$24:I$26=\"(\",-J$24:J$26,J$24:J$26))))","v":0},{"$f":"IF(I23=\"(\",\")\",\"\")","v":""},{"$f":"IF((SUM(IF($AK$24:$AK$26=\"p\",IF(L$24:L$26=\"(\",-M$24:M$26,M$24:M$26))))<0,\"(\",\"\")","v":""},{"$f":"ABS(SUM(IF($AK$24:$AK$26=\"p\",IF(L$24:L$26=\"(\",-M$24:M$26,M$24:M$26))))","v":0},{"$f":"IF(L23=\"(\",\")\",\"\")","v":""},{"$f":"IF((SUM(IF($AK$24:$AK$26=\"p\",IF(O$24:O$26=\"(\",-P$24:P$26,P$24:P$26))))<0,\"(\",\"\")","v":""},{"$f":"ABS(SUM(IF($AK$24:$AK$26=\"p\",IF(O$24:O$26=\"(\",-P$24:P$26,P$24:P$26))))","v":0},{"$f":"IF(O23=\"(\",\")\",\"\")","v":""},"(",{"$f":"SUMIF($AK$24:$AK$26,$AK23,S$24:S$26)","v":0},")",{"$f":"IF((SUM(IF($AK$24:$AK$26=\"p\",IF(U$24:U$26=\"(\",-V$24:V$26,V$24:V$26))))<0,\"(\",\"\")","v":""},{"$f":"ABS(SUM(IF($AK$24:$AK$26=\"p\",IF(U$24:U$26=\"(\",-V$24:V$26,V$24:V$26))))","v":0},{"$f":"IF(U23=\"(\",\")\",\"\")","v":""},{"$f":"IF((SUM(IF($AK$24:$AK$26=\"p\",IF(X$24:X$26=\"(\",-Y$24:Y$26,Y$24:Y$26))))<0,\"(\",\"\")","v":""},{"$f":"ABS(SUM(IF($AK$24:$AK$26=\"p\",IF(X$24:X$26=\"(\",-Y$24:Y$26,Y$24:Y$26))))","v":0},{"$f":"IF(X23=\"(\",\")\",\"\")","v":""},{"$f":"IF((SUM(IF($AK$24:$AK$26=\"p\",IF(AA$24:AA$26=\"(\",-AB$24:AB$26,AB$24:AB$26))))<0,\"(\",\"\")","v":""},{"$f":"ABS(SUM(IF($AK$24:$AK$26=\"p\",IF(AA$24:AA$26=\"(\",-AB$24:AB$26,AB$24:AB$26))))","v":0},{"$f":"IF(AA23=\"(\",\")\",\"\")","v":""},{"$f":"IF((SUM(IF($AK$24:$AK$26=\"p\",IF(AD$24:AD$26=\"(\",-AE$24:AE$26,AE$24:AE$26))))<0,\"(\",\"\")","v":""},{"$f":"ABS(SUM(IF($AK$24:$AK$26=\"p\",IF(AD$24:AD$26=\"(\",-AE$24:AE$26,AE$24:AE$26))))","v":0},{"$f":"IF(AD23=\"(\",\")\",\"\")","v":""},{"$f":"IF((SUM(IF($AK$24:$AK$26=\"p\",IF(AG$24:AG$26=\"(\",-AH$24:AH$26,AH$24:AH$26))))<0,\"(\",\"\")","v":""},{"$f":"ABS(SUM(IF($AK$24:$AK$26=\"p\",IF(AG$24:AG$26=\"(\",-AH$24:AH$26,AH$24:AH$26))))","v":0},{"$f":"IF(AG23=\"(\",\")\",\"\")","v":""},null,"p"]
[null,null,null,null,"3.1.2.1",null,{"$f":"\"за \"&IF(god=\"\",\"отчётный год\",god&\" год\")","v":"за 2013 год"},null,null,null,null,null,null,null,null,null,null,"(",null,")",null,null,null,null,null,null,null,null,null,null,null,null,null,null,null,null,"c"]
[null,null,null,null,null,null,{"$f":"\"за \"&IF(god=\"\",\"предыдущий год\",god-1&\" год\")","v":"за 2012 год"},null,null,null,null,null,null,null,null,null,null,"(",null,")",null,null,null,null,null,null,null,null,null,null,null,null,null,null,null,null,"p"]
[null,null,null,null,null,"Добавить группу/вид"]
[null,null,null,null,"3.1.3","Финансовых вложений - \nитого",{"$f":"\"за \"&IF(god=\"\",\"отчётный год\",god&\" год\")","v":"за 2013 год"},5300,{"$f":"IF((IF(I17=\"(\",-J17,J17)+IF(I22=\"(\",-J22,J22))<0,\"(\",\"\")","v":""},{"$f":"ABS(IF(I17=\"(\",-J17,J17)+IF(I22=\"(\",-J22,J22))","v":0},{"$f":"IF(I27=\"(\",\")\",\"\")","v":""},{"$f":"IF((IF(L17=\"(\",-M17,M17)+IF(L22=\"(\",-M22,M22))<0,\"(\",\"\")","v":""},{"$f":"ABS(IF(L17=\"(\",-M17,M17)+IF(L22=\"(\",-M22,M22))","v":0},{"$f":"IF(L27=\"(\",\")\",\"\")","v":""},{"$f":"IF((IF(O17=\"(\",-P17,P17)+IF(O22=\"(\",-P22,P22))<0,\"(\",\"\")","v":""},{"$f":"ABS(IF(O17=\"(\",-P17,P17)+IF(O22=\"(\",-P22,P22))","v":0},{"$f":"IF(O27=\"(\",\")\",\"\")","v":""},"(",{"$f":"S17+S22","v":0},")",{"$f":"IF((IF(U17=\"(\",-V17,V17)+IF(U22=\"(\",-V22,V22))<0,\"(\",\"\")","v":""},{"$f":"ABS(IF(U17=\"(\",-V17,V17)+IF(U22=\"(\",-V22,V22))","v":0},{"$f":"IF(U27=\"(\",\")\",\"\")","v":""},{"$f":"IF((IF(X17=\"(\",-Y17,Y17)+IF(X22=\"(\",-Y22,Y22))<0,\"(\",\"\")","v":""},{"$f":"ABS(IF(X17=\"(\",-Y17,Y17)+IF(X22=\"(\",-Y22,Y22))","v":0},{"$f":"IF(X27=\"(\",\")\",\"\")","v":""},{"$f":"IF((IF(AA17=\"(\",-AB17,AB17)+IF(AA22=\"(\",-AB22,AB22))<0,\"(\",\"\")","v":""},{"$f":"ABS(IF(AA17=\"(\",-AB17,AB17)+IF(AA22=\"(\",-AB22,AB22))","v":0},{"$f":"IF(AA27=\"(\",\")\",\"\")","v":""},{"$f":"IF((IF(AD17=\"(\",-AE17,AE17)+IF(AD22=\"(\",-AE22,AE22))<0,\"(\",\"\")","v":""},{"$f":"ABS(IF(AD17=\"(\",-AE17,AE17)+IF(AD22=\"(\",-AE22,AE22))","v":0},{"$f":"IF(AD27=\"(\",\")\",\"\")","v":""},{"$f":"IF((IF(AG17=\"(\",-AH17,AH17)+IF(AG22=\"(\",-AH22,AH22))<0,\"(\",\"\")","v":""},{"$f":"ABS(IF(AG17=\"(\",-AH17,AH17)+IF(AG22=\"(\",-AH22,AH22))","v":0},{"$f":"IF(AG27=\"(\",\")\",\"\")","v":""},null,"c"]
[null,null,null,null,null,null,{"$f":"\"за \"&IF(god=\"\",\"предыдущий год\",god-1&\" год\")","v":"за 2012 год"},5310,{"$f":"IF((IF(I18=\"(\",-J18,J18)+IF(I23=\"(\",-J23,J23))<0,\"(\",\"\")","v":""},{"$f":"ABS(IF(I18=\"(\",-J18,J18)+IF(I23=\"(\",-J23,J23))","v":0},{"$f":"IF(I28=\"(\",\")\",\"\")","v":""},{"$f":"IF((IF(L18=\"(\",-M18,M18)+IF(L23=\"(\",-M23,M23))<0,\"(\",\"\")","v":""},{"$f":"ABS(IF(L18=\"(\",-M18,M18)+IF(L23=\"(\",-M23,M23))","v":0},{"$f":"IF(L28=\"(\",\")\",\"\")","v":""},{"$f":"IF((IF(O18=\"(\",-P18,P18)+IF(O23=\"(\",-P23,P23))<0,\"(\",\"\")","v":""},{"$f":"ABS(IF(O18=\"(\",-P18,P18)+IF(O23=\"(\",-P23,P23))","v":0},{"$f":"IF(O28=\"(\",\")\",\"\")","v":""},"(",{"$f":"S18+S23","v":0},")",{"$f":"IF((IF(U18=\"(\",-V18,V18)+IF(U23=\"(\",-V23,V23))<0,\"(\",\"\")","v":""},{"$f":"ABS(IF(U18=\"(\",-V18,V18)+IF(U23=\"(\",-V23,V23))","v":0},{"$f":"IF(U28=\"(\",\")\",\"\")","v":""},{"$f":"IF((IF(X18=\"(\",-Y18,Y18)+IF(X23=\"(\",-Y23,Y23))<0,\"(\",\"\")","v":""},{"$f":"ABS(IF(X18=\"(\",-Y18,Y18)+IF(X23=\"(\",-Y23,Y23))","v":0},{"$f":"IF(X28=\"(\",\")\",\"\")","v":""},{"$f":"IF((IF(AA18=\"(\",-AB18,AB18)+IF(AA23=\"(\",-AB23,AB23))<0,\"(\",\"\")","v":""},{"$f":"ABS(IF(AA18=\"(\",-AB18,AB18)+IF(AA23=\"(\",-AB23,AB23))","v":0},{"$f":"IF(AA28=\"(\",\")\",\"\")","v":""},{"$f":"IF((IF(AD18=\"(\",-AE18,AE18)+IF(AD23=\"(\",-AE23,AE23))<0,\"(\",\"\")","v":""},{"$f":"ABS(IF(AD18=\"(\",-AE18,AE18)+IF(AD23=\"(\",-AE23,AE23))","v":0},{"$f":"IF(AD28=\"(\",\")\",\"\")","v":""},{"$f":"IF((IF(AG18=\"(\",-AH18,AH18)+IF(AG23=\"(\",-AH23,AH23))<0,\"(\",\"\")","v":""},{"$f":"ABS(IF(AG18=\"(\",-AH18,AH18)+IF(AG23=\"(\",-AH23,AH23))","v":0},{"$f":"IF(AG28=\"(\",\")\",\"\")","v":""},null,"p"]
[]
[null,null,null,null,"*","Накопленная корректировка определяется как:"]
[null,null,null,null,null,"- разница между первоначальной и текущей рыночной стоимостью - по финансовым вложениям, по которым можно определить текущую рыночную стоимость;"]
[null,null,null,null,null,"- начисленная в течение срока обращения разница между первоначальной стоимостью и номинальной стоимостью - по долговым ценным бумагам, по которым не определяется текущая рыночная стоимость;"]
[null,null,null,null,null,"- величина резерва под обесценение финансовых вложений, созданного на предыдущую отчетную дату, - по финансовым вложениям, по которым не определяется текущая рыночная стоимость;"]
[]
[]
[null,null,null,null,"3.2. Иное использование финансовых вложений"]
[]
[null,null,null,null,null,null,null,null,null,null,null,null,null,null,null,{"$f":"IF(unit=\"\",\"\",unit)","v":"тыс.руб."}]
[null,null,null,null,"№\nп/п","Наименование",null,"Код",{"$f":"\"На \"&IF(report_date = \"\",\"отчётную дату отчётного года\",report_date& \" г.\")","v":"На 31.12.2014 г."},null,null,{"$f":"\"На 31 декабря \"&IF(god = \"\",\"предыдущего года\",god-1& \" г.\")","v":"На 31 декабря 2012 г."},null,null,{"$f":"\"На 31 декабря \"&IF(god = \"\",\"года, предшествующего предыдущему\",god-2& \" г.\")","v":"На 31 декабря 2011 г."}]
[null,null,null,null,1,2,null,3,null,4,null,4,null,null,null,5]
[null,null,null,null,"3.2.1","Финансовые вложения, находящиеся в залоге - всего, в том числе: ",null,5320,{"$f":"IF((SUMIF(I42:I43,\"\",J42:J43)-SUMIF(I42:I43,\"(\",J42:J43))<0,\"(\",\"\")","v":""},{"$f":"ABS(SUMIF(I42:I43,\"\",J42:J43)-SUMIF(I42:I43,\"(\",J42:J43))","v":0},{"$f":"IF(I41=\"(\",\")\",\"\")","v":""},{"$f":"IF((SUMIF(L42:L43,\"\",M42:M43)-SUMIF(L42:L43,\"(\",M42:M43))<0,\"(\",\"\")","v":""},{"$f":"ABS(SUMIF(L42:L43,\"\",M42:M43)-SUMIF(L42:L43,\"(\",M42:M43))","v":0},{"$f":"IF(L41=\"(\",\")\",\"\")","v":""},{"$f":"IF((SUMIF(O42:O43,\"\",P42:P43)-SUMIF(O42:O43,\"(\",P42:P43))<0,\"(\",\"\")","v":""},{"$f":"ABS(SUMIF(O42:O43,\"\",P42:P43)-SUMIF(O42:O43,\"(\",P42:P43))","v":0},{"$f":"IF(O41=\"(\",\")\",\"\")","v":""}]
[null,null,null,null,"3.2.1.1"]
[null,null,null,null,null,"Добавить группу/вид"]
[null,null,null,null,"3.2.2","Финансовые вложения, переданные третьим лицам (кроме продажи) - всего, в том числе: ",null,5325,{"$f":"IF((SUMIF(I45:I46,\"\",J45:J46)-SUMIF(I45:I46,\"(\",J45:J46))<0,\"(\",\"\")","v":""},{"$f":"ABS(SUMIF(I45:I46,\"\",J45:J46)-SUMIF(I45:I46,\"(\",J45:J46))","v":0},{"$f":"IF(I44=\"(\",\")\",\"\")","v":""},{"$f":"IF((SUMIF(L45:L46,\"\",M45:M46)-SUMIF(L45:L46,\"(\",M45:M46))<0,\"(\",\"\")","v":""},{"$f":"ABS(SUMIF(L45:L46,\"\",M45:M46)-SUMIF(L45:L46,\"(\",M45:M46))","v":0},{"$f":"IF(L44=\"(\",\")\",\"\")","v":""},{"$f":"IF((SUMIF(O45:O46,\"\",P45:P46)-SUMIF(O45:O46,\"(\",P45:P46))<0,\"(\",\"\")","v":""},{"$f":"ABS(SUMIF(O45:O46,\"\",P45:P46)-SUMIF(O45:O46,\"(\",P45:P46))","v":0},{"$f":"IF(O44=\"(\",\")\",\"\")","v":""}]
[null,null,null,null,"3.2.2.1"]
[null,null,null,null,null,"Добавить группу/вид"]
[null,null,null,null,"3.2.3","Иное использование финансовых вложений",null,5329]
[]
[]
[null,null,null,null,"4. Запасы"]
[]
[null,null,null,null,"4.1. Наличие и движение запасов"]
[]
[null,null,null,null,null,null,null,null,null,null,null,null,null,null,null,null,null,null,null,null,null,null,null,null,null,null,null,null,null,null,null,null,null,{"$f":"IF(unit=\"\",\"\",unit)","v":"тыс.руб."}]
[null,null,null,null,"№\nп/п","Наименование","Период","Код","На начало года",null,null,null,null,null,"Изменения за период",null,null,null,null,null,null,null,null,null,null,null,null,null,null,"На конец периода"]
[null,null,null,null,null,null,null,null,"себестоимость",null,null,"величина резерва\nпод снижение стоимости",null,null,"поступления\nи затраты",null,null,"выбыло",null,null,null,null,null,"убытков\nот снижения стоимости",null,null,"оборот запасов между их группами (видами)",null,null,"себестоимость",null,null,"величина резерва\nпод снижение стоимости"]
[null,null,null,null,null,null,null,null,null,null,null,null,null,null,null,null,null,"себестоимость",null,null,"резерв под снижение стоимости"]
[null,null,null,null,1,2,3,4,null,5,null,6,null,null,null,7,null,8,null,null,null,9,null,10,null,null,null,11,null,null,12,null,13]
[null,null,null,null,"4.1","Запасы - всего, в том числе: ",{"$f":"\"за \"&IF(god=\"\",\"отчётный год\",god&\" год\")","v":"за 2013 год"},5400,{"$f":"IF((SUM(IF($AK$61:$AK$63=\"c\",IF(I$61:I$63=\"(\",-J$61:J$63,J$61:J$63))))<0,\"(\",\"\")","v":""},{"$f":"ABS(SUM(IF($AK$61:$AK$63=\"c\",IF(I$61:I$63=\"(\",-J$61:J$63,J$61:J$63))))","v":0},{"$f":"IF(I59=\"(\",\")\",\"\")","v":""},"(",{"$f":"SUMIF($AK$61:$AK$63,$AK59,M$61:M$63)","v":0},")",{"$f":"IF((SUM(IF($AK$61:$AK$63=\"c\",IF(O$61:O$63=\"(\",-P$61:P$63,P$61:P$63))))<0,\"(\",\"\")","v":""},{"$f":"ABS(SUM(IF($AK$61:$AK$63=\"c\",IF(O$61:O$63=\"(\",-P$61:P$63,P$61:P$63))))","v":0},{"$f":"IF(O59=\"(\",\")\",\"\")","v":""},"(",{"$f":"SUMIF($AK$61:$AK$63,$AK59,S$61:S$63)","v":0},")",{"$f":"IF((SUM(IF($AK$61:$AK$63=\"c\",IF(U$61:U$63=\"(\",-V$61:V$63,V$61:V$63))))<0,\"(\",\"\")","v":""},{"$f":"ABS(SUM(IF($AK$61:$AK$63=\"c\",IF(U$61:U$63=\"(\",-V$61:V$63,V$61:V$63))))","v":0},{"$f":"IF(U59=\"(\",\")\",\"\")","v":""},{"$f":"IF((SUM(IF($AK$61:$AK$63=\"c\",IF(X$61:X$63=\"(\",-Y$61:Y$63,Y$61:Y$63))))<0,\"(\",\"\")","v":""},{"$f":"ABS(SUM(IF($AK$61:$AK$63=\"c\",IF(X$61:X$63=\"(\",-Y$61:Y$63,Y$61:Y$63))))","v":0},{"$f":"IF(X59=\"(\",\")\",\"\")","v":""},null,"x",null,{"$f":"IF((SUM(IF($AK$61:$AK$63=\"c\",IF(AD$61:AD$63=\"(\",-AE$61:AE$63,AE$61:AE$63))))<0,\"(\",\"\")","v":""},{"$f":"ABS(SUM(IF($AK$61:$AK$63=\"c\",IF(AD$61:AD$63=\"(\",-AE$61:AE$63,AE$61:AE$63))))","v":0},{"$f":"IF(AD59=\"(\",\")\",\"\")","v":""},"(",{"$f":"SUMIF($AK$61:$AK$63,$AK59,AH$61:AH$63)","v":0},")",null,"c"]
[null,null,null,null,null,null,{"$f":"\"за \"&IF(god=\"\",\"предыдущий год\",god-1&\" год\")","v":"за 2012 год"},5420,{"$f":"IF((SUM(IF($AK$61:$AK$63=\"p\",IF(I$61:I$63=\"(\",-J$61:J$63,J$61:J$63))))<0,\"(\",\"\")","v":""},{"$f":"ABS(SUM(IF($AK$61:$AK$63=\"p\",IF(I$61:I$63=\"(\",-J$61:J$63,J$61:J$63))))","v":0},{"$f":"IF(I60=\"(\",\")\",\"\")","v":""},"(",{"$f":"SUMIF($AK$61:$AK$63,$AK60,M$61:M$63)","v":0},")",{"$f":"IF((SUM(IF($AK$61:$AK$63=\"p\",IF(O$61:O$63=\"(\",-P$61:P$63,P$61:P$63))))<0,\"(\",\"\")","v":""},{"$f":"ABS(SUM(IF($AK$61:$AK$63=\"p\",IF(O$61:O$63=\"(\",-P$61:P$63,P$61:P$63))))","v":0},{"$f":"IF(O60=\"(\",\")\",\"\")","v":""},"(",{"$f":"SUMIF($AK$61:$AK$63,$AK60,S$61:S$63)","v":0},")",{"$f":"IF((SUM(IF($AK$61:$AK$63=\"p\",IF(U$61:U$63=\"(\",-V$61:V$63,V$61:V$63))))<0,\"(\",\"\")","v":""},{"$f":"ABS(SUM(IF($AK$61:$AK$63=\"p\",IF(U$61:U$63=\"(\",-V$61:V$63,V$61:V$63))))","v":0},{"$f":"IF(U60=\"(\",\")\",\"\")","v":""},{"$f":"IF((SUM(IF($AK$61:$AK$63=\"p\",IF(X$61:X$63=\"(\",-Y$61:Y$63,Y$61:Y$63))))<0,\"(\",\"\")","v":""},{"$f":"ABS(SUM(IF($AK$61:$AK$63=\"p\",IF(X$61:X$63=\"(\",-Y$61:Y$63,Y$61:Y$63))))","v":0},{"$f":"IF(X60=\"(\",\")\",\"\")","v":""},null,"x",null,{"$f":"IF((SUM(IF($AK$61:$AK$63=\"p\",IF(AD$61:AD$63=\"(\",-AE$61:AE$63,AE$61:AE$63))))<0,\"(\",\"\")","v":""},{"$f":"ABS(SUM(IF($AK$61:$AK$63=\"p\",IF(AD$61:AD$63=\"(\",-AE$61:AE$63,AE$61:AE$63))))","v":0},{"$f":"IF(AD60=\"(\",\")\",\"\")","v":""},"(",{"$f":"SUMIF($AK$61:$AK$63,$AK60,AH$61:AH$63)","v":0},")",null,"p"]
[null,null,null,null,"4.1.1",null,{"$f":"\"за \"&IF(god=\"\",\"отчётный год\",god&\" год\")","v":"за 2013 год"},null,null,null,null,"(",null,")",null,null,null,"(",null,")",null,null,null,null,null,null,null,null,null,null,null,null,"(",null,")",null,"c"]
[null,null,null,null,null,null,{"$f":"\"за \"&IF(god=\"\",\"предыдущий год\",god-1&\" год\")","v":"за 2012 год"},null,null,null,null,"(",null,")",null,null,null,"(",null,")",null,null,null,null,null,null,null,null,null,null,null,null,"(",null,")",null,"p"]
[null,null,null,null,null,"Добавить группу/вид"]
[]
[]
[null,null,null,null,"4.2. Запасы в залоге"]
[]
[null,null,null,null,null,null,null,null,null,null,null,null,null,null,null,{"$f":"IF(unit=\"\",\"\",unit)","v":"тыс.руб."}]
[null,null,null,null,"№\nп/п","Наименование",null,"Код",{"$f":"\"На \"&IF(report_date = \"\",\"отчётную дату отчётного года\",report_date& \" г.\")","v":"На 31.12.2014 г."},null,null,{"$f":"\"На 31 декабря \"&IF(god = \"\",\"предыдущего года\",god-1& \" г.\")","v":"На 31 декабря 2012 г."},null,null,{"$f":"\"На 31 декабря \"&IF(god = \"\",\"года, предшествующего предыдущему\",god-2& \" г.\")","v":"На 31 декабря 2011 г."}]
[null,null,null,null,1,2,null,3,null,4,null,5,null,null,null,6]
[null,null,null,null,"4.2.1","Запасы, не оплаченные на отчетную дату - всего, в том числе: ",null,5440,{"$f":"IF((SUMIF(I72:I73,\"\",J72:J73)-SUMIF(I72:I73,\"(\",J72:J73))<0,\"(\",\"\")","v":""},{"$f":"ABS(SUMIF(I72:I73,\"\",J72:J73)-SUMIF(I72:I73,\"(\",J72:J73))","v":0},{"$f":"IF(I71=\"(\",\")\",\"\")","v":""},{"$f":"IF((SUMIF(L72:L73,\"\",M72:M73)-SUMIF(L72:L73,\"(\",M72:M73))<0,\"(\",\"\")","v":""},{"$f":"ABS(SUMIF(L72:L73,\"\",M72:M73)-SUMIF(L72:L73,\"(\",M72:M73))","v":0},{"$f":"IF(L71=\"(\",\")\",\"\")","v":""},{"$f":"IF((SUMIF(O72:O73,\"\",P72:P73)-SUMIF(O72:O73,\"(\",P72:P73))<0,\"(\",\"\")","v":""},{"$f":"ABS(SUMIF(O72:O73,\"\",P72:P73)-SUMIF(O72:O73,\"(\",P72:P73))","v":0},{"$f":"IF(O71=\"(\",\")\",\"\")","v":""}]
[null,null,null,null,"4.2.1.1"]
[null,null,null,null,null,"Добавить группу/вид"]
[null,null,null,null,"4.2.2","Запасы, находящиеся в залоге по договору - всего, в том числе: ",null,5445,{"$f":"IF((SUMIF(I75:I76,\"\",J75:J76)-SUMIF(I75:I76,\"(\",J75:J76))<0,\"(\",\"\")","v":""},{"$f":"ABS(SUMIF(I75:I76,\"\",J75:J76)-SUMIF(I75:I76,\"(\",J75:J76))","v":0},{"$f":"IF(I74=\"(\",\")\",\"\")","v":""},{"$f":"IF((SUMIF(L75:L76,\"\",M75:M76)-SUMIF(L75:L76,\"(\",M75:M76))<0,\"(\",\"\")","v":""},{"$f":"ABS(SUMIF(L75:L76,\"\",M75:M76)-SUMIF(L75:L76,\"(\",M75:M76))","v":0},{"$f":"IF(L74=\"(\",\")\",\"\")","v":""},{"$f":"IF((SUMIF(O75:O76,\"\",P75:P76)-SUMIF(O75:O76,\"(\",P75:P76))<0,\"(\",\"\")","v":""},{"$f":"ABS(SUMIF(O75:O76,\"\",P75:P76)-SUMIF(O75:O76,\"(\",P75:P76))","v":0},{"$f":"IF(O74=\"(\",\")\",\"\")","v":""}]
[null,null,null,null,"4.2.2.1"]
[null,null,null,null,null,"Добавить группу/вид"]

{"sheet":"Стр 10-12","index":7,"n_rows":92,"n_cols":40,"rows_kept":92,"cut":false,"hidden":false,"merged":[[18,4,19,4],[18,5,19,5],[13,32,14,34],[14,26,14,28],[12,4,14,4],[13,20,13,28],[16,4,17,4],[9,4,9,37],[16,5,17,5],[13,29,14,31],[12,32,12,37],[15,29,15,31],[15,35,15,37],[7,4,7,37],[12,14,12,31],[15,20,15,22],[14,23,14,25],[14,17,14,19],[13,8,14,10],[13,35,14,37],[12,5,14,5],[12,6,14,6],[12,8,12,13],[23,4,24,4],[23,5,24,5],[14,20,14,22],[13,11,14,13],[13,14,13,19],[15,11,15,13],[12,7,14,7],[14,14,14,16],[21,4,22,4],[21,5,22,5],[36,20,36,22],[32,4,32,25],[35,20,35,25],[36,23,36,25],[36,14,36,16],[35,14,35,19],[36,8,36,10],[36,11,36,13],[26,4,27,4],[26,5,27,5],[36,17,36,19],[46,7,48,7],[37,5,37,6],[37,14,37,16],[35,4,36,4],[35,5,36,6],[35,7,36,7],[35,8,35,13],[38,5,38,6],[39,5,39,6],[46,4,48,4],[46,5,48,5],[46,6,48,6],[43,4,43,28],[46,8,48,10],[46,11,46,25],[46,26,48,28],[47,11,47,16],[47,17,47,22],[47,23,48,25],[48,11,48,13],[48,14,48,16],[48,17,48,19],[48,20,48,22],[55,4,56,4],[55,5,56,5],[57,4,58,4],[57,5,58,5],[49,17,49,19],[50,4,51,4],[50,5,51,5],[52,4,53,4],[52,5,53,5],[80,11,80,13],[60,4,61,4],[60,5,61,5],[69,5,69,6],[69,8,69,10],[69,11,69,13],[66,4,66,16],[79,5,79,6],[79,8,79,10],[79,11,79,13],[70,5,70,6],[76,4,76,13],[69,14,69,16],[70,11,70,13],[71,5,71,6],[72,5,72,6],[91,5,91,6],[80,5,80,6],[83,5,83,6],[84,5,84,6],[86,5,86,6],[88,5,88,6],[81,5,81,6],[82,5,82,6],[85,5,85,6],[89,5,89,6]]}
[]
[]
[]
[]
[]
[]
[null,null,null,null,null,null,null,null,null,null,null,null,null,null,null,null,null,null,null,null,null,null,null,null,null,null,null,null,null,null,null,null,null,null,null,null,null,"Форма 0710005 с. 10-12"]
[null,null,null,null,"5. Дебиторская и кредиторская задолженность"]
[]
[null,null,null,null,"5.1. Наличие и движение дебиторской задолженности"]
[]
[null,null,null,null,null,null,null,null,null,null,null,null,null,null,null,null,null,null,null,null,null,null,null,null,null,null,null,null,null,null,null,null,null,null,null,null,{"$f":"IF(unit=\"\",\"\",unit)","v":"тыс.руб."}]
[null,null,null,null,"№\nп/п","Наименование","Период","Код","На начало года",null,null,null,null,null,"Изменения за период",null,null,null,null,null,null,null,null,null,null,null,null,null,null,null,null,null,"На конец периода"]
[null,null,null,null,null,null,null,null,"учтенная по условиям договора",null,null,"величина резерва по сомнительным долгам",null,null,"поступление",null,null,null,null,null,"выбыло",null,null,null,null,null,null,null,null,"перевод из долго- в краткосрочную и из кратко- в долгосрочную задолженности",null,null,"учтенная по условиям договора",null,null,"величина резерва\nпо сомнительным долгам"]
[null,null,null,null,null,null,null,null,null,null,null,null,null,null,"в результате хозяйственных операций (сумма долга по сделке операции) *",null,null,"причитающиеся проценты, штрафы и иные начисления *",null,null,"погашение",null,null,"списание на финансовый результат *",null,null,"восстановление резерва"]
[null,null,null,null,1,2,3,4," ",5," ",6,null,null," ",7," "," ",8," ",9,null,null,null,10,null," ",11," ",12,null,null," ",13," ",14]
[null,null,null,null,"5.1.1","Долгосрочная дебиторская задолженность - всего, в том числе: ",{"$f":"\"за \"&IF(god=\"\",\"отчётный год\",god&\" год\")","v":"за 2013 год"},5501,{"$f":"IF((SUM(IF($AN$19:$AN$21=\"c\",IF(I$19:I$21=\"(\",-J$19:J$21,J$19:J$21))))<0,\"(\",\"\")","v":""},{"$f":"ABS(SUM(IF($AN$19:$AN$21=\"c\",IF(I$19:I$21=\"(\",-J$19:J$21,J$19:J$21))))","v":0},{"$f":"IF(I17=\"(\",\")\",\"\")","v":""},"(",{"$f":"SUMIF($AN$19:$AN$21,$AN17,M$19:M$21)","v":0},")",{"$f":"IF((SUM(IF($AN$19:$AN$21=\"c\",IF(O$19:O$21=\"(\",-P$19:P$21,P$19:P$21))))<0,\"(\",\"\")","v":""},{"$f":"ABS(SUM(IF($AN$19:$AN$21=\"c\",IF(O$19:O$21=\"(\",-P$19:P$21,P$19:P$21))))","v":0},{"$f":"IF(O17=\"(\",\")\",\"\")","v":""},{"$f":"IF((SUM(IF($AN$19:$AN$21=\"c\",IF(R$19:R$21=\"(\",-S$19:S$21,S$19:S$21))))<0,\"(\",\"\")","v":""},{"$f":"ABS(SUM(IF($AN$19:$AN$21=\"c\",IF(R$19:R$21=\"(\",-S$19:S$21,S$19:S$21))))","v":0},{"$f":"IF(R17=\"(\",\")\",\"\")","v":""},"(",{"$f":"SUMIF($AN$19:$AN$21,$AN17,V$19:V$21)","v":0},")","(",{"$f":"SUMIF($AN$19:$AN$21,$AN17,Y$19:Y$21)","v":0},")",{"$f":"IF((SUM(IF($AN$19:$AN$21=\"c\",IF(AA$19:AA$21=\"(\",-AB$19:AB$21,AB$19:AB$21))))<0,\"(\",\"\")","v":""},{"$f":"ABS(SUM(IF($AN$19:$AN$21=\"c\",IF(AA$19:AA$21=\"(\",-AB$19:AB$21,AB$19:AB$21))))","v":0},{"$f":"IF(AA17=\"(\",\")\",\"\")","v":""},"(",{"$f":"SUMIF($AN$19:$AN$21,$AN17,AE$19:AE$21)","v":0},")",{"$f":"IF((SUM(IF($AN$19:$AN$21=\"c\",IF(AG$19:AG$21=\"(\",-AH$19:AH$21,AH$19:AH$21))))<0,\"(\",\"\")","v":""},{"$f":"ABS(SUM(IF($AN$19:$AN$21=\"c\",IF(AG$19:AG$21=\"(\",-AH$19:AH$21,AH$19:AH$21))))","v":0},{"$f":"IF(AG17=\"(\",\")\",\"\")","v":""},"(",{"$f":"SUMIF($AN$19:$AN$21,$AN17,AK$19:AK$21)","v":0},")",null,"c"]
[null,null,null,null,null,null,{"$f":"\"за \"&IF(god=\"\",\"предыдущий год\",god-1&\" год\")","v":"за 2012 год"},5521,{"$f":"IF((SUM(IF($AN$19:$AN$21=\"p\",IF(I$19:I$21=\"(\",-J$19:J$21,J$19:J$21))))<0,\"(\",\"\")","v":""},{"$f":"ABS(SUM(IF($AN$19:$AN$21=\"p\",IF(I$19:I$21=\"(\",-J$19:J$21,J$19:J$21))))","v":0},{"$f":"IF(I18=\"(\",\")\",\"\")","v":""},"(",{"$f":"SUMIF($AN$19:$AN$21,$AN18,M$19:M$21)","v":0},")",{"$f":"IF((SUM(IF($AN$19:$AN$21=\"p\",IF(O$19:O$21=\"(\",-P$19:P$21,P$19:P$21))))<0,\"(\",\"\")","v":""},{"$f":"ABS(SUM(IF($AN$19:$AN$21=\"p\",IF(O$19:O$21=\"(\",-P$19:P$21,P$19:P$21))))","v":0},{"$f":"IF(O18=\"(\",\")\",\"\")","v":""},{"$f":"IF((SUM(IF($AN$19:$AN$21=\"p\",IF(R$19:R$21=\"(\",-S$19:S$21,S$19:S$21))))<0,\"(\",\"\")","v":""},{"$f":"ABS(SUM(IF($AN$19:$AN$21=\"p\",IF(R$19:R$21=\"(\",-S$19:S$21,S$19:S$21))))","v":0},{"$f":"IF(R18=\"(\",\")\",\"\")","v":""},"(",{"$f":"SUMIF($AN$19:$AN$21,$AN18,V$19:V$21)","v":0},")","(",{"$f":"SUMIF($AN$19:$AN$21,$AN18,Y$19:Y$21)","v":0},")",{"$f":"IF((SUM(IF($AN$19:$AN$21=\"p\",IF(AA$19:AA$21=\"(\",-AB$19:AB$21,AB$19:AB$21))))<0,\"(\",\"\")","v":""},{"$f":"ABS(SUM(IF($AN$19:$AN$21=\"p\",IF(AA$19:AA$21=\"(\",-AB$19:AB$21,AB$19:AB$21))))","v":0},{"$f":"IF(AA18=\"(\",\")\",\"\")","v":""},"(",{"$f":"SUMIF($AN$19:$AN$21,$AN18,AE$19:AE$21)","v":0},")",{"$f":"IF((SUM(IF($AN$19:$AN$21=\"p\",IF(AG$19:AG$21=\"(\",-AH$19:AH$21,AH$19:AH$21))))<0,\"(\",\"\")","v":""},{"$f":"ABS(SUM(IF($AN$19:$AN$21=\"p\",IF(AG$19:AG$21=\"(\",-AH$19:AH$21,AH$19:AH$21))))","v":0},{"$f":"IF(AG18=\"(\",\")\",\"\")","v":""},"(",{"$f":"SUMIF($AN$19:$AN$21,$AN18,AK$19:AK$21)","v":0},")",null,"p"]
[null,null,null,null,"5.1.1.1",null,{"$f":"\"за \"&IF(god=\"\",\"отчётный год\",god&\" год\")","v":"за 2013 год"},null,null,null,null,"(",null,")",null,null,null,null,null,null,"(",null,")","(",null,")",null,null,null,"(",null,")",null,null,null,"(",null,")",null,"c"]
[null,null,null,null,null,null,{"$f":"\"за \"&IF(god=\"\",\"предыдущий год\",god-1&\" год\")","v":"за 2012 год"},null,null,null,null,"(",null,")",null,null,null,null,null,null,"(",null,")","(",null,")",null,null,null,"(",null,")",null,null,null,"(",null,")",null,"p"]
[null,null,null,null,null,"Добавить вид"]
[null,null,null,null,"5.1.2","Краткосрочная дебиторская задолженность - всего, в том числе: ",{"$f":"\"за \"&IF(god=\"\",\"отчётный год\",god&\" год\")","v":"за 2013 год"},5510,{"$f":"IF((SUM(IF($AN$24:$AN$26=\"c\",IF(I$24:I$26=\"(\",-J$24:J$26,J$24:J$26))))<0,\"(\",\"\")","v":""},{"$f":"ABS(SUM(IF($AN$24:$AN$26=\"c\",IF(I$24:I$26=\"(\",-J$24:J$26,J$24:J$26))))","v":0},{"$f":"IF(I22=\"(\",\")\",\"\")","v":""},"(",{"$f":"SUMIF($AN$24:$AN$26,$AN22,M$24:M$26)","v":0},")",{"$f":"IF((SUM(IF($AN$24:$AN$26=\"c\",IF(O$24:O$26=\"(\",-P$24:P$26,P$24:P$26))))<0,\"(\",\"\")","v":""},{"$f":"ABS(SUM(IF($AN$24:$AN$26=\"c\",IF(O$24:O$26=\"(\",-P$24:P$26,P$24:P$26))))","v":0},{"$f":"IF(O22=\"(\",\")\",\"\")","v":""},{"$f":"IF((SUM(IF($AN$24:$AN$26=\"c\",IF(R$24:R$26=\"(\",-S$24:S$26,S$24:S$26))))<0,\"(\",\"\")","v":""},{"$f":"ABS(SUM(IF($AN$24:$AN$26=\"c\",IF(R$24:R$26=\"(\",-S$24:S$26,S$24:S$26))))","v":0},{"$f":"IF(R22=\"(\",\")\",\"\")","v":""},"(",{"$f":"SUMIF($AN$24:$AN$26,$AN22,V$24:V$26)","v":0},")","(",{"$f":"SUMIF($AN$24:$AN$26,$AN22,Y$24:Y$26)","v":0},")",{"$f":"IF((SUM(IF($AN$24:$AN$26=\"c\",IF(AA$24:AA$26=\"(\",-AB$24:AB$26,AB$24:AB$26))))<0,\"(\",\"\")","v":""},{"$f":"ABS(SUM(IF($AN$24:$AN$26=\"c\",IF(AA$24:AA$26=\"(\",-AB$24:AB$26,AB$24:AB$26))))","v":0},{"$f":"IF(AA22=\"(\",\")\",\"\")","v":""},"(",{"$f":"SUMIF(AN24:AN26,AN22,AE24:AE26)","v":0},")",{"$f":"IF((SUM(IF($AN$24:$AN$26=\"c\",IF(AG$24:AG$26=\"(\",-AH$24:AH$26,AH$24:AH$26))))<0,\"(\",\"\")","v":""},{"$f":"ABS(SUM(IF($AN$24:$AN$26=\"c\",IF(AG$24:AG$26=\"(\",-AH$24:AH$26,AH$24:AH$26))))","v":0},{"$f":"IF(AG22=\"(\",\")\",\"\")","v":""},"(",{"$f":"SUMIF($AN$24:$AN$26,$AN22,AK$24:AK$26)","v":0},")",null,"c"]
[null,null,null,null,null,null,{"$f":"\"за \"&IF(god=\"\",\"предыдущий год\",god-1&\" год\")","v":"за 2012 год"},5530,{"$f":"IF((SUM(IF($AN$24:$AN$26=\"p\",IF(I$24:I$26=\"(\",-J$24:J$26,J$24:J$26))))<0,\"(\",\"\")","v":""},{"$f":"ABS(SUM(IF($AN$24:$AN$26=\"p\",IF(I$24:I$26=\"(\",-J$24:J$26,J$24:J$26))))","v":0},{"$f":"IF(I23=\"(\",\")\",\"\")","v":""},"(",{"$f":"SUMIF($AN$24:$AN$26,$AN23,M$24:M$26)","v":0},")",{"$f":"IF((SUM(IF($AN$24:$AN$26=\"p\",IF(O$24:O$26=\"(\",-P$24:P$26,P$24:P$26))))<0,\"(\",\"\")","v":""},{"$f":"ABS(SUM(IF($AN$24:$AN$26=\"p\",IF(O$24:O$26=\"(\",-P$24:P$26,P$24:P$26))))","v":0},{"$f":"IF(O23=\"(\",\")\",\"\")","v":""},{"$f":"IF((SUM(IF($AN$24:$AN$26=\"p\",IF(R$24:R$26=\"(\",-S$24:S$26,S$24:S$26))))<0,\"(\",\"\")","v":""},{"$f":"ABS(SUM(IF($AN$24:$AN$26=\"p\",IF(R$24:R$26=\"(\",-S$24:S$26,S$24:S$26))))","v":0},{"$f":"IF(R23=\"(\",\")\",\"\")","v":""},"(",{"$f":"SUMIF($AN$24:$AN$26,$AN23,V$24:V$26)","v":0},")","(",{"$f":"SUMIF($AN$24:$AN$26,$AN23,Y$24:Y$26)","v":0},")",{"$f":"IF((SUM(IF($AN$24:$AN$26=\"p\",IF(AA$24:AA$26=\"(\",-AB$24:AB$26,AB$24:AB$26))))<0,\"(\",\"\")","v":""},{"$f":"ABS(SUM(IF($AN$24:$AN$26=\"p\",IF(AA$24:AA$26=\"(\",-AB$24:AB$26,AB$24:AB$26))))","v":0},{"$f":"IF(AA23=\"(\",\")\",\"\")","v":""},"(",{"$f":"SUMIF(AN24:AN26,AN23,AE24:AE26)","v":0},")",{"$f":"IF((SUM(IF($AN$24:$AN$26=\"p\",IF(AG$24:AG$26=\"(\",-AH$24:AH$26,AH$24:AH$26))))<0,\"(\",\"\")","v":""},{"$f":"ABS(SUM(IF($AN$24:$AN$26=\"p\",IF(AG$24:AG$26=\"(\",-AH$24:AH$26,AH$24:AH$26))))","v":0},{"$f":"IF(AG23=\"(\",\")\",\"\")","v":""},"(",{"$f":"SUMIF($AN$24:$AN$26,$AN23,AK$24:AK$26)","v":0},")",null,"p"]
[null,null,null,null,"5.1.2.1",null,{"$f":"\"за \"&IF(god=\"\",\"отчётный год\",god&\" год\")","v":"за 2013 год"},null,null,null,null,"(",null,")",null,null,null,null,null,null,"(",null,")","(",null,")",null,null,null,"(",null,")",null,null,null,"(",null,")",null,"c"]
[null,null,null,null,null,null,{"$f":"\"за \"&IF(god=\"\",\"предыдущий год\",god-1&\" год\")","v":"за 2012 год"},null,null,null,null,"(",null,")",null,null,null,null,null,null,"(",null,")","(",null,")",null,null,null,"(",null,")",null,null,null,"(",null,")",null,"p"]
[null,null,null,null,null,"Добавить вид"]
[null,null,null,null,"5.1.3","Итого",{"$f":"\"за \"&IF(god=\"\",\"отчётный год\",god&\" год\")","v":"за 2013 год"},5500,{"$f":"IF((IF(I17=\"(\",-J17,J17)+IF(I22=\"(\",-J22,J22))<0,\"(\",\"\")","v":""},{"$f":"ABS(IF(I17=\"(\",-J17,J17)+IF(I22=\"(\",-J22,J22))","v":0},{"$f":"IF(I27=\"(\",\")\",\"\")","v":""},"(",{"$f":"M17+M22","v":0},")",{"$f":"IF((IF(O17=\"(\",-P17,P17)+IF(O22=\"(\",-P22,P22))<0,\"(\",\"\")","v":""},{"$f":"ABS(IF(O17=\"(\",-P17,P17)+IF(O22=\"(\",-P22,P22))","v":0},{"$f":"IF(O27=\"(\",\")\",\"\")","v":""},{"$f":"IF((IF(R17=\"(\",-S17,S17)+IF(R22=\"(\",-S22,S22))<0,\"(\",\"\")","v":""},{"$f":"ABS(IF(R17=\"(\",-S17,S17)+IF(R22=\"(\",-S22,S22))","v":0},{"$f":"IF(R27=\"(\",\")\",\"\")","v":""},"(",{"$f":"V17+V22","v":0},")","(",{"$f":"Y17+Y22","v":0},")",{"$f":"IF((IF(AA17=\"(\",-AB17,AB17)+IF(AA22=\"(\",-AB22,AB22))<0,\"(\",\"\")","v":""},{"$f":"ABS(IF(AA17=\"(\",-AB17,AB17)+IF(AA22=\"(\",-AB22,AB22))","v":0},{"$f":"IF(AA27=\"(\",\")\",\"\")","v":""},null,"x",null,{"$f":"IF((IF(AG17=\"(\",-AH17,AH17)+IF(AG22=\"(\",-AH22,AH22))<0,\"(\",\"\")","v":""},{"$f":"ABS(IF(AG17=\"(\",-AH17,AH17)+IF(AG22=\"(\",-AH22,AH22))","v":0},{"$f":"IF(AG27=\"(\",\")\",\"\")","v":""},"(",{"$f":"AK17+AK22","v":0},")",null,"c"]
[null,null,null,null,null,null,{"$f":"\"за \"&IF(god=\"\",\"предыдущий год\",god-1&\" год\")","v":"за 2012 год"},5520,{"$f":"IF((IF(I18=\"(\",-J18,J18)+IF(I23=\"(\",-J23,J23))<0,\"(\",\"\")","v":""},{"$f":"ABS(IF(I18=\"(\",-J18,J18)+IF(I23=\"(\",-J23,J23))","v":0},{"$f":"IF(I28=\"(\",\")\",\"\")","v":""},"(",{"$f":"M18+M23","v":0},")",{"$f":"IF((IF(O18=\"(\",-P18,P18)+IF(O23=\"(\",-P23,P23))<0,\"(\",\"\")","v":""},{"$f":"ABS(IF(O18=\"(\",-P18,P18)+IF(O23=\"(\",-P23,P23))","v":0},{"$f":"IF(O28=\"(\",\")\",\"\")","v":""},{"$f":"IF((IF(R18=\"(\",-S18,S18)+IF(R23=\"(\",-S23,S23))<0,\"(\",\"\")","v":""},{"$f":"ABS(IF(R18=\"(\",-S18,S18)+IF(R23=\"(\",-S23,S23))","v":0},{"$f":"IF(R28=\"(\",\")\",\"\")","v":""},"(",{"$f":"V18+V23","v":0},")","(",{"$f":"Y18+Y23","v":0},")",{"$f":"IF((IF(AA18=\"(\",-AB18,AB18)+IF(AA23=\"(\",-AB23,AB23))<0,\"(\",\"\")","v":""},{"$f":"ABS(IF(AA18=\"(\",-AB18,AB18)+IF(AA23=\"(\",-AB23,AB23))","v":0},{"$f":"IF(AA28=\"(\",\")\",\"\")","v":""},null,"x",null,{"$f":"IF((IF(AG18=\"(\",-AH18,AH18)+IF(AG23=\"(\",-AH23,AH23))<0,\"(\",\"\")","v":""},{"$f":"ABS(IF(AG18=\"(\",-AH18,AH18)+IF(AG23=\"(\",-AH23,AH23))","v":0},{"$f":"IF(AG28=\"(\",\")\",\"\")","v":""},"(",{"$f":"AK18+AK23","v":0},")",null,"p"]
[]
[null,null,null,null,"*","Данные раскрываются за минусом дебиторской задолженности, поступившей и погашенной (списанной) в одном отчетном периоде."]
[]
[]
[null,null,null,null,"5.2. Просроченная дебиторская задолженность"]
[]
[null,null,null,null,null,null,null,null,null,null,null,null,null,null,null,null,null,null,null,null,null,null,null,null,{"$f":"IF(unit=\"\",\"\",unit)","v":"тыс.руб."}]
[null,null,null,null,"№\nп/п","Наименование",null,"Код",{"$f":"\"На \"&IF(report_date = \"\",\"отчётную дату отчётного года\",report_date& \" г.\")","v":"На 31.12.2014 г."},null,null,null,null,null,{"$f":"\"На 31 декабря \"&IF(god = \"\",\"предыдущего года\",god-1& \" г.\")","v":"На 31 декабря 2012 г."},null,null,null,null,null,{"$f":"\"На 31 декабря \"&IF(god = \"\",\"года, предшествующего предыдущему\",god-2& \" г.\")","v":"На 31 декабря 2011 г."}]
[null,null,null,null,null,null,null,null,"учтенная по условиям договора",null,null,"балансовая стоимость",null,null,"учтенная по условиям договора",null,null,"балансовая стоимость",null,null,"учтенная по условиям договора",null,null,"балансовая стоимость"]
[null,null,null,null,1,2,null,3,null,4,null,null,5,null,6,null,null,null,7,null,null,8,null,null,9]
[null,null,null,null,"5.2","Всего, в том числе: ",null,5540,{"$f":"IF((SUMIF(I40:I41,\"\",J40:J41)-SUMIF(I40:I41,\"(\",J40:J41))<0,\"(\",\"\")","v":""},{"$f":"ABS(SUMIF(I40:I41,\"\",J40:J41)-SUMIF(I40:I41,\"(\",J40:J41))","v":0},{"$f":"IF(I39=\"(\",\")\",\"\")","v":""},{"$f":"IF((SUMIF(L40:L41,\"\",M40:M41)-SUMIF(L40:L41,\"(\",M40:M41))<0,\"(\",\"\")","v":""},{"$f":"ABS(SUMIF(L40:L41,\"\",M40:M41)-SUMIF(L40:L41,\"(\",M40:M41))","v":0},{"$f":"IF(L39=\"(\",\")\",\"\")","v":""},{"$f":"IF((SUMIF(O40:O41,\"\",P40:P41)-SUMIF(O40:O41,\"(\",P40:P41))<0,\"(\",\"\")","v":""},{"$f":"ABS(SUMIF(O40:O41,\"\",P40:P41)-SUMIF(O40:O41,\"(\",P40:P41))","v":0},{"$f":"IF(O39=\"(\",\")\",\"\")","v":""},{"$f":"IF((SUMIF(R40:R41,\"\",S40:S41)-SUMIF(R40:R41,\"(\",S40:S41))<0,\"(\",\"\")","v":""},{"$f":"ABS(SUMIF(R40:R41,\"\",S40:S41)-SUMIF(R40:R41,\"(\",S40:S41))","v":0},{"$f":"IF(R39=\"(\",\")\",\"\")","v":""},{"$f":"IF((SUMIF(U40:U41,\"\",V40:V41)-SUMIF(U40:U41,\"(\",V40:V41))<0,\"(\",\"\")","v":""},{"$f":"ABS(SUMIF(U40:U41,\"\",V40:V41)-SUMIF(U40:U41,\"(\",V40:V41))","v":0},{"$f":"IF(U39=\"(\",\")\",\"\")","v":""},{"$f":"IF((SUMIF(X40:X41,\"\",Y40:Y41)-SUMIF(X40:X41,\"(\",Y40:Y41))<0,\"(\",\"\")","v":""},{"$f":"ABS(SUMIF(X40:X41,\"\",Y40:Y41)-SUMIF(X40:X41,\"(\",Y40:Y41))","v":0},{"$f":"IF(X39=\"(\",\")\",\"\")","v":""}]
[null,null,null,null,"5.2.1"]
[null,null,null,null,null,"Добавить вид"]
[]
[]
[null,null,null,null,"5.3. Наличие и движение кредиторской задолженности"]
[]
[null,null,null,null,null,null,null,null,null,null,null,null,null,null,null,null,null,null,null,null,null,null,null,null,null,null,null,{"$f":"IF(unit=\"\",\"\",unit)","v":"тыс.руб."}]
[null,null,null,null,"№\nп/п","Наименование","Период","Код","Остаток на начало года",null,null,"Изменения за период",null,null,null,null,null,null,null,null,null,null,null,null,null,null,"Остаток на конец периода"]
[null,null,null,null,null,null,null,null,null,null,null,"поступление",null,null,null,null,null,"выбыло",null,null,null,null,null,"перевод из долго- в краткосрочную задолженность"]
[null,null,null,null,null,null,null,null,null,null,null,"в результате хозяйственных операций (сумма долга по сделке, операции) *",null,null,"причитающиеся проценты, штрафы и иные начисления *",null,null,"погашение",null,null,"списание на финансовый результат *"]
[null,null,null,null,1,2,3,4,null,5,null,null,6,null,null,7,null,8,null,null,null,9,null,null,10,null,null,11]
[null,null,null,null,"5.3.1","Долгосрочная кредиторская задолженность - всего, в том числе: ",{"$f":"\"за \"&IF(god=\"\",\"отчётный год\",god&\" год\")","v":"за 2013 год"},5551,{"$f":"IF((SUM(IF($AE$53:$AE$55=\"c\",IF(I$53:I$55=\"(\",-J$53:J$55,J$53:J$55))))<0,\"(\",\"\")","v":""},{"$f":"ABS(SUM(IF($AE$53:$AE$55=\"c\",IF(I$53:I$55=\"(\",-J$53:J$55,J$53:J$55))))","v":0},{"$f":"IF(I51=\"(\",\")\",\"\")","v":""},{"$f":"IF((SUM(IF($AE$53:$AE$55=\"c\",IF(L$53:L$55=\"(\",-M$53:M$55,M$53:M$55))))<0,\"(\",\"\")","v":""},{"$f":"ABS(SUM(IF($AE$53:$AE$55=\"c\",IF(L$53:L$55=\"(\",-M$53:M$55,M$53:M$55))))","v":0},{"$f":"IF(L51=\"(\",\")\",\"\")","v":""},{"$f":"IF((SUM(IF($AE$53:$AE$55=\"c\",IF(O$53:O$55=\"(\",-P$53:P$55,P$53:P$55))))<0,\"(\",\"\")","v":""},{"$f":"ABS(SUM(IF($AE$53:$AE$55=\"c\",IF(O$53:O$55=\"(\",-P$53:P$55,P$53:P$55))))","v":0},{"$f":"IF(O51=\"(\",\")\",\"\")","v":""},"(",{"$f":"SUMIF($AE$53:$AE$55,$AE51,S$53:S$55)","v":0},")","(",{"$f":"SUMIF($AE$53:$AE$55,$AE51,V$53:V$55)","v":0},")","(",{"$f":"SUMIF($AE$53:$AE$55,$AE51,Y$53:Y$55)","v":0},")",{"$f":"IF((SUM(IF($AE$53:$AE$55=\"c\",IF(AA$53:AA$55=\"(\",-AB$53:AB$55,AB$53:AB$55))))<0,\"(\",\"\")","v":""},{"$f":"ABS(SUM(IF($AE$53:$AE$55=\"c\",IF(AA$53:AA$55=\"(\",-AB$53:AB$55,AB$53:AB$55))))","v":0},{"$f":"IF(AA51=\"(\",\")\",\"\")","v":""},null,"c"]
[null,null,null,null,null,null,{"$f":"\"за \"&IF(god=\"\",\"предыдущий год\",god-1&\" год\")","v":"за 2012 год"},5571,{"$f":"IF((SUM(IF($AE$53:$AE$55=\"p\",IF(I$53:I$55=\"(\",-J$53:J$55,J$53:J$55))))<0,\"(\",\"\")","v":""},{"$f":"ABS(SUM(IF($AE$53:$AE$55=\"p\",IF(I$53:I$55=\"(\",-J$53:J$55,J$53:J$55))))","v":0},{"$f":"IF(I52=\"(\",\")\",\"\")","v":""},{"$f":"IF((SUM(IF($AE$53:$AE$55=\"p\",IF(L$53:L$55=\"(\",-M$53:M$55,M$53:M$55))))<0,\"(\",\"\")","v":""},{"$f":"ABS(SUM(IF($AE$53:$AE$55=\"p\",IF(L$53:L$55=\"(\",-M$53:M$55,M$53:M$55))))","v":0},{"$f":"IF(L52=\"(\",\")\",\"\")","v":""},{"$f":"IF((SUM(IF($AE$53:$AE$55=\"p\",IF(O$53:O$55=\"(\",-P$53:P$55,P$53:P$55))))<0,\"(\",\"\")","v":""},{"$f":"ABS(SUM(IF($AE$53:$AE$55=\"p\",IF(O$53:O$55=\"(\",-P$53:P$55,P$53:P$55))))","v":0},{"$f":"IF(O52=\"(\",\")\",\"\")","v":""},"(",{"$f":"SUMIF($AE$53:$AE$55,$AE52,S$53:S$55)","v":0},")","(",{"$f":"SUMIF($AE$53:$AE$55,$AE52,V$53:V$55)","v":0},")","(",{"$f":"SUMIF($AE$53:$AE$55,$AE52,Y$53:Y$55)","v":0},")",{"$f":"IF((SUM(IF($AE$53:$AE$55=\"p\",IF(AA$53:AA$55=\"(\",-AB$53:AB$55,AB$53:AB$55))))<0,\"(\",\"\")","v":""},{"$f":"ABS(SUM(IF($AE$53:$AE$55=\"p\",IF(AA$53:AA$55=\"(\",-AB$53:AB$55,AB$53:AB$55))))","v":0},{"$f":"IF(AA52=\"(\",\")\",\"\")","v":""},null,"p"]
[null,null,null,null,"5.3.1.1",null,{"$f":"\"за \"&IF(god=\"\",\"отчётный год\",god&\" год\")","v":"за 2013 год"},null,null,null,null,null,null,null,null,null,null,"(",null,")","(",null,")","(",null,")",null,null,null,null,"c"]
[null,null,null,null,null,null,{"$f":"\"за \"&IF(god=\"\",\"предыдущий год\",god-1&\" год\")","v":"за 2012 год"},null,null,null,null,null,null,null,null,null,null,"(",null,")","(",null,")","(",null,")",null,null,null,null,"p"]
[null,null,null,null,null,"Добавить вид"]
[null,null,null,null,"5.3.2","Краткосрочная кредиторская задолженность - всего, в том числе: ",{"$f":"\"за \"&IF(god=\"\",\"отчётный год\",god&\" год\")","v":"за 2013 год"},5560,{"$f":"IF((SUM(IF($AE$58:$AE$60=\"c\",IF(I$58:I$60=\"(\",-J$58:J$60,J$58:J$60))))<0,\"(\",\"\")","v":""},{"$f":"ABS(SUM(IF($AE$58:$AE$60=\"c\",IF(I$58:I$60=\"(\",-J$58:J$60,J$58:J$60))))","v":0},{"$f":"IF(I56=\"(\",\")\",\"\")","v":""},{"$f":"IF((SUM(IF($AE$58:$AE$60=\"c\",IF(L$58:L$60=\"(\",-M$58:M$60,M$58:M$60))))<0,\"(\",\"\")","v":""},{"$f":"ABS(SUM(IF($AE$58:$AE$60=\"c\",IF(L$58:L$60=\"(\",-M$58:M$60,M$58:M$60))))","v":0},{"$f":"IF(L56=\"(\",\")\",\"\")","v":""},{"$f":"IF((SUM(IF($AE$58:$AE$60=\"c\",IF(O$58:O$60=\"(\",-P$58:P$60,P$58:P$60))))<0,\"(\",\"\")","v":""},{"$f":"ABS(SUM(IF($AE$58:$AE$60=\"c\",IF(O$58:O$60=\"(\",-P$58:P$60,P$58:P$60))))","v":0},{"$f":"IF(O56=\"(\",\")\",\"\")","v":""},"(",{"$f":"SUMIF($AE$58:$AE$60,$AE56,S$58:S$60)","v":0},")","(",{"$f":"SUMIF($AE$58:$AE$60,$AE56,V$58:V$60)","v":0},")",null,"x",null,{"$f":"IF((SUM(IF($AE$58:$AE$60=\"c\",IF(AA$58:AA$60=\"(\",-AB$58:AB$60,AB$58:AB$60))))<0,\"(\",\"\")","v":""},{"$f":"ABS(SUM(IF($AE$58:$AE$60=\"c\",IF(AA$58:AA$60=\"(\",-AB$58:AB$60,AB$58:AB$60))))","v":0},{"$f":"IF(AA56=\"(\",\")\",\"\")","v":""},null,"c"]
[null,null,null,null,null,null,{"$f":"\"за \"&IF(god=\"\",\"предыдущий год\",god-1&\" год\")","v":"за 2012 год"},5580,{"$f":"IF((SUM(IF($AE$58:$AE$60=\"p\",IF(I$58:I$60=\"(\",-J$58:J$60,J$58:J$60))))<0,\"(\",\"\")","v":""},{"$f":"ABS(SUM(IF($AE$58:$AE$60=\"p\",IF(I$58:I$60=\"(\",-J$58:J$60,J$58:J$60))))","v":0},{"$f":"IF(I57=\"(\",\")\",\"\")","v":""},{"$f":"IF((SUM(IF($AE$58:$AE$60=\"p\",IF(L$58:L$60=\"(\",-M$58:M$60,M$58:M$60))))<0,\"(\",\"\")","v":""},{"$f":"ABS(SUM(IF($AE$58:$AE$60=\"p\",IF(L$58:L$60=\"(\",-M$58:M$60,M$58:M$60))))","v":0},{"$f":"IF(L57=\"(\",\")\",\"\")","v":""},{"$f":"IF((SUM(IF($AE$58:$AE$60=\"p\",IF(O$58:O$60=\"(\",-P$58:P$60,P$58:P$60))))<0,\"(\",\"\")","v":""},{"$f":"ABS(SUM(IF($AE$58:$AE$60=\"p\",IF(O$58:O$60=\"(\",-P$58:P$60,P$58:P$60))))","v":0},{"$f":"IF(O57=\"(\",\")\",\"\")","v":""},"(",{"$f":"SUMIF($AE$58:$AE$60,$AE57,S$58:S$60)","v":0},")","(",{"$f":"SUMIF($AE$58:$AE$60,$AE57,V$58:V$60)","v":0},")",null,"x",null,{"$f":"IF((SUM(IF($AE$58:$AE$60=\"p\",IF(AA$58:AA$60=\"(\",-AB$58:AB$60,AB$58:AB$60))))<0,\"(\",\"\")","v":""},{"$f":"ABS(SUM(IF($AE$58:$AE$60=\"p\",IF(AA$58:AA$60=\"(\",-AB$58:AB$60,AB$58:AB$60))))","v":0},{"$f":"IF(AA57=\"(\",\")\",\"\")","v":""},null,"p"]
[null,null,null,null,"5.3.2.1",null,{"$f":"\"за \"&IF(god=\"\",\"отчётный год\",god&\" год\")","v":"за 2013 год"},null,null,null,null,null,null,null,null,null,null,"(",null,")","(",null,")",null,"x",null,null,null,null,null,"c"]
[null,null,null,null,null,null,{"$f":"\"за \"&IF(god=\"\",\"предыдущий год\",god-1&\" год\")","v":"за 2012 год"},null,null,null,null,null,null,null,null,null,null,"(",null,")","(",null,")",null,"x",null,null,null,null,null,"p"]
[null,null,null,null,null,"Добавить вид"]
[null,null,null,null,"5.3.3","Итого",{"$f":"\"за \"&IF(god=\"\",\"отчётный год\",god&\" год\")","v":"за 2013 год"},5550,{"$f":"IF((IF(I51=\"(\",-J51,J51)+IF(I56=\"(\",-J56,J56))<0,\"(\",\"\")","v":""},{"$f":"ABS(IF(I51=\"(\",-J51,J51)+IF(I56=\"(\",-J56,J56))","v":0},{"$f":"IF(I61=\"(\",\")\",\"\")","v":""},{"$f":"IF((IF(L51=\"(\",-M51,M51)+IF(L56=\"(\",-M56,M56))<0,\"(\",\"\")","v":""},{"$f":"ABS(IF(L51=\"(\",-M51,M51)+IF(L56=\"(\",-M56,M56))","v":0},{"$f":"IF(L61=\"(\",\")\",\"\")","v":""},{"$f":"IF((IF(O51=\"(\",-P51,P51)+IF(O56=\"(\",-P56,P56))<0,\"(\",\"\")","v":""},{"$f":"ABS(IF(O51=\"(\",-P51,P51)+IF(O56=\"(\",-P56,P56))","v":0},{"$f":"IF(O61=\"(\",\")\",\"\")","v":""},"(",{"$f":"S51+S56","v":0},")","(",{"$f":"V51+V56","v":0},")",null,"x",null,{"$f":"IF((IF(AA51=\"(\",-AB51,AB51)+IF(AA56=\"(\",-AB56,AB56))<0,\"(\",\"\")","v":""},{"$f":"ABS(IF(AA51=\"(\",-AB51,AB51)+IF(AA56=\"(\",-AB56,AB56))","v":0},{"$f":"IF(AA61=\"(\",\")\",\"\")","v":""},null,"c"]
[null,null,null,null,null,null,{"$f":"\"за \"&IF(god=\"\",\"предыдущий год\",god-1&\" год\")","v":"за 2012 год"},5570,{"$f":"IF((IF(I52=\"(\",-J52,J52)+IF(I57=\"(\",-J57,J57))<0,\"(\",\"\")","v":""},{"$f":"ABS(IF(I52=\"(\",-J52,J52)+IF(I57=\"(\",-J57,J57))","v":0},{"$f":"IF(I62=\"(\",\")\",\"\")","v":""},{"$f":"IF((IF(L52=\"(\",-M52,M52)+IF(L57=\"(\",-M57,M57))<0,\"(\",\"\")","v":""},{"$f":"ABS(IF(L52=\"(\",-M52,M52)+IF(L57=\"(\",-M57,M57))","v":0},{"$f":"IF(L62=\"(\",\")\",\"\")","v":""},{"$f":"IF((IF(O52=\"(\",-P52,P52)+IF(O57=\"(\",-P57,P57))<0,\"(\",\"\")","v":""},{"$f":"ABS(IF(O52=\"(\",-P52,P52)+IF(O57=\"(\",-P57,P57))","v":0},{"$f":"IF(O62=\"(\",\")\",\"\")","v":""},"(",{"$f":"S52+S57","v":0},")","(",{"$f":"V52+V57","v":0},")",null,"x",null,{"$f":"IF((IF(AA52=\"(\",-AB52,AB52)+IF(AA57=\"(\",-AB57,AB57))<0,\"(\",\"\")","v":""},{"$f":"ABS(IF(AA52=\"(\",-AB52,AB52)+IF(AA57=\"(\",-AB57,AB57))","v":0},{"$f":"IF(AA62=\"(\",\")\",\"\")","v":""},null,"p"]
[]
[null,null,null,null,"*","Данные раскрываются за минусом кредиторской задолженности, поступившей и погашенной (списанной) в одном отчетном периоде."]
[]
[]
[null,null,null,null,"5.4. Просроченная кредиторская задолженность"]
[]
[null,null,null,null,null,null,null,null,null,null,null,null,null,null,null,{"$f":"IF(unit=\"\",\"\",unit)","v":"тыс.руб."}]
[null,null,null,null,"№\nп/п","Наименование",null,"Код",{"$f":"\"На \"&IF(report_date = \"\",\"отчётную дату отчётного года\",report_date& \" г.\")","v":"На 31.12.2014 г."},null,null,{"$f":"\"На 31 декабря \"&IF(god = \"\",\"предыдущего года\",god-1& \" г.\")","v":"На 31 декабря 2012 г."},null,null,{"$f":"\"На 31 декабря \"&IF(god = \"\",\"года, предшествующего предыдущему\",god-2& \" г.\")","v":"На 31 декабря 2011 г."}]
[null,null,null,null,1,2,null,3,null,4,null,5,null,null,null,6]
[null,null,null,null,"5.4","Всего, в том числе: ",null,5590,{"$f":"IF((SUMIF(I73:I74,\"\",J73:J74)-SUMIF(I73:I74,\"(\",J73:J74))<0,\"(\",\"\")","v":""},{"$f":"ABS(SUMIF(I73:I74,\"\",J73:J74)-SUMIF(I73:I74,\"(\",J73:J74))","v":0},{"$f":"IF(I72=\"(\",\")\",\"\")","v":""},{"$f":"IF((SUMIF(L73:L74,\"\",M73:M74)-SUMIF(L73:L74,\"(\",M73:M74))<0,\"(\",\"\")","v":""},{"$f":"ABS(SUMIF(L73:L74,\"\",M73:M74)-SUMIF(L73:L74,\"(\",M73:M74))","v":0},{"$f":"IF(L72=\"(\",\")\",\"\")","v":""},{"$f":"IF((SUMIF(O73:O74,\"\",P73:P74)-SUMIF(O73:O74,\"(\",P73:P74))<0,\"(\",\"\")","v":""},{"$f":"ABS(SUMIF(O73:O74,\"\",P73:P74)-SUMIF(O73:O74,\"(\",P73:P74))","v":0},{"$f":"IF(O72=\"(\",\")\",\"\")","v":""}]
[null,null,null,null,"5.4.1"]
[null,null,null,null,null,"Добавить вид"]
[]
[]
[null,null,null,null,"6. Затраты на производство"]
[]
[]
[null,null,null,null,"№\nп/п","Наименование",null,"Код",{"$f":"\"За \"&IF(god = \"\",\"отчётный год\",god& \" г.\")","v":"За 2013 г."},null,null,{"$f":"\"За \"&IF(god = \"\",\"предыдущий год\",god-1& \" г.\")","v":"За 2012 г."}]
[null,null,null,null,1,2,null,3,null,4,null,5]
[null,null,null,null,"6.1","Материальные затраты",null,5610]
[null,null,null,null,"6.2","Расходы на оплату труда",null,5620]
[null,null,null,null,"6.3","Отчисления на социальные нужды",null,5630]
[null,null,null,null,"6.4","Амортизация",null,5640]
[null,null,null,null,"6.5","Прочие затраты",null,5650]
[null,null,null,null,"6.6","Итого по элементам затрат",null,5660,{"$f":"IF((SUMIF(I82:I86,\"\",J82:J86)-SUMIF(I82:I86,\"(\",J82:J86))<0,\"(\",\"\")","v":""},{"$f":"ABS(SUMIF(I82:I86,\"\",J82:J86)-SUMIF(I82:I86,\"(\",J82:J86))","v":0},{"$f":"IF(I87=\"(\",\")\",\"\")","v":""},{"$f":"IF((SUMIF(L82:L86,\"\",M82:M86)-SUMIF(L82:L86,\"(\",M82:M86))<0,\"(\",\"\")","v":""},{"$f":"ABS(SUMIF(L82:L86,\"\",M82:M86)-SUMIF(L82:L86,\"(\",M82:M86))","v":0},{"$f":"IF(L87=\"(\",\")\",\"\")","v":""}]
[null,null,null,null,"6.7","Изменение остатков (прирост, уменьшение):"]
[null,null,null,null,"6.7.1","незавершенного производства",null,"5670/\n5680"]
[null,null,null,null,"6.7.2","готовой продукции",null,"5670/\n5680"]
[null,null,null,null,null,"Добавить вид"]
[null,null,null,null,"6.8","Итого расходы по обычным видам деятельности",null,5600,{"$f":"IF((IF(I87=\"(\",-J87,J87)+SUMIF(I89:I91,\"\",J89:J91)-SUMIF(I89:I91,\"(\",J89:J91))<0,\"(\",\"\")","v":""},{"$f":"ABS(IF(I87=\"(\",-J87,J87)+SUMIF(I89:I91,\"\",J89:J91)-SUMIF(I89:I91,\"(\",J89:J91))","v":0},{"$f":"IF(I92=\"(\",\")\",\"\")","v":""},{"$f":"IF((IF(L87=\"(\",-M87,M87)+SUMIF(L89:L91,\"\",M89:M91)-SUMIF(L89:L91,\"(\",M89:M91))<0,\"(\",\"\")","v":""},{"$f":"ABS(IF(L87=\"(\",-M87,M87)+SUMIF(L89:L91,\"\",M89:M91)-SUMIF(L89:L91,\"(\",M89:M91))","v":0},{"$f":"IF(L92=\"(\",\")\",\"\")","v":""}]

{"sheet":"Стр 13","index":8,"n_rows":28,"n_cols":25,"rows_kept":28,"cut":false,"hidden":false,"merged":[[10,20,10,22],[7,5,7,22],[10,8,10,10],[10,11,10,13],[10,14,10,16],[10,17,10,19],[21,11,21,13],[11,14,11,16],[20,8,20,10],[20,11,20,13],[20,14,20,16],[17,5,17,16]]}
[]
[]
[]
[]
[]
[]
[null,null,null,null,null,null,null,null,null,null,null,null,null,null,null,null,null,null,null,null,null,null,"Форма 0710005 с. 13"]
[null,null,null,null,null,"7. Оценочные обязательства"]
[]
[null,null,null,null,null,null,null,null,null,null,null,null,null,null,null,null,null,null,null,null,null,{"$f":"IF(unit=\"\",\"\",unit)","v":"тыс.руб."}]
[null,null,null,null,null,"№\nп/п","Наименование","Код",{"$f":"\"Остаток на начало\"&IF(god=\"\",\"\",\" \"&god)&\" года\"","v":"Остаток на начало 2013 года"},null,null,"Признано",null,null,"Погашено",null,null,"Списано как избыточная сумма",null,null,{"$f":"\"Остаток на конец\"&IF(god=\"\",\" периода\",\" \"&god&\" года\")","v":"Остаток на конец 2013 года"}]
[null,null,null,null,null,1,2,3," ",4," "," ",5," ",6,null,null,null,7,null," ",8," "]
[null,null,null,null,null,"7","Оценочные обязательства - всего, в том числе: ",5700,{"$f":"IF((SUMIF(I14:I15,\"\",J14:J15)-SUMIF(I14:I15,\"(\",J14:J15))<0,\"(\",\"\")","v":""},{"$f":"ABS(SUMIF(I14:I15,\"\",J14:J15)-SUMIF(I14:I15,\"(\",J14:J15))","v":0},{"$f":"IF(I13=\"(\",\")\",\"\")","v":""},{"$f":"IF((SUMIF(L14:L15,\"\",M14:M15)-SUMIF(L14:L15,\"(\",M14:M15))<0,\"(\",\"\")","v":""},{"$f":"ABS(SUMIF(L14:L15,\"\",M14:M15)-SUMIF(L14:L15,\"(\",M14:M15))","v":0},{"$f":"IF(L13=\"(\",\")\",\"\")","v":""},"(",{"$f":"SUM(P14:P15)","v":0},")","(",{"$f":"SUM(S14:S15)","v":0},")",{"$f":"IF((SUMIF(U14:U15,\"\",V14:V15)-SUMIF(U14:U15,\"(\",V14:V15))<0,\"(\",\"\")","v":""},{"$f":"ABS(SUMIF(U14:U15,\"\",V14:V15)-SUMIF(U14:U15,\"(\",V14:V15))","v":0},{"$f":"IF(U13=\"(\",\")\",\"\")","v":""},null,"c"]
[null,null,null,null,null,"7.1",null,null,null,null,null,null,null,null,"(",null,")","(",null,")",null,null,null,null,"c"]
[null,null,null,null,null,null,"Добавить вид обязательства"]
[]
[]
[null,null,null,null,null,"8. Обеспечения обязательств"]
[]
[null,null,null,null,null,null,null,null,null,null,null,null,null,null,null,{"$f":"IF(unit=\"\",\"\",unit)","v":"тыс.руб."}]
[null,null,null,null,null,"№\nп/п","Наименование","Код",{"$f":"\"На \"&IF(report_date = \"\",\"отчётную дату отчётного года\",report_date& \" г.\")","v":"На 31.12.2014 г."},null,null,{"$f":"\"На 31 декабря \"&IF(god = \"\",\"предыдущего года\",god-1& \" г.\")","v":"На 31 декабря 2012 г."},null,null,{"$f":"\"На 31 декабря \"&IF(god = \"\",\"года, предшествующего предыдущему\",god-2& \" г.\")","v":"На 31 декабря 2011 г."}]
[null,null,null,null,null,1,2,3,null,4,null,5,null,null,null,6]
[null,null,null,null,null,"8.1","Полученные - всего, в том числе: ",5800,{"$f":"IF((SUMIF(I24:I25,\"\",J24:J25)-SUMIF(I24:I25,\"(\",J24:J25))<0,\"(\",\"\")","v":""},{"$f":"ABS(SUMIF(I24:I25,\"\",J24:J25)-SUMIF(I24:I25,\"(\",J24:J25))","v":0},{"$f":"IF(I23=\"(\",\")\",\"\")","v":""},{"$f":"IF((SUMIF(L24:L25,\"\",M24:M25)-SUMIF(L24:L25,\"(\",M24:M25))<0,\"(\",\"\")","v":""},{"$f":"ABS(SUMIF(L24:L25,\"\",M24:M25)-SUMIF(L24:L25,\"(\",M24:M25))","v":0},{"$f":"IF(L23=\"(\",\")\",\"\")","v":""},{"$f":"IF((SUMIF(O24:O25,\"\",P24:P25)-SUMIF(O24:O25,\"(\",P24:P25))<0,\"(\",\"\")","v":""},{"$f":"ABS(SUMIF(O24:O25,\"\",P24:P25)-SUMIF(O24:O25,\"(\",P24:P25))","v":0},{"$f":"IF(O23=\"(\",\")\",\"\")","v":""}]
[null,null,null,null,null,"8.1.1"]
[null,null,null,null,null,null,"Добавить вид"]
[null,null,null,null,null,"8.2","Выданные - всего, в том числе: ",5810,{"$f":"IF((SUMIF(I27:I28,\"\",J27:J28)-SUMIF(I27:I28,\"(\",J27:J28))<0,\"(\",\"\")","v":""},{"$f":"ABS(SUMIF(I27:I28,\"\",J27:J28)-SUMIF(I27:I28,\"(\",J27:J28))","v":0},{"$f":"IF(I26=\"(\",\")\",\"\")","v":""},{"$f":"IF((SUMIF(L27:L28,\"\",M27:M28)-SUMIF(L27:L28,\"(\",M27:M28))<0,\"(\",\"\")","v":""},{"$f":"ABS(SUMIF(L27:L28,\"\",M27:M28)-SUMIF(L27:L28,\"(\",M27:M28))","v":0},{"$f":"IF(L26=\"(\",\")\",\"\")","v":""},{"$f":"IF((SUMIF(O27:O28,\"\",P27:P28)-SUMIF(O27:O28,\"(\",P27:P28))<0,\"(\",\"\")","v":""},{"$f":"ABS(SUMIF(O27:O28,\"\",P27:P28)-SUMIF(O27:O28,\"(\",P27:P28))","v":0},{"$f":"IF(O26=\"(\",\")\",\"\")","v":""}]
[null,null,null,null,null,"8.2.1"]
[null,null,null,null,null,null,"Добавить вид"]

{"sheet":"Стр 14","index":9,"n_rows":23,"n_cols":22,"rows_kept":23,"cut":false,"hidden":false,"merged":[[7,4,7,19],[15,14,15,16],[15,17,15,19],[11,5,11,6],[12,5,12,6],[13,5,13,6],[14,5,14,6],[10,5,10,6],[10,8,10,10],[10,11,10,13],[17,14,17,16],[16,14,16,16],[16,17,16,19],[20,4,21,4],[20,5,21,5],[16,8,16,10],[16,11,16,13],[18,4,19,4],[18,5,19,5]]}
[]
[]
[]
[]
[]
[]
[null,null,null,null,null,null,null,null,null,null,null,null,null,null,null,null,null,null,null,"Форма 0710005 с. 14"]
[null,null,null,null,"9. Государственная помощь"]
[]
[null,null,null,null,null,null,null,null,null,null,null,null,null,null,null,null,null,null,{"$f":"IF(unit=\"\",\"\",unit)","v":"тыс.руб."}]
[null,null,null,null,"№\nп/п","Наименование",null,"Код",{"$f":"\"За \"&IF(god = \"\",\"отчётный год\",god& \" г.\")","v":"За 2013 г."},null,null,{"$f":"\"За \"&IF(god = \"\",\"предыдущий год\",god-1& \" г.\")","v":"За 2012 г."}]
[null,null,null,null,1,2,null,3,null,4,null,null,5]
[null,null,null,null,"9.1","Получено бюджетных средств - всего, в том числе: ",null,5900,{"$f":"IF((SUMIF(I14:I15,\"\",J14:J15)-SUMIF(I14:I15,\"(\",J14:J15))<0,\"(\",\"\")","v":""},{"$f":"ABS(SUMIF(I14:I15,\"\",J14:J15)-SUMIF(I14:I15,\"(\",J14:J15))","v":0},{"$f":"IF(I13=\"(\",\")\",\"\")","v":""},{"$f":"IF((SUMIF(L14:L15,\"\",M14:M15)-SUMIF(L14:L15,\"(\",M14:M15))<0,\"(\",\"\")","v":""},{"$f":"ABS(SUMIF(L14:L15,\"\",M14:M15)-SUMIF(L14:L15,\"(\",M14:M15))","v":0},{"$f":"IF(L13=\"(\",\")\",\"\")","v":""},null,null,null,null,null,null,null,"c"]
[null,null,null,null,"9.1.1","на текущие расходы",null,5901,null,null,null,null,null,null,null,null,null,null,null,null,null,"c"]
[null,null,null,null,"9.1.2","на вложения во внеоборотные активы",null,5905,null,null,null,null,null,null,null,null,null,null,null,null,null,"c"]
[null,null,null,null,null,null,null," "]
[null,null,null,null,"№\nп/п","Наименование","Период","Код","На начало года",null,null,"Получено за год",null,null,"Возвращено за год",null,null,"На конец года"]
[null,null,null,null,1,2,3,4," ",5," "," ",6," ",7,null,null," ",8," "]
[null,null,null,null,"9.2","Бюджетные кредиты - всего, в том числе: ",{"$f":"\"за \"&IF(god=\"\",\"отчётный год\",god&\" год\")","v":"за 2013 год"},5910,{"$f":"IF((SUM(IF($V$21:$V$23=\"c\",IF(I$21:I$23=\"(\",-J$21:J$23,J$21:J$23))))<0,\"(\",\"\")","v":""},{"$f":"ABS(SUM(IF($V$21:$V$23=\"c\",IF(I$21:I$23=\"(\",-J$21:J$23,J$21:J$23))))","v":0},{"$f":"IF(I19=\"(\",\")\",\"\")","v":""},{"$f":"IF((SUM(IF($V$21:$V$23=\"c\",IF(L$21:L$23=\"(\",-M$21:M$23,M$21:M$23))))<0,\"(\",\"\")","v":""},{"$f":"ABS(SUM(IF($V$21:$V$23=\"c\",IF(L$21:L$23=\"(\",-M$21:M$23,M$21:M$23))))","v":0},{"$f":"IF(L19=\"(\",\")\",\"\")","v":""},"(",{"$f":"SUMIF($V$21:$V$23,$V19,P$21:P$23)","v":0},")",{"$f":"IF((SUM(IF($V$21:$V$23=\"c\",IF(R$21:R$23=\"(\",-S$21:S$23,S$21:S$23))))<0,\"(\",\"\")","v":""},{"$f":"ABS(SUM(IF($V$21:$V$23=\"c\",IF(R$21:R$23=\"(\",-S$21:S$23,S$21:S$23))))","v":0},{"$f":"IF(R19=\"(\",\")\",\"\")","v":""},null,"c"]
[null,null,null,null,null,null,{"$f":"\"за \"&IF(god=\"\",\"предыдущий год\",god-1&\" год\")","v":"за 2012 год"},5920,{"$f":"IF((SUM(IF($V$21:$V$23=\"p\",IF(I$21:I$23=\"(\",-J$21:J$23,J$21:J$23))))<0,\"(\",\"\")","v":""},{"$f":"ABS(SUM(IF($V$21:$V$23=\"p\",IF(I$21:I$23=\"(\",-J$21:J$23,J$21:J$23))))","v":0},{"$f":"IF(I20=\"(\",\")\",\"\")","v":""},{"$f":"IF((SUM(IF($V$21:$V$23=\"p\",IF(L$21:L$23=\"(\",-M$21:M$23,M$21:M$23))))<0,\"(\",\"\")","v":""},{"$f":"ABS(SUM(IF($V$21:$V$23=\"p\",IF(L$21:L$23=\"(\",-M$21:M$23,M$21:M$23))))","v":0},{"$f":"IF(L20=\"(\",\")\",\"\")","v":""},"(",{"$f":"SUMIF($V$21:$V$23,$V20,P$21:P$23)","v":0},")",{"$f":"IF((SUM(IF($V$21:$V$23=\"p\",IF(R$21:R$23=\"(\",-S$21:S$23,S$21:S$23))))<0,\"(\",\"\")","v":""},{"$f":"ABS(SUM(IF($V$21:$V$23=\"p\",IF(R$21:R$23=\"(\",-S$21:S$23,S$21:S$23))))","v":0},{"$f":"IF(R20=\"(\",\")\",\"\")","v":""},null,"p"]
[null,null,null,null,"9.2.1",null,{"$f":"\"за \"&IF(god=\"\",\"отчётный год\",god&\" год\")","v":"за 2013 год"},null,null,null,null,null,null,null,"(",null,")",null,null,null,null,"c"]
[null,null,null,null,null,null,{"$f":"\"за \"&IF(god=\"\",\"предыдущий год\",god-1&\" год\")","v":"за 2012 год"},null,null,null,null,null,null,null,"(",null,")",null,null,null,null,"p"]
[null,null,null,null,null,"Добавить цель"]

{"sheet":"Комментарии","index":10,"n_rows":10,"n_cols":6,"rows_kept":10,"cut":false,"hidden":false,"merged":[[6,4,6,5],[11,4,11,5]]}
[]
[]
[]
[]
[]
[]
[null,null,null,null,"Ниже вы можете оставить свои комментарии"]
[]
[null,null,null,null,"1"]
[null,null,null,null,null,"Добавить комментарий"]

{"sheet":"Проверка","index":11,"n_rows":13,"n_cols":7,"rows_kept":13,"cut":false,"hidden":false,"merged":[[9,4,9,6]]}
[]
[]
[]
[]
[]
[]
[]
[]
[]
[null,null,null,null,"Результат проверки"]
[]
[null,null,null,null,"Ссылка","Причина","Статус"]
[null,null,null,null,"1","2","3"]

{"sheet":"AllSheetsInThisWorkbook","index":12,"n_rows":34,"n_cols":2,"rows_kept":34,"cut":false,"hidden":true,"merged":[]}
["Расчетные листы","Скрытые листы"]
["Инструкция","AllSheetsInThisWorkbook"]
["Лог обновления","modfrmCheckUpdates"]
["Титульный","modUpdTemplMain"]
["Стр 1-3","et_union"]
["Стр 4-6","TEHSHEET"]
["Стр 7-9","REESTR_ORG"]
["Стр 10-12","REESTR_FILTERED"]
["Стр 13","REESTR_MO"]
["Стр 14","modHyperlink"]
["Комментарии","modChange"]
["Проверка","modPROV"]
[null,"modTitleSheetHeaders"]
[null,"modServiceModule"]
[null,"modCommandButton"]
[null,"modReestr"]
[null,"modClassifierValidate"]
[null,"modInfo"]
[null,"modfrmReestr"]
[null,"modfrmDateChoose"]
[null,"modDblClick"]
[null,"Паспорт"]
[null,"modRegionSelectSub"]
[null,"modThisWorkbook"]
[null,"modReestrMO"]
[null,"modSheetMain01"]
[null,"modSheetMain02"]
[null,"modSheetMain03"]
[null,"modSheetMain04"]
[null,"modSheetMain05"]
[null,"modSheetMain06"]
[null,"modSheetMain07"]
[null,"modSheetMain08"]
[null,"modSheetMain09"]

{"sheet":"modfrmCheckUpdates","index":13,"n_rows":0,"n_cols":0,"rows_kept":0,"cut":false,"hidden":true,"merged":[]}

{"sheet":"modUpdTemplMain","index":14,"n_rows":0,"n_cols":0,"rows_kept":0,"cut":false,"hidden":true,"merged":[]}

{"sheet":"et_union","index":15,"n_rows":108,"n_cols":43,"rows_kept":108,"cut":false,"hidden":true,"merged":[[41,5,41,6],[37,5,37,6],[46,5,47,5],[51,5,51,6],[55,4,56,4],[55,5,56,5],[46,4,47,4],[23,4,24,4],[80,4,81,4],[80,5,81,5],[75,5,76,5],[23,5,24,5],[28,4,29,4],[28,5,29,5],[33,5,33,6],[71,5,71,6],[66,4,67,4],[103,4,104,4],[103,5,104,5],[85,5,85,6],[75,4,76,4],[89,5,89,6],[61,4,62,4],[61,5,62,5],[66,5,67,5],[17,4,18,4],[17,5,18,5],[3,4,4,4],[3,5,4,5],[8,5,8,6],[12,4,13,4],[12,5,13,5]]}
[]
["add_STR_1_range_1"]
[]
[null,null,null,null,null,null,{"$f":"\"за \"&IF(god=\"\",\"отчётный год\",god&\"год\")","v":"за 2013год"},null,null,null,null,"(",null,")",null,null,null,"(",null,")",null,null,null,"(",null,")",null,null,null,null,null,null,null,null,null,null,null,null,"(",null,")",null,"c"]
[null,null,null,null,null,null,{"$f":"\"за \"&IF(god=\"\",\"предыдущий год\",god-1&\"год\")","v":"за 2012год"},null,null,null,null,"(",null,")",null,null,null,"(",null,")",null,null,null,"(",null,")",null,null,null,null,null,null,null,null,null,null,null,null,"(",null,")",null,"p"]
[]
["add_STR_1_range_2"]
[]
[]
[]
["add_STR_1_range_3"]
[]
[null,null,null,null,null,null,{"$f":"\"за \"&IF(god=\"\",\"отчётный год\",god&\"год\")","v":"за 2013год"},null,null,null,null,"(",null,")",null,null,null,"(",null,")",null,null,null,"(",null,")",null,null,null,"(",null,")",null,"c"]
[null,null,null,null,null,null,{"$f":"\"за \"&IF(god=\"\",\"предыдущий год\",god-1&\"год\")","v":"за 2012год"},null,null,null,null,"(",null,")",null,null,null,"(",null,")",null,null,null,"(",null,")",null,null,null,"(",null,")",null,"p"]
[]
["add_STR_1_range_4"]
[]
[null,null,null,null,null,null,{"$f":"\"за \"&IF(god=\"\",\"отчётный год\",god&\"год\")","v":"за 2013год"},null,null,null,null,null,null,null,"(",null,")","(",null,")",null,null,null,null,"c"]
[null,null,null,null,null,null,{"$f":"\"за \"&IF(god=\"\",\"предыдущий год\",god-1&\"год\")","v":"за 2012год"},null,null,null,null,null,null,null,"(",null,")","(",null,")",null,null,null,null,"p"]
[]
[]
["add_STR_2_range_1"]
[]
[null,null,null,null,null,null,{"$f":"\"за \"&IF(god=\"\",\"отчётный год\",god&\"год\")","v":"за 2013год"},null,null,null,null,"(",null,")",null,null,null,"(",null,")",null,null,null,"(",null,")",null,null,null,null,null,null,null,null,null,"(",null,")",null,"c"]
[null,null,null,null,null,null,{"$f":"\"за \"&IF(god=\"\",\"предыдущий год\",god-1&\"год\")","v":"за 2012год"},null,null,null,null,"(",null,")",null,null,null,"(",null,")",null,null,null,"(",null,")",null,null,null,null,null,null,null,null,null,"(",null,")",null,"p"]
[]
["add_STR_2_range_2"]
[]
[null,null,null,null,null,null,{"$f":"\"за \"&IF(god=\"\",\"отчётный год\",god&\"год\")","v":"за 2013год"},null,null,null,null,null,null,null,"(",null,")","(",null,")",null,null,null,null,"c"]
[null,null,null,null,null,null,{"$f":"\"за \"&IF(god=\"\",\"предыдущий год\",god-1&\"год\")","v":"за 2012год"},null,null,null,null,null,null,null,"(",null,")","(",null,")",null,null,null,null,"p"]
[]
["add_STR_2_range_3"]
[]
[]
[]
["add_STR_2_range_4"]
[]
[null,null,null,null,null,null,null,null,"(",null,")","(",null,")"]
[]
["add_STR_2_range_5"]
[]
[]
[]
[]
["add_STR_3_range_1"]
[]
[null,null,null,null,null,null,{"$f":"\"за \"&IF(god=\"\",\"отчётный год\",god&\"год\")","v":"за 2013год"},null,null,null,null,null,null,null,null,null,null,"(",null,")",null,null,null,null,null,null,null,null,null,null,null,null,null,null,null,null,"c"]
[null,null,null,null,null,null,{"$f":"\"за \"&IF(god=\"\",\"предыдущий год\",god-1&\"год\")","v":"за 2012год"},null,null,null,null,null,null,null,null,null,null,"(",null,")",null,null,null,null,null,null,null,null,null,null,null,null,null,null,null,null,"p"]
[]
["add_STR_3_range_2"]
[]
[]
[]
["add_STR_3_range_3"]
[]
[null,null,null,null,null,null,{"$f":"\"за \"&IF(god=\"\",\"отчётный год\",god&\"год\")","v":"за 2013год"},null,null,null,null,"(",null,")",null,null,null,"(",null,")",null,null,null,null,null,null,null,null,null,null,null,null,"(",null,")",null,"c"]
[null,null,null,null,null,null,{"$f":"\"за \"&IF(god=\"\",\"предыдущий год\",god-1&\"год\")","v":"за 2012год"},null,null,null,null,"(",null,")",null,null,null,"(",null,")",null,null,null,null,null,null,null,null,null,null,null,null,"(",null,")",null,"p"]
[]
[]
["add_STR_4_range_1"]
[]
[null,null,null,null,null,null,{"$f":"\"за \"&IF(god=\"\",\"отчётный год\",god&\"год\")","v":"за 2013год"},null,null,null,null,"(",null,")",null,null,null,null,null,null,"(",null,")","(",null,")",null,null,null,"(",null,")",null,null,null,"(",null,")",null,"c"]
[null,null,null,null,null,null,{"$f":"\"за \"&IF(god=\"\",\"предыдущий год\",god-1&\"год\")","v":"за 2012год"},null,null,null,null,"(",null,")",null,null,null,null,null,null,"(",null,")","(",null,")",null,null,null,"(",null,")",null,null,null,"(",null,")",null,"p"]
[]
["add_STR_4_range_2"]
[]
[null,null,null,null,null,null,{"$f":"\"за \"&IF(god=\"\",\"отчётный год\",god&\"год\")","v":"за 2013год"},null,null,null,null,"(",null,")",null,null,null,null,null,null,"(",null,")","(",null,")",null,null,null,null,"x",null,null,null,null,"(",null,")",null,"c"]
[null,null,null,null,null,null,{"$f":"\"за \"&IF(god=\"\",\"предыдущий год\",god-1&\"год\")","v":"за 2012год"},null,null,null,null,"(",null,")",null,null,null,null,null,null,"(",null,")","(",null,")",null,null,null,null,"x",null,null,null,null,"(",null,")",null,"p"]
[]
["add_STR_4_range_3"]
[]
[]
[]
["add_STR_4_range_4"]
[]
[null,null,null,null,null,null,{"$f":"\"за \"&IF(god=\"\",\"отчётный год\",god&\"год\")","v":"за 2013год"},null,null,null,null,null,null,null,null,null,null,"(",null,")","(",null,")","(",null,")",null,null,null,null,"c"]
[null,null,null,null,null,null,{"$f":"\"за \"&IF(god=\"\",\"предыдущий год\",god-1&\"год\")","v":"за 2012год"},null,null,null,null,null,null,null,null,null,null,"(",null,")","(",null,")","(",null,")",null,null,null,null,"p"]
[]
["add_STR_4_range_5"]
[]
[null,null,null,null,null,null,{"$f":"\"за \"&IF(god=\"\",\"отчётный год\",god&\"год\")","v":"за 2013год"},null,null,null,null,null,null,null,null,null,null,"(",null,")","(",null,")",null,"x",null,null,null,null,null,"c"]
[null,null,null,null,null,null,{"$f":"\"за \"&IF(god=\"\",\"предыдущий год\",god-1&\"год\")","v":"за 2012год"},null,null,null,null,null,null,null,null,null,null,"(",null,")","(",null,")",null,"x",null,null,null,null,null,"p"]
[]
["add_STR_4_range_6"]
[]
[]
[]
["add_STR_4_range_7"]
[]
[]
[]
[]
["add_STR_5_range_1"]
[]
[null,null,null,null,null,null,null,null,null,null,null,null,null,null,"(",null,")","(",null,")"]
[]
["add_STR_5_range_2"]
[]
[]
[]
[]
["add_STR_6_range_1"]
[]
[null,null,null,null,null,null,{"$f":"\"за \"&IF(god=\"\",\"отчётный год\",god&\"год\")","v":"за 2013год"},null,null,null,null,null,null,null,"(",null,")",null,null,null,null,"c"]
[null,null,null,null,null,null,{"$f":"\"за \"&IF(god=\"\",\"предыдущий год\",god-1&\"год\")","v":"за 2012год"},null,null,null,null,null,null,null,"(",null,")",null,null,null,null,"p"]
[]
[]
["COMS_ADD_RANGE"]

{"sheet":"TEHSHEET","index":16,"n_rows":86,"n_cols":10,"rows_kept":86,"cut":false,"hidden":true,"merged":[[0,0,1,0]]}
["регион","Логика","Кварталы","Года","Единица измерения","Месяц-текст","Месяц-число","День-число",null,"XML_ORG_LIST_TAG_NAMES"]
[null,"да","I квартал",2012,"тыс.руб.","январь","01","01",null,"NSRF"]
["Алтайский край","нет","I полугодие",2013,"млн.руб.","февраль","02","02",null,"MR_NAME"]
["Амурская область",null,"9 месяцев",2014,null,"март","03","03",null,"OKTMO_MR_NAME"]
["Архангельская область",null,"год",2015,"Единица измерения для листа \"Доходы-Расходы\"","апрель","04","04",null,"MO_NAME"]
["Астраханская область","Выбранный регион",null,2016,"руб.","май","05","05",null,"OKTMO_NAME"]
["Белгородская область",0,null,null,"тыс.руб.","июнь","06","06",null,"ORG_NAME"]
["Брянская область",null,null,null,"млн.руб.","июль","07","07",null,"INN_NAME"]
["Владимирская область",null,null,null,null,"август","08","08",null,"KPP_NAME"]
["Волгоградская область",null,null,null,null,"сентябрь","09","09"]
["Вологодская область",null,null,null,null,"октябрь",10,10,null,"XML_MR_MO_OKTMO_LIST_TAG_NAMES"]
["Воронежская область",null,null,null,null,"ноябрь",11,11,null,"NSRF"]
["г.Байконур",null,null,null,null,"декабрь",12,12,null,"MR_NAME"]
["г. Москва",null,null,null,null,null,null,13,null,"OKTMO_MR_NAME"]
["г.Санкт-Петербург",null,null,null,null,null,null,14,null,"MO_NAME"]
["Еврейская автономная область",null,null,null,null,null,null,15,null,"OKTMO_NAME"]
["Забайкальский край",null,null,null,null,null,null,16]
["Ивановская область",null,null,null,null,null,null,17]
["Иркутская область",null,null,null,null,null,null,18]
["Кабардино-Балкарская республика",null,null,null,null,null,null,19]
["Калининградская область",null,null,null,null,null,null,20]
["Калужская область",null,null,null,null,null,null,21]
["Камчатский край",null,null,null,null,null,null,22]
["Карачаево-Черкесская республика",null,null,null,null,null,null,23]
["Кемеровская область",null,null,null,null,null,null,24]
["Кировская область",null,null,null,null,null,null,25]
["Костромская область",null,null,null,null,null,null,26]
["Краснодарский край",null,null,null,null,null,null,27]
["Красноярский край",null,null,null,null,null,null,28]
["Курганская область",null,null,null,null,null,null,29]
["Курская область",null,null,null,null,null,null,30]
["Ленинградская область",null,null,null,null,null,null,31]
["Липецкая область"]
["Магаданская область"]
["Московская область"]
["Мурманская область"]
["Ненецкий автономный округ"]
["Нижегородская область"]
["Новгородская область"]
["Новосибирская область"]
["Омская область"]
["Оренбургская область"]
["Орловская область"]
["Пензенская область"]
["Пермский край"]
["Приморский край"]
["Псковская область"]
["Республика Адыгея"]
["Республика Алтай"]
["Республика Башкортостан"]
["Республика Бурятия"]
["Республика Дагестан"]
["Республика Ингушетия"]
["Республика Калмыкия"]
["Республика Карелия"]
["Республика Коми"]
["Республика Марий Эл"]
["Республика Мордовия"]
["Республика Саха (Якутия)"]
["Республика Северная Осетия-Алания"]
["Республика Татарстан"]
["Республика Тыва"]
["Республика Хакасия"]
["Ростовская область"]
["Рязанская область"]
["Самарская область"]
["Саратовская область"]
["Сахалинская область"]
["Свердловская область"]
["Смоленская область"]
["Ставропольский край"]
["Тамбовская область"]
["Тверская область"]
["Томская область"]
["Тульская область"]
["Тюменская область"]
["Удмуртская республика"]
["Ульяновская область"]
["Хабаровский край"]
["Ханты-Мансийский автономный округ"]
["Челябинская область"]
["Чеченская республика"]
["Чувашская республика"]
["Чукотский автономный округ"]
["Ямало-Ненецкий автономный округ"]
["Ярославская область"]

{"sheet":"REESTR_ORG","index":17,"n_rows":911,"n_cols":8,"rows_kept":911,"cut":false,"hidden":true,"merged":[]}
["№","МР","МО","МО ОКТМО","ОРГАНИЗАЦИЯ","ИНН","КПП","ВИД ДЕЯТЕЛЬНОСТИ"]
[1,"Аларский муниципальный район","Аларь","25823402","ИП Харитонова О.Д.","850100919458","отсутствует"]
[2,"Аларский муниципальный район","Александровск","25823404","МУП \"Теплотехник\"","8501006590","850101001"]
[3,"Аларский муниципальный район","Аляты","25823407","ИП Убашеевой И.С.","850101414731","отсутствует"]
[4,"Аларский муниципальный район","Ангарское","25823410","ООО \"Ангара\"","8501006583","850101001"]
[5,"Аларский муниципальный район","Бахтай","25823413","ИП главы КФХ Степанова М.Г.","850101730737","отсутствует"]
[6,"Аларский муниципальный район","Егоровск","25823418","ИП Маланова А.С.","850100979150","отсутствует"]
[7,"Аларский муниципальный район","Забитуй","25823414","Восточно-Сибирская дирекция по тепловодоснабжению - структурное подразделение центральной дирекции по тепловодоснабжению филиала ОАО \"РЖД\"","7708503727","385145042"]
[8,"Аларский муниципальный район","Забитуй","25823414","ИП Барцева И.П.","850100134185","850101001"]
[9,"Аларский муниципальный район","Зоны","25823419","АМО \"Зоны\"","8501006093","385101001"]
[10,"Аларский муниципальный район","Иваническ","25823422","ИП Инкеева В.С.","850100713390","850101001"]
[11,"Аларский муниципальный район","Куйта","25823425","ООО \"Идеал\"","8501005981","850101001"]
[12,"Аларский муниципальный район","Кутулик","25823426","Восточно-Сибирская дирекция по тепловодоснабжению - структурное подразделение центральной дирекции по тепловодоснабжению филиала ОАО \"РЖД\"","7708503727","385145042"]
[13,"Аларский муниципальный район","Кутулик","25823426","МУП \"Теплотехник\"","8501006590","850101001"]
[14,"Аларский муниципальный район","Кутулик","25823426","ООО \"Кутуликская электросетевая компания\"","8501006512","385101001"]
[15,"Аларский муниципальный район","Кутулик","25823426","ООО \"Управляющая компания \"Жилищная инициатива\"","8501006671","385101001"]
[16,"Аларский муниципальный район","Кутулик","25823426","Филиал ОАО \"РЭУ\" \"Иркутский\"","7714783092","381143001"]
[17,"Аларский муниципальный район","Маниловск","25823416","КФХ Андреева Ф.Т.","8501004900","850101001"]
[18,"Аларский муниципальный район","Могоенок","25823428","КФХ Молев П.И.","8501001899","850101001"]
[19,"Аларский муниципальный район","Нельхай","25823431","СПСК \"Нельхай\"","7707083893","850101001"]
[20,"Аларский муниципальный район","Табарсук","25823434","АМО \"Табарсук\"","8501006262","385101001"]
[21,"Аларский муниципальный район","Тыргетуй","25823437","ИП Урбанов П.П.","850100049814","850101001"]
[22,"Ангарский муниципальный район","Город Ангарск","25603101","Восточно-Сибирская дирекция по тепловодоснабжению - структурное подразделение центральной дирекции по тепловодоснабжению филиала ОАО \"РЖД\"","7708503727","385145042"]
[23,"Ангарский муниципальный район","Город Ангарск","25603101","МУП города Ангарска \"Ангарский Водоканал\"","3801006828","380101001"]
[24,"Ангарский муниципальный район","Город Ангарск","25603101","ОАО \"Ангарская нефтехимическая компания\"","3801009466","997150001"]
[25,"Ангарский муниципальный район","Город Ангарск","25603101","ОАО \"Ангарский Электролизный Химический Комбинат\"","3801098402","380150001"]
[26,"Ангарский муниципальный район","Город Ангарск","25603101","ОАО \"Ангарское Управление Строительства\"","3801010824","380101001"]
[27,"Ангарский муниципальный район","Город Ангарск","25603101","ОАО \"Иркутскоблгаз\"","3800000750","380850001"]
[28,"Ангарский муниципальный район","Город Ангарск","25603101","ОАО \"Иркутскэнерго\"","3800000220","997450001"]
[29,"Ангарский муниципальный район","Город Ангарск","25603101","ООО \"Ангара-Реактив\"","3801059241","380101001"]
[30,"Ангарский муниципальный район","Город Ангарск","25603101","ООО \"СЭП\"","3801111090","380101001"]
[31,"Ангарский муниципальный район","Город Ангарск","25603101","ООО \"Сиб-Транс-Петройл\"","3812065046","381101001"]
[32,"Ангарский муниципальный район","Город Ангарск","25603101","ООО \"Строительство и проектирование\"","3801073126","380101001"]
[33,"Ангарский муниципальный район","Город Ангарск","25603101","ООО \"Централизованная Энергоремонтная фирма\"","3827016115","381201001"]
[34,"Ангарский муниципальный район","Мегетское","25603155","ЗАО \"Управляющая компания \"Центральная\"","3801108509","380101001"]
[35,"Ангарский муниципальный район","Мегетское","25603155","МУП города Ангарска \"Ангарский Водоканал\"","3801006828","380101001"]
[36,"Ангарский муниципальный район","Мегетское","25603155","ОАО \"Ангарская нефтехимическая компания\"","3801009466","997150001"]
[37,"Ангарский муниципальный район","Мегетское","25603155","ООО \" РУСВОДОКАНАЛ\"","3801110360","380101001"]
[38,"Ангарский муниципальный район","Мегетское","25603155","ООО \"БТСК\"","3808070050","380801001"]
[39,"Ангарский муниципальный район","Мегетское","25603155","ФГУП РТРС \"Иркутский ОРТПЦ\"","7717127211","380802002"]
[40,"Ангарский муниципальный район","Мегетское","25603155","Филиал \"Иркутский\" ОАО \"Славянка\"","7702707386","381143001"]
[41,"Ангарский муниципальный район","Мегетское","25603155","Филиал ОАО \"РЭУ\" \"Иркутский\"","7714783092","381143001"]
[42,"Ангарский муниципальный район","Одинское","25603405","МУП ОМО СП \"Преобразование\"","3801083251","380101001"]
[43,"Ангарский муниципальный район","Одинское","25603405","ФГУП РТРС \"Иркутский ОРТПЦ\"","7717127211","380802002"]
[44,"Ангарский муниципальный район","Савватеевское","25603408","МКП СМО \"Савва\"","3801106068","380101001"]
[45,"Балаганский муниципальный район","Балаганское","25601151","МУП \"РайКомХоз\"","3814997460","381401001"]
[46,"Балаганский муниципальный район","Балаганское","25601151","ООО \"ТВК-Сервис+\"","3814015562","381401001"]
[47,"Балаганский муниципальный район","Биритское","25601405","КФХ \"Рубцов Ю.С.\"","382200197484","382201001"]
[48,"Балаганский муниципальный район","Коноваловское","25601415","КФХ \"Бережных И.В.\"","382200232795","380102001"]
[49,"Балаганский муниципальный район","Кумарейское","25601418","ИП Моськин Г.В.","382200002255","отсутствует"]
[50,"Балаганский муниципальный район","Тарнопольское","25601425","ИП КФХ Шиверских В.К.","382200151401","отсутствует"]
[51,"Балаганский муниципальный район","Шарагайское","25601435","ИП Немчинов С.А.","382200346400","отсутствует"]
[52,"Баяндаевский муниципальный район","Баяндай","25825405","МУП \"Баяндаевского района\"","3849027520","384901001"]
[53,"Баяндаевский муниципальный район","Баяндай","25825405","МУП \"Бытовик\"","8502003024","850201001"]
[54,"Баяндаевский муниципальный район","Васильевск","25825408","АМО \"Васильевск\"","8502003183","850201001"]
[55,"Баяндаевский муниципальный район","Гаханы","25825403","МУП \"Гаханы\"","3849011985","384901001"]
[56,"Баяндаевский муниципальный район","Курумчинский","25825414","АМО \"Курумчинский\"","8502003137","850201001"]
[57,"Баяндаевский муниципальный район","Кырма","25825420","АМО \"Кырма\"","8502003225","850201001"]
[58,"Баяндаевский муниципальный район","Люры","25825424","АМО \"Люры\"","8502003151","850201001"]
[59,"Баяндаевский муниципальный район","Нагалык","25825428","АМО \"Нагалык\"","8502003190","850201001"]
[60,"Баяндаевский муниципальный район","Ользоны","25825432","АМО \"Ользоны\"","8502003169","850201001"]
[61,"Баяндаевский муниципальный район","Покровка","25825434","АМО \"Покровка\"","8502003200","850201001"]
[62,"Баяндаевский муниципальный район","Половинка","25825435","АМО \"Половинка\"","8502003232","850201001"]
[63,"Баяндаевский муниципальный район","Тургеневка","25825441","АМО \"Тургеневка\"","8502003144","850201001"]
[64,"Баяндаевский муниципальный район","Хогот","25825448","АМО \"Хогот\"","8502003257","850201001"]
[65,"Бодайбинский муниципальный район","Артемовское","25602155","МУП \"Артемовское ЖКХ\"","3802012461","380201001"]
[66,"Бодайбинский муниципальный район","Артемовское","25602155","ООО \"ТеплоВодоРесурс\"","3802013391","380201001"]
[67,"Бодайбинский муниципальный район","Балахнинское","25602156","МУП \"ТВС п.Балахнинский\"","3802011789","380201001"]
[68,"Бодайбинский муниципальный район","Балахнинское","25602156","ООО \"ТеплоВодоРесурс\"","3802013391","380201001"]
[69,"Бодайбинский муниципальный район","Бодайбинское","25602101","\"Золотая Русь\"","3802009162","380201001"]
[70,"Бодайбинский муниципальный район","Бодайбинское","25602101","ЗАО \"Витимэнерго\"","3802005802","380201001"]
[71,"Бодайбинский муниципальный район","Бодайбинское","25602101","ЗАО \"Витимэнергосбыт\"","3802010714","380201001"]
[72,"Бодайбинский муниципальный район","Бодайбинское","25602101","ЗАО \"Ленсиб\"","3802005464","380250001"]
[73,"Бодайбинский муниципальный район","Бодайбинское","25602101","ЗАО «Артель старателей «Витим»","3802007817","380201001"]
[74,"Бодайбинский муниципальный район","Бодайбинское","25602101","МУП \"Тепловодоканал\"","3802009268","380201001"]
[75,"Бодайбинский муниципальный район","Бодайбинское","25602101","ОАО \"Первенец\"","3802008546","380201001"]
[76,"Бодайбинский муниципальный район","Бодайбинское","25602101","ООО Вариант плюс","3802010087","380201001"]
[77,"Бодайбинский муниципальный район","Жуинское","25602402","МУП \"ТВС п.Перевоз\"","3802011958","380201001"]
[78,"Бодайбинский муниципальный район","Кропоткинское","25602158","МУП \"Комплекс тепловодоснабжения п.Кропоткин\"","3802013546","380201001"]
[79,"Бодайбинский муниципальный район","Кропоткинское","25602158","МУП \"ТВК п.Кропоткин\"","3802012221","380201001"]
[80,"Бодайбинский муниципальный район","Мамаканское","25602162","МУП \"ЖКХ п.Мамакан\"","3802010224","380201001"]
[81,"Бодайбинский муниципальный район","Мамаканское","25602162","МУП \"Тепловодоканал\"","3802009268","380201001"]
[82,"Бодайбинский муниципальный район","Мамаканское","25602162","ООО \"ТЭП-2\"","3802013539","380201001"]
[83,"Боханский муниципальный район","Бохан","25826405","Боханское МУП \"Заря\"","3849025152","384901001"]
[84,"Боханский муниципальный район","Бохан","25826405","Буретское ХПП","8503000001","850301001"]
[85,"Боханский муниципальный район","Бохан","25826405","МДОУ \"Боханский детский сад № 1\"","8503002231","850301001"]
[86,"Боханский муниципальный район","Бохан","25826405","ОАО \"Иркутскоблгаз\"","3800000750","380850001"]
[87,"Боханский муниципальный район","Бохан","25826405","ООО \"Тепловодоканал\"","3849025280","384901001"]
[88,"Боханский муниципальный район","Буреть","25826407","Буретское ХПП","8503000001","850301001"]
[89,"Боханский муниципальный район","Казачье","25826416","ООО \"Эдельвейс\"","8503006733","850301001"]
[90,"Боханский муниципальный район","Каменка","25826419","КФХ \"Пашков Д.А.\"","850300013300","850301001"]
[91,"Боханский муниципальный район","Новая Ида","25826424","ИП Иванов В.П.","850301519202","850301001"]
[92,"Боханский муниципальный район","Олонки","25826429","ИП Сыромятников Д. Н.","850301428523","отсутствует"]
[93,"Боханский муниципальный район","Олонки","25826429","ООО \"Юник\"","8503006204","850301001"]
[94,"Боханский муниципальный район","Середкино","25826435","ОАО \"Приангарское\"","8503003443","850301001"]
[95,"Боханский муниципальный район","Тараса","25826438","ООО им. \"П.С. Балтахинова\"","8503006691","850301001"]
[96,"Боханский муниципальный район","Тихоновка","25826440","ИП Кондрат И.М.","850300463162","отсутствует"]
[97,"Боханский муниципальный район","Укыр","25826442","КФХ  Халтанов В.К.","850300344944","850301001"]
[98,"Боханский муниципальный район","Хохорск","25826449","ИП Сирина","850300275602","850301001"]
[99,"Боханский муниципальный район","Шаралдай","25826450","ИП \"Богданов Г.И.\"","8503005779","850301001"]
[100,"Братский муниципальный район","Большеокинское","25604401","ООО ЖКХ \"Большеокинское\"","3823031024","382301001"]
[101,"Братский муниципальный район","Вихоревское","25604103","Восточно-Сибирская дирекция по тепловодоснабжению - структурное подразделение центральной дирекции по тепловодоснабжению филиала ОАО \"РЖД\"","7708503727","385145042"]
[102,"Братский муниципальный район","Вихоревское","25604103","ОАО \"Облжилкомхоз\"","3808133575","384901001"]
[103,"Братский муниципальный район","Вихоревское","25604103","ОАО \"Облжилкомхоз\" Вихоревское управление","3808133575","382301001"]
[104,"Братский муниципальный район","Вихоревское","25604103","ООО \"Наш город\"","3823017196","382301001"]
[105,"Братский муниципальный район","Добчурское","25604402","ООО \"Надежда\"","3823034177","382301001"]
[106,"Братский муниципальный район","Зябинское","25604456","МУП \"Зябинское ЖКХ\"","3823019965","382301001"]
[107,"Братский муниципальный район","Зябинское","25604456","ОАО \"Братскэкогаз\"","3803101611","380501001"]
[108,"Братский муниципальный район","Зябинское","25604456","ООО \"Газпром межрегионгаз Новосибирск\"","5407208153","540701001"]
[109,"Братский муниципальный район","Илирское","25604404","ООО \"ЖКХ Прибрежный\"","3823019330","382301001"]
[110,"Братский муниципальный район","Калтукское","25604407","МУП \" ЖКХ Калтук\"","3847000561","384701001"]
[111,"Братский муниципальный район","Калтукское","25604407","МУП \"Калтукское ЖКХ\"","3823019919","382301001"]
[112,"Братский муниципальный район","Карахунское","25604410","МУП \"Карахунское ЖКХ\"","3823032405","382301001"]
[113,"Братский муниципальный район","Кежемское","25604413","МУП \"Кежемское ЖКХ\"","3823019997","382301001"]
[114,"Братский муниципальный район","Ключи-Булакское","25604416","МУЗ \"Братская ЦРБ\"","3823001365","382301001"]
[115,"Братский муниципальный район","Ключи-Булакское","25604416","МУП \"Ключи-Булакское ЖКХ\"","3823020248","382301001"]
[116,"Братский муниципальный район","Ключи-Булакское","25604416","ООО \"Фортуна\"","3823034096","382301001"]
[117,"Братский муниципальный район","Кобинское","25604457","АМО \"Кобинское СП\"","3823018190","382301001"]
[118,"Братский муниципальный район","Кобинское","25604457","МУЗ \"Братская ЦРБ\"","3823001365","382301001"]
[119,"Братский муниципальный район","Кобляковское","25604422","МУП \"Кобляковское ЖКХ\"","3823020230","382301001"]
[120,"Братский муниципальный район","Кобляковское","25604422","ООО \"Кобляковское\"","3823034064","382301001"]
[121,"Братский муниципальный район","Куватское","25604458","МУП \"Калтукское ЖКХ\"","3823019919","382301001"]
[122,"Братский муниципальный район","Наратайское","25604428","ООО \"Наратаевский ЛПХ\"","3823019450","382301001"]
[123,"Братский муниципальный район","Наратайское","25604428","ООО \"Светлана\"","3823017502","382301001"]
[124,"Братский муниципальный район","Озернинское","25604431","МУП \"Озернинское ЖКХ\"","3823020255","382301001"]
[125,"Братский муниципальный район","Покоснинское","25604437","ООО \"Покоснинская Коммунальная Служба\"","3823034120","382301001"]
[126,"Братский муниципальный район","Прибойнинское","25604434","МУП \"Карахунское ЖКХ\"","3823032405","382301001"]
[127,"Братский муниципальный район","Прибойнинское","25604434","МУП \"Прибойнинское\"","3823050309","382301001"]
[128,"Братский муниципальный район","Прибрежнинское","25604440","МУЗ \"Братская ЦРБ\"","3823001365","382301001"]
[129,"Братский муниципальный район","Прибрежнинское","25604440","ООО \"Альфа\"","3847000314","384701001"]
[130,"Братский муниципальный район","Прибрежнинское","25604440","ООО \"ЖКХ Прибрежный\"","3823019330","382301001"]
[131,"Братский муниципальный район","Тангуйское","25604443","МУЗ \"Братская ЦРБ\"","3823001365","382301001"]
[132,"Братский муниципальный район","Тангуйское","25604443","МУП \"ТЖКХ\"","3823019860","382301001"]
[133,"Братский муниципальный район","Тангуйское","25604443","МУП \"Тангуйская коммунальная служба\"","3847000427","384701001"]
[134,"Братский муниципальный район","Тарминское","25604445","МУП \"Тарминское\"","3823020270","382301001"]
[135,"Братский муниципальный район","Турманское","25604447","Восточно-Сибирская дирекция по тепловодоснабжению - структурное подразделение центральной дирекции по тепловодоснабжению филиала ОАО \"РЖД\"","7708503727","385145042"]
[136,"Братский муниципальный район","Турманское","25604447","МУП \"ЖКХ Турма\"","3847000593","384701001"]
[137,"Братский муниципальный район","Турманское","25604447","Турманское МУП \"ЖКС\"","3823019926","382301001"]
[138,"Братский муниципальный район","Тынкобьское","25604449","МУП \"Тынкобьское ЖКХ\"","3823032324","382301001"]
[139,"Братский муниципальный район","Харанжинское","25604452","МУП \"Харанжинское ЖКХ\"","3823019980","382301001"]
[140,"Братский муниципальный район","Шумиловское","25604455","ИП Токмин В.И.","382302241365","отсутствует"]
[141,"Город Братск","Город Братск","25714000","ЗАО \"Братская электросетевая компания\"","3804009506","380401001"]
[142,"Город Братск","Город Братск","25714000","ЗАО \"Братские электрические сети\"","3803100520","380450001"]
[143,"Город Братск","Город Братск","25714000","ЗАО \"Илимхимпром\"","3804026910","380450001"]
[144,"Город Братск","Город Братск","25714000","МП \"Дирекция городской инфраструктуры\" МО г. Братска","3804045543","380401001"]
[145,"Город Братск","Город Братск","25714000","ОАО \"Аэропорт Братск\"","3805104706","380501001"]
[146,"Город Братск","Город Братск","25714000","ОАО \"Братскэкогаз\"","3803101611","380501001"]
[147,"Город Братск","Город Братск","25714000","ОАО \"Группа \"ИЛИМ\"","7840346335","380402001"]
[148,"Город Братск","Город Братск","25714000","ОАО \"Иркутскэнерго\"","3800000220","997450001"]
[149,"Город Братск","Город Братск","25714000","ОАО \"РУСАЛ Братский алюминиевый завод\"","3803100054","997550001"]
[150,"Город Братск","Город Братск","25714000","ОАО \"Санаторий Братское взморье\"","3805100973","380501001"]
[151,"Город Братск","Город Братск","25714000","ООО \"Братская электрическая компания\" (ООО \"БЭК\")","3805112760","380401001"]
[152,"Город Братск","Город Братск","25714000","ООО \"Братскводсистема\"","3804008559","380401001"]
[153,"Город Братск","Город Братск","25714000","ООО \"Братские электрические сети\"","3804047727","380401001"]
[154,"Город Братск","Город Братск","25714000","ООО \"Братский Полигон ТБО\"","3804036877","380401001"]
[155,"Город Братск","Город Братск","25714000","ООО \"Газпром межрегионгаз Новосибирск\"","5407208153","540701001"]
[156,"Город Братск","Город Братск","25714000","ООО \"Падунская коммунальная компания\"","3805113362","380501001"]
[157,"Город Братск","Город Братск","25714000","ООО \"Парус\"","3804021655","380401001"]
[158,"Город Братск","Город Братск","25714000","ООО \"СибирьЭнергоКонсалт\"","3805715092","380501001"]
[159,"Город Братск","Город Братск","25714000","ООО \"Сибтехинвест\"","3808153684","380401001"]
[160,"Город Братск","Город Братск","25714000","ООО \"Теплоцентр\"","3804044236","380401001"]
[161,"Город Братск","Город Братск","25714000","ООО \"Энергоресурс\"","3804044229","380401001"]
[162,"Город Братск","Город Братск","25714000","ООО «Универсал Эко»","3805701808","380501001"]
[163,"Город Братск","Город Братск","25714000","Филиал \"Иркутский\" ОАО \"Славянка\"","7702707386","381143001"]
[164,"Город Братск","Город Братск","25714000","Филиал ОАО \"РЭУ\" \"Иркутский\"","7714783092","381143001"]
[165,"Город Иркутск","Город Иркутск","25701000","БФ \"Сосновгеология\" ФГУГП \"Урангео\"","7706042118","381231001"]
[166,"Город Иркутск","Город Иркутск","25701000","Восточно-Сибирская дирекция по тепловодоснабжению - структурное подразделение центральной дирекции по тепловодоснабжению филиала ОАО \"РЖД\"","7708503727","385145042"]
[167,"Город Иркутск","Город Иркутск","25701000","Восточно-Сибирская дирекция по энергообеспечению - структурное подразделение Трансэнерго - филиала ОАО \"РЖД\"","7708503727","381045011"]
[168,"Город Иркутск","Город Иркутск","25701000","ЗАО \"Стройсервис\"","3810005796","381001001"]
[169,"Город Иркутск","Город Иркутск","25701000","ИАЗ-филиал ОАО НПК \"Иркут\"","3807002509","381002001"]
[170,"Город Иркутск","Город Иркутск","25701000","МУП \"Водоканал\" г.Иркутска","3807000276","381150001"]
[171,"Город Иркутск","Город Иркутск","25701000","МУП \"Спецавтохозяйство\"","3807000117","384901001"]
[172,"Город Иркутск","Город Иркутск","25701000","Муниципальное унитарное предприятие \"ТеплоЭнергоСервис г. Иркутска\"","3810033722","381001001"]
[173,"Город Иркутск","Город Иркутск","25701000","ОАО \"Байкальская пригородная пассажирская компания\"","3808218300","380801001"]
[174,"Город Иркутск","Город Иркутск","25701000","ОАО \"Восточно-Сибирское речное пароходство\"","3800000340","380801001"]
[175,"Город Иркутск","Город Иркутск","25701000","ОАО \"Иркутская Электросетевая компания\"","3812122706","997450001"]
[176,"Город Иркутск","Город Иркутск","25701000","ОАО \"Иркутский завод дорожных машин\"","3809007894","380801001"]
[177,"Город Иркутск","Город Иркутск","25701000","ОАО \"Иркутскоблгаз\"","3800000750","380850001"]
[178,"Город Иркутск","Город Иркутск","25701000","ОАО \"Иркутскэнерго\"","3800000220","997450001"]
[179,"Город Иркутск","Город Иркутск","25701000","ОАО \"Международный Аэропорт Иркутск\"","3811146038","381150001"]
[180,"Город Иркутск","Город Иркутск","25701000","ОАО \"Молоко\"","3811017498","380801001"]
[181,"Город Иркутск","Город Иркутск","25701000","ОАО Мясокомбинат \"Иркутский \"","3807000999","380801001"]
[182,"Город Иркутск","Город Иркутск","25701000","ОГУЭП \"Облкоммунэнерго\"","3800000252","381150001"]
[183,"Город Иркутск","Город Иркутск","25701000","ООО \"АктивЭнерго\"","3808159809","384901001"]
[184,"Город Иркутск","Город Иркутск","25701000","ООО \"Иркутск-Терминал\"","3808083420","384901001"]
[185,"Город Иркутск","Город Иркутск","25701000","ООО \"Иркутск-Терминал\"  Жилкинский цех","3808083420","381032001"]
[186,"Город Иркутск","Город Иркутск","25701000","ООО \"Иркутская городская теплосбытовая компания\"","3811095810","380801001"]
[187,"Город Иркутск","Город Иркутск","25701000","ООО \"Иркутский промкомбинат Облпотребсоюза\"","3808054066","384901001"]
[188,"Город Иркутск","Город Иркутск","25701000","ООО \"Сетевая компания \"Иркут\"","3810035487","381001001"]
[189,"Город Иркутск","Город Иркутск","25701000","ООО \"Сетевая компания - Тепло\"","3810325203","381001001"]
[190,"Город Иркутск","Город Иркутск","25701000","ООО \"Сибирская электросетевая компания\"","3812141459","381201001"]
[191,"Город Иркутск","Город Иркутск","25701000","ООО \"Тепло-Транс\"","3808209136","380801001"]
[192,"Город Иркутск","Город Иркутск","25701000","ООО «Инвестиционно-сетевая компания «Зодиак Плюс»","3811152680","381101001"]
[193,"Город Иркутск","Город Иркутск","25701000","ООО Сетевая компания \"Радиан\"","3810310687","381001001"]
[194,"Город Иркутск","Город Иркутск","25701000","ООО УК \"СОЛ\"","3808172790","380801001"]
[195,"Город Иркутск","Город Иркутск","25701000","ООО Энергетическая компания \"Радиан\"","3810051697","381001001"]
[196,"Город Иркутск","Город Иркутск","25701000","ФКУ ИК-3 ГУФСИН по Иркутской области","3808055711","384901001"]
[197,"Город Иркутск","Город Иркутск","25701000","Филиал \"Иркутский\" ОАО \"Славянка\"","7702707386","381143001"]
[198,"Город Иркутск","Город Иркутск","25701000","Филиал ОАО \"РЭУ\" \"Иркутский\"","7714783092","381143001"]
[199,"Город Иркутск","Город Иркутск","25701000","Филиал ФГУП ВГТРК ГТРК \"Иркутск\"","7714072839","380802002"]
[200,"Город Саянск","Город Саянск","25726000","МУП \"Водоканал-Сервис\"","3814007427","381401001"]
[201,"Город Саянск","Город Саянск","25726000","МУП \"Саянское теплоэнергетическое предприятие\"","3814000090","381401001"]
[202,"Город Саянск","Город Саянск","25726000","ОАО \"Иркутскэнерго\"","3800000220","997450001"]
[203,"Город Саянск","Город Саянск","25726000","ОАО \"Саянскхимпласт\"","3814007314","381401001"]
[204,"Город Саянск","Город Саянск","25726000","ООО \"Водоотведение\"","3814018330","381401001"]
[205,"Город Саянск","Город Саянск","25726000","ООО \"Водоснабжение\"","3814018323","381401001"]
[206,"Город Саянск","Город Саянск","25726000","ООО \"Каскад\"","3814008526","381401001"]
[207,"Город Саянск","Город Саянск","25726000","ООО \"Коммунальный специальный транспорт\"","3814008477","381401001"]
[208,"Город Саянск","Город Саянск","25726000","ООО \"Промстроймонтаж\"","3814003687","381401001"]
[209,"Город Саянск","Город Саянск","25726000","ООО \"Управление энергоснабжения\"","3808106074","381401001"]
[210,"Город Свирск","Город Свирск","25746000","ОАО \"Иркутскоблгаз\"","3800000750","380850001"]
[211,"Город Свирск","Город Свирск","25746000","ООО \"Берёзовый\"","3851004456","385101001"]
[212,"Город Свирск","Город Свирск","25746000","ООО \"ВСЭ-сети\"","3820006485","385101001"]
[213,"Город Свирск","Город Свирск","25746000","ООО \"Гарант\"","3820008299","385101001"]
[214,"Город Свирск","Город Свирск","25746000","ООО \"Тепловые сети\"","3820011982","385101001"]
[215,"Город Свирск","Город Свирск","25746000","ООО \"Теплоэнергосервис\"","3820012880","382001001"]
[216,"Город Свирск","Город Свирск","25746000","ООО \"УК \"Водоканал-Сервис\"","3820014648","385101001"]
[217,"Город Свирск","Город Свирск","25746000","ООО \"Центральная котельная\"","3820012009","385101001"]
[218,"Город Тулун","Город Тулун","25732000","Восточно-Сибирская дирекция по тепловодоснабжению - структурное подразделение центральной дирекции по тепловодоснабжению филиала ОАО \"РЖД\"","7708503727","385145042"]
[219,"Город Тулун","Город Тулун","25732000","ИП Шлапаков Андрей Александрович","381601850250","381601001"]
[220,"Город Тулун","Город Тулун","25732000","МКП \"Благоустройство\"","3816006644","381601001"]
[221,"Город Тулун","Город Тулун","25732000","МП МО г. Тулун \"Тепло-Энерго-Централь\"","3816008722","381601001"]
[222,"Город Тулун","Город Тулун","25732000","ОАО \"Восточно-Сибирский комбинат биотехнологий\"","3816009420","381601001"]
[223,"Город Тулун","Город Тулун","25732000","ОАО \"Иркутскоблгаз\"","3800000750","380850001"]
[224,"Город Тулун","Город Тулун","25732000","ОАО \"Иркутскэнерго\"","3800000220","997450001"]
[225,"Город Тулун","Город Тулун","25732000","ОАО \"Облжилкомхоз\"","3808133575","384901001"]
[226,"Город Тулун","Город Тулун","25732000","ОАО \"Облжилкомхоз\" Западный филиал","3808133575","381601001"]
[227,"Город Тулун","Город Тулун","25732000","ООО \"Тепломонтаж-С\"","3816010263","381601001"]
[228,"Город Тулун","Город Тулун","25732000","Филиал \"Иркутское РНУ\" ООО \"Востокнефтепровод\"","3801079671","380102001"]
[229,"Город Усолье-Сибирское","Город Усолье-Сибирское","25736000","Восточно-Сибирская дирекция по тепловодоснабжению - структурное подразделение центральной дирекции по тепловодоснабжению филиала ОАО \"РЖД\"","7708503727","385145042"]
[230,"Город Усолье-Сибирское","Город Усолье-Сибирское","25736000","ОАО \"Иркутскоблгаз\"","3800000750","380850001"]
[231,"Город Усолье-Сибирское","Город Усолье-Сибирское","25736000","ОАО \"Иркутскэнерго\"","3800000220","997450001"]
[232,"Город Усолье-Сибирское","Город Усолье-Сибирское","25736000","ОАО \"Усолье-Сибирский химфармзавод\"","3819012188","385101001"]
[233,"Город Усолье-Сибирское","Город Усолье-Сибирское","25736000","ООО \"АкваСервис\"","3851001198","385101001"]
[234,"Город Усолье-Сибирское","Город Усолье-Сибирское","25736000","ООО \"Коммунальник+\"","3819021337","381901001"]
[235,"Город Усолье-Сибирское","Город Усолье-Сибирское","25736000","ООО \"Максимус\"","3851004030","385101001"]
[236,"Город Усолье-Сибирское","Город Усолье-Сибирское","25736000","ООО \"ПК БРАСС\"","7813376549","385101001"]
[237,"Город Усолье-Сибирское","Город Усолье-Сибирское","25736000","ООО \"Руссоль\"","5611055980","561101001"]
[238,"Город Усолье-Сибирское","Город Усолье-Сибирское","25736000","ООО \"Усольехимпром\"","3819013576","381950001"]
[239,"Город Усть-Илимск","Город Усть-Илимск","25738000","ОАО \"Группа \"Илим\"","7840346335","381702001"]
[240,"Город Усть-Илимск","Город Усть-Илимск","25738000","ОАО \"Иркутскэнерго\"","3800000220","997450001"]
[241,"Город Усть-Илимск","Город Усть-Илимск","25738000","ООО \"Стойфирма\"","3817024011","381701001"]
[242,"Город Черемхово","Город Черемхово","25745000","Восточно-Сибирская дирекция по тепловодоснабжению - структурное подразделение центральной дирекции по тепловодоснабжению филиала ОАО \"РЖД\"","7708503727","385145042"]
[243,"Город Черемхово","Город Черемхово","25745000","ОАО \"Иркутскоблгаз\"","3800000750","380850001"]
[244,"Город Черемхово","Город Черемхово","25745000","ОАО \"Иркутскэнерго\"","3800000220","997450001"]
[245,"Город Черемхово","Город Черемхово","25745000","ООО \"Водозабор города Черемхово\"","3851007200","385101001"]
[246,"Город Черемхово","Город Черемхово","25745000","ООО \"Водоканал города Черемхово\"","3851007143","385101001"]
[247,"Город Черемхово","Город Черемхово","25745000","ООО \"Теплосервис\"","3820011326","382001001"]
[248,"Город Черемхово","Город Черемхово","25745000","ООО \"УК Благоустройства\"","3820010844","385101001"]
[249,"Город Черемхово","Город Черемхово","25745000","ООО\"Трансвагонмаш\"","7708647905","385143001"]
[250,"Жигаловский муниципальный район","Дальне-Закорское","25606404","МСХП \"Дальняя Закора\"","3824001880","380801001"]
[251,"Жигаловский муниципальный район","Жигаловское","25606151","Жигаловское МУ ТЭП","3824001791","382401001"]
[252,"Жигаловский муниципальный район","Жигаловское","25606151","ООО \"Компания СпецМонтажПроект\"","3811077539","381101001"]
[253,"Жигаловский муниципальный район","Жигаловское","25606151","ФГУ ЛБУВПиС","1435033691","382402001"]
[254,"Жигаловский муниципальный район","Жигаловское","25606151","Филиал ОАО \"ИЭСК\"  \"Восточные электрические сети\"","3812122706","381143001"]
[255,"Заларинский муниципальный район","Бабагайское","25608402","АМО Бабагайское","3814009872","381401001"]
[256,"Заларинский муниципальный район","Бажирское","25608404","АМО Бажирское","3814010148","381401001"]
[257,"Заларинский муниципальный район","Веренское","25608407","АМО Веренское","3825009833","381401001"]
[258,"Заларинский муниципальный район","Владимирское","25608410","АМО Владимирское","3814009880","381401001"]
[259,"Заларинский муниципальный район","Владимирское","25608410","ОГБУСО \"Заларинский специальный дом - интернат для престарелых и инвалидов\"","3825001498","382501001"]
[260,"Заларинский муниципальный район","Заларинское","25608151","Восточно-Сибирская дирекция по тепловодоснабжению - структурное подразделение центральной дирекции по тепловодоснабжению филиала ОАО \"РЖД\"","7708503727","385145042"]
[261,"Заларинский муниципальный район","Заларинское","25608151","ОАО \"Иркутскоблгаз\"","3800000750","380850001"]
[262,"Заларинский муниципальный район","Заларинское","25608151","ООО \"Жилсервис\"","3814013886","381401001"]
[263,"Заларинский муниципальный район","Заларинское","25608151","ООО \"Коммунальщик\"","3825005643","382501001"]
[264,"Заларинский муниципальный район","Заларинское","25608151","ООО \"СибТеплоСервис\"","3814016950","381401001"]
[265,"Заларинский муниципальный район","Заларинское","25608151","ООО УК \"Гарант\"","3814012402","381501001"]
[266,"Заларинский муниципальный район","Моисеевское","25608416","АМО Моисеевское","3814009819","381401001"]
[267,"Заларинский муниципальный район","Мойганское","25608419","АМО Мойганское","3814009791","381401001"]
[268,"Заларинский муниципальный район","Семеновское","25608425","АМО Семеновское","3814009801","381401001"]
[269,"Заларинский муниципальный район","Троицкое","25608428","МУП \"Росинка\"","3814016213","381401001"]
[270,"Заларинский муниципальный район","Тыретское","25608155","ОАО \"Иркутскоблгаз\"","3800000750","380850001"]
[271,"Заларинский муниципальный район","Тыретское","25608155","ОАО \"Тыретский солерудник\"","3814011769","381401001"]
[272,"Заларинский муниципальный район","Тыретское","25608155","ООО \"Жилищно-коммунальный сервис\"","3814012829","381401001"]
[273,"Заларинский муниципальный район","Тыретское","25608155","ООО \"Тыретские инженерные сети\"","3814016968","381401001"]
[274,"Заларинский муниципальный район","Ханжиновское","25608434","АМО Ханжиновское","3814009826","381401001"]
[275,"Заларинский муниципальный район","Ханжиновское","25608434","СПК\"Тыретский\"","3825001032","381401001"]
[276,"Заларинский муниципальный район","Холмогойское","25608437","АМО Холмогойское","3814010123","381401001"]
[277,"Заларинский муниципальный район","Хор-Тагнинское","25608440","АМО Хор-Тагнинское","3814009914","281401001"]
[278,"Зиминский муниципальный район","Батаминское","25610402","\"Тепловик\"","3806002376","380601001"]
[279,"Зиминский муниципальный район","Батаминское","25610402","ООО \"Водоканал\"","3806002320","380601001"]
[280,"Зиминский муниципальный район","Кимильтейское","25610407","МУП \"Водоканал-Сервис\"","3814007427","381401001"]
[281,"Зиминский муниципальный район","Кимильтейское","25610407","ОАО \"Саянскхимпласт\"","3814007314","381401001"]
[282,"Зиминский муниципальный район","Кимильтейское","25610407","ООО \"Водоканал\"","3806002320","380601001"]
[283,"Зиминский муниципальный район","Кимильтейское","25610407","Филиал \"Иркутское РНУ\" ООО \"Востокнефтепровод\"","3801079671","380102001"]
[284,"Зиминский муниципальный район","Масляногорское","25610413","\"Тепловик\"","3806002376","380601001"]
[285,"Зиминский муниципальный район","Масляногорское","25610413","ООО \"Водоканал\"","3806002320","380601001"]
[286,"Зиминский муниципальный район","Новолетниковское","25610416","\"Тепловик\"","3806002376","380601001"]
[287,"Зиминский муниципальный район","Покровское","25610419","\"Тепловик\"","3806002376","380601001"]
[288,"Зиминский муниципальный район","Покровское","25610419","ООО \"Водоканал\"","3806002320","380601001"]
[289,"Зиминский муниципальный район","Покровское","25610419","ООО \"Водоснабжение\"","3806000160","380601001"]
[290,"Зиминский муниципальный район","Услонское","25610422","\"Тепловик\"","3806002376","380601001"]
[291,"Зиминский муниципальный район","Услонское","25610422","ООО \"Водоканал\"","3806002320","380601001"]
[292,"Зиминский муниципальный район","Услонское","25610422","ООО \"Водоснабжение\"","3806000160","380601001"]
[293,"Зиминский муниципальный район","Услонское","25610422","Филиал \"Иркутский\" ОАО \"Славянка\"","7702707386","381143001"]
[294,"Зиминский муниципальный район","Услонское","25610422","Филиал ОАО \"РЭУ\" \"Иркутский\"","7714783092","381143001"]
[295,"Зиминский муниципальный район","Ухтуйское","25610425","\"Тепловик\"","3806002376","380601001"]
[296,"Зиминский муниципальный район","Ухтуйское","25610425","МУП \"Водоканал-Сервис\"","3814007427","381401001"]
[297,"Зиминский муниципальный район","Ухтуйское","25610425","ОАО \"Иркутскэнерго\"","3800000220","997450001"]
[298,"Зиминский муниципальный район","Ухтуйское","25610425","ООО \"Водоканал\"","3806002320","380601001"]
[299,"Зиминский муниципальный район","Филипповское","25610428","\"Тепловик\"","3806002376","380601001"]
[300,"Зиминский муниципальный район","Филипповское","25610428","ООО \"Водоканал\"","3806002320","380601001"]
[301,"Зиминский муниципальный район","Хазанское","25610431","\"Тепловик\"","3806002376","380601001"]
[302,"Зиминский муниципальный район","Хазанское","25610431","ОГОУНПОПУ- 39","3826000610","382601001"]
[303,"Зиминский муниципальный район","Хазанское","25610431","ООО \"Водоканал\"","3806002320","380601001"]
[304,"Зиминский муниципальный район","Харайгунское","25610435","ООО \"Водоканал\"","3806002320","380601001"]
[305,"Зиминское городское муниципальное образование","Зиминское городское муниципальное образование","25720000","Восточно-Сибирская дирекция по тепловодоснабжению - структурное подразделение центральной дирекции по тепловодоснабжению филиала ОАО \"РЖД\"","7708503727","385145042"]
[306,"Зиминское городское муниципальное образование","Зиминское городское муниципальное образование","25720000","ОАО \"Вагонная ремонтная компания-3\"","7708737500","381445001"]
[307,"Зиминское городское муниципальное образование","Зиминское городское муниципальное образование","25720000","ОАО \"Иркутскоблгаз\"","3800000750","380850001"]
[308,"Зиминское городское муниципальное образование","Зиминское городское муниципальное образование","25720000","ОАО \"Иркутскэнерго\"","3800000220","997450001"]
[309,"Зиминское городское муниципальное образование","Зиминское городское муниципальное образование","25720000","ОАО «Дорожная служба Иркутской области»","3808166080","380602001"]
[310,"Зиминское городское муниципальное образование","Зиминское городское муниципальное образование","25720000","ООО \"Водоотведение\"","3806000146","380601001"]
[311,"Зиминское городское муниципальное образование","Зиминское городское муниципальное образование","25720000","ООО \"Водоснабжение\"","3806000160","380601001"]
[312,"Зиминское городское муниципальное образование","Зиминское городское муниципальное образование","25720000","ООО \"Иркутская Энергосбытовая компания\"","3808166404","381201001"]
[313,"Зиминское городское муниципальное образование","Зиминское городское муниципальное образование","25720000","ООО \"Коммунальный транспорт\"","3806004380","380601001"]
[314,"Зиминское городское муниципальное образование","Зиминское городское муниципальное образование","25720000","ООО \"Стоки\"","3806002390","380601001"]
[315,"Зиминское городское муниципальное образование","Зиминское городское муниципальное образование","25720000","ООО «Зиматеплоэнерго»","3806002489","380601001"]
[316,"Зиминское городское муниципальное образование","Зиминское городское муниципальное образование","25720000","ООО «Энергия»","3806004292","380601001"]
[317,"Иркутский  муниципальный район","Большереченское","25612155","ОАО \"Иркутскоблгаз\"","3800000750","380850001"]
[318,"Иркутский  муниципальный район","Большереченское","25612155","ОАО \"Облжилкомхоз\"","3808133575","384901001"]
[319,"Иркутский  муниципальный район","Большереченское","25612155","ОАО \"Облжилкомхоз\" Южный филиал","3808133575","382701001"]
[320,"Иркутский  муниципальный район","Большереченское","25612155","ООО \"Ушаковская\"","3827026265","382704001"]
[321,"Иркутский  муниципальный район","Голоустнинское","25612404","Голоустненское МУП ЖКХ","3827022126","382701001"]
[322,"Иркутский  муниципальный район","Голоустнинское","25612404","ОАО \"Облжилкомхоз\" Южный филиал","3808133575","382701001"]
[323,"Иркутский  муниципальный район","Гороховское","25612407","ОАО \"Облжилкомхоз\" Южный филиал","3808133575","382701001"]
[324,"Иркутский  муниципальный район","Дзержинское","25612438","ОАО \"Облжилкомхоз\"","3808133575","384901001"]
[325,"Иркутский  муниципальный район","Дзержинское","25612438","ОАО \"Облжилкомхоз\" Южный филиал","3808133575","382701001"]
[326,"Иркутский  муниципальный район","Иркутский  муниципальный район","25612000","ОАО \"Облжилкомхоз\" Южный филиал","3808133575","382701001"]
[327,"Иркутский  муниципальный район","Карлукское","25612408","ОАО \"Облжилкомхоз\"","3808133575","384901001"]
[328,"Иркутский  муниципальный район","Карлукское","25612408","ОАО \"Облжилкомхоз\" Южный филиал","3808133575","382701001"]
[329,"Иркутский  муниципальный район","Карлукское","25612408","Филиал \"Иркутский\" ОАО \"Славянка\"","7702707386","381143001"]
[330,"Иркутский  муниципальный район","Листвянское","25612160","\"Байкал-Отель\"","3808054595","380000000"]
[331,"Иркутский  муниципальный район","Листвянское","25612160","ОАО \"Иркутскоблгаз\"","3800000750","380850001"]
[332,"Иркутский  муниципальный район","Листвянское","25612160","ОАО \"Облжилкомхоз\"","3808133575","384901001"]
[333,"Иркутский  муниципальный район","Листвянское","25612160","ОАО \"Облжилкомхоз\" Южный филиал","3808133575","382701001"]
[334,"Иркутский  муниципальный район","Листвянское","25612160","ООО \"Янис-Трейд\"","3827026554","382701001"]
[335,"Иркутский  муниципальный район","Максимовское","25612410","ОАО \"Облжилкомхоз\"","3808133575","384901001"]
[336,"Иркутский  муниципальный район","Максимовское","25612410","ОАО \"Облжилкомхоз\" Южный филиал","3808133575","382701001"]
[337,"Иркутский  муниципальный район","Мамонское","25612439","ОАО \"Облжилкомхоз\"","3808133575","384901001"]
[338,"Иркутский  муниципальный район","Мамонское","25612439","ОАО \"Облжилкомхоз\" Южный филиал","3808133575","382701001"]
[339,"Иркутский  муниципальный район","Марковское","25612163","МУП \"Водоканал\" г.Иркутска","3807000276","381150001"]
[340,"Иркутский  муниципальный район","Марковское","25612163","ОАО \"Иркутскэнерго\"","3800000220","997450001"]
[341,"Иркутский  муниципальный район","Марковское","25612163","ОАО \"Облжилкомхоз\" Южный филиал","3808133575","382701001"]
[342,"Иркутский  муниципальный район","Марковское","25612163","ООО \"Коммунальник\"","3827020979","382701001"]
[343,"Иркутский  муниципальный район","Марковское","25612163","ООО \"ЭкоАльянс\"","3808182124","380801001"]
[344,"Иркутский  муниципальный район","Молодежное","25612440","ОАО \"Облжилкомхоз\" Южный филиал","3808133575","382701001"]
[345,"Иркутский  муниципальный район","Молодежное","25612440","ООО \"Прибайкальская электросетевая компания\"","3827032533","382701001"]
[346,"Иркутский  муниципальный район","Молодежное","25612440","Федеральное государственное образовательное учреждение высшего профессионального образования \"Иркутская государственная сельскохозяйственная академия\"","3811024304","382701001"]
[347,"Иркутский  муниципальный район","Никольское","25612413","ОАО \"Облжилкомхоз\"","3808133575","384901001"]
[348,"Иркутский  муниципальный район","Никольское","25612413","ОАО \"Облжилкомхоз\" Южный филиал","3808133575","382701001"]
[349,"Иркутский  муниципальный район","Оекское","25612416","ОАО \"Облжилкомхоз\"","3808133575","384901001"]
[350,"Иркутский  муниципальный район","Оекское","25612416","ОАО \"Облжилкомхоз\" Южный филиал","3808133575","382701001"]
[351,"Иркутский  муниципальный район","Оекское","25612416","Филиал \"Иркутский\" ОАО \"Славянка\"","7702707386","381143001"]
[352,"Иркутский  муниципальный район","Оекское","25612416","Филиал ОАО \"РЭУ\" \"Иркутский\"","7714783092","381143001"]
[353,"Иркутский  муниципальный район","Ревякинское","25612419","ОАО \"Облжилкомхоз\"","3808133575","384901001"]
[354,"Иркутский  муниципальный район","Ревякинское","25612419","ОАО \"Облжилкомхоз\" Южный филиал","3808133575","382701001"]
[355,"Иркутский  муниципальный район","Ревякинское","25612419","ООО «Агроэнергосбыт»","3827034516","382701001"]
[356,"Иркутский  муниципальный район","Смоленское","25612411","ОАО \"Облжилкомхоз\"","3808133575","384901001"]
[357,"Иркутский  муниципальный район","Смоленское","25612411","ОАО \"Облжилкомхоз\" Южный филиал","3808133575","382701001"]
[358,"Иркутский  муниципальный район","Сосновоборское","25612441","ОАО \"Облжилкомхоз\" Южный филиал","3808133575","382701001"]
[359,"Иркутский  муниципальный район","Сосновоборское","25612441","ООО \"КАНВОД\"","3808053746","382701001"]
[360,"Иркутский  муниципальный район","Сосновоборское","25612441","ООО \"Сосновый Бор\"","3827035679","382701001"]
[361,"Иркутский  муниципальный район","Сосновоборское","25612441","ООО \"УК \"Ушаковская\"","3827034065","382701001"]
[362,"Иркутский  муниципальный район","Уриковское","25612425","ОАО \"Облжилкомхоз\"","3808133575","384901001"]
[363,"Иркутский  муниципальный район","Уриковское","25612425","ОАО \"Облжилкомхоз\" Южный филиал","3808133575","382701001"]
[364,"Иркутский  муниципальный район","Уриковское","25612425","Филиал ОАО \"РЭУ\" \"Иркутский\"","7714783092","381143001"]
[365,"Иркутский  муниципальный район","Усть-Балейское","25612428","ОАО \"Облжилкомхоз\" Южный филиал","3808133575","382701001"]
[366,"Иркутский  муниципальный район","Усть-Кудинское","25612442","ОАО \"Облжилкомхоз\" Южный филиал","3808133575","382701001"]
[367,"Иркутский  муниципальный район","Ушаковское","25612431","ОАО \"Облжилкомхоз\"","3808133575","384901001"]
[368,"Иркутский  муниципальный район","Ушаковское","25612431","ОАО \"Облжилкомхоз\" Южный филиал","3808133575","382701001"]
[369,"Иркутский  муниципальный район","Ушаковское","25612431","ФГУП РТРС \"Иркутский ОРТПЦ\"","7717127211","380802002"]
[370,"Иркутский  муниципальный район","Хомутовское","25612434","ОАО \"Облжилкомхоз\"","3808133575","384901001"]
[371,"Иркутский  муниципальный район","Хомутовское","25612434","ОАО \"Облжилкомхоз\" Южный филиал","3808133575","382701001"]
[372,"Иркутский  муниципальный район","Хомутовское","25612434","ФГУ ИК-4 ФСИН России по Иркутской области","3827000524","382701001"]
[373,"Иркутский  муниципальный район","Хомутовское","25612434","Филиал \"Иркутский\" ОАО \"Славянка\"","7702707386","381143001"]
[374,"Иркутский  муниципальный район","Хомутовское","25612434","Филиал ОАО \"РЭУ\" \"Иркутский\"","7714783092","381143001"]
[375,"Иркутский  муниципальный район","Ширяевское","25612437","ОАО \"Облжилкомхоз\" Южный филиал","3808133575","382701001"]
[376,"Казачинско-Ленский муниципальный район","Казаченское","25614404","ЗАО \"Теплоэнергетическая компания Казачинско-Ленского района\"","3818025272","381845001"]
[377,"Казачинско-Ленский муниципальный район","Казаченское","25614404","Казачинско-Ленское Райпо","3828000710","382801001"]
[378,"Казачинско-Ленский муниципальный район","Казаченское","25614404","МУП \"Прогресс\"","3818027590","381801001"]
[379,"Казачинско-Ленский муниципальный район","Ключевское","25614417","ЗАО \"Теплоэнергетическая компания Казачинско-Ленского района\"","3818025272","381845001"]
[380,"Казачинско-Ленский муниципальный район","Кунерминское","25614153","МУП ЖКХ \"Кунерма\"","3818020588","381801001"]
[381,"Казачинско-Ленский муниципальный район","Магистральнинское","25614154","ЗАО \"Теплоэнергетическая компания Казачинско-Ленского района\"","3818025272","381845001"]
[382,"Казачинско-Ленский муниципальный район","Магистральнинское","25614154","ООО \"Водоканал п. Магистральный\"","3818025339","381801001"]
[383,"Казачинско-Ленский муниципальный район","Магистральнинское","25614154","Филиал \"Иркутский\" ОАО \"Славянка\"","7702707386","381143001"]
[384,"Казачинско-Ленский муниципальный район","Магистральнинское","25614154","Филиал ОАО \"РЭУ\" \"Иркутский\"","7714783092","381143001"]
[385,"Казачинско-Ленский муниципальный район","Небельское","25614418","ЗАО \"Теплоэнергетическая компания Казачинско-Ленского района\"","3818025272","381845001"]
[386,"Казачинско-Ленский муниципальный район","Новоселовское","25614416","ЗАО \"Теплоэнергетическая компания Казачинско-Ленского района\"","3818025272","381845001"]
[387,"Казачинско-Ленский муниципальный район","Ульканское","25614158","ЗАО \"Теплоэнергетическая компания Казачинско-Ленского района\"","3818025272","381845001"]
[388,"Казачинско-Ленский муниципальный район","Ульканское","25614158","ООО \"Водоканал п. Магистральный\"","3818025339","381801001"]
[389,"Катангский муниципальный район","Ербогаченское","25616404","ГУЭП \"Облкоммунэнерго-Сбыт\"","3811142185","381101001"]
[390,"Катангский муниципальный район","Ербогаченское","25616404","МУП \"Ербогаченское\"","3818024455","382901001"]
[391,"Катангский муниципальный район","Ербогаченское","25616404","ООО \"Катангская ПТК\"","3829036090","382901001"]
[392,"Катангский муниципальный район","Ербогаченское","25616404","ООО ТЭК \"Киренскэнергосервис\"","3818025160","381801001"]
[393,"Катангский муниципальный район","Катангский муниципальный район","25616000","ООО ТЭК \"Киренскэнергосервис\"","3818025160","381801001"]
[394,"Катангский муниципальный район","Непское","25616419","ООО ТЭК \"Киренскэнергосервис\"","3818025160","381801001"]
[395,"Катангский муниципальный район","Подволошинское","25616425","ГУЭП \"Облкоммунэнерго-Сбыт\"","3811142185","381101001"]
[396,"Катангский муниципальный район","Подволошинское","25616425","ООО ТЭК \"Киренскэнергосервис\"","3818025160","381801001"]
[397,"Катангский муниципальный район","Преображенское","25616428","ГУЭП \"Облкоммунэнерго-Сбыт\"","3811142185","381101001"]
[398,"Катангский муниципальный район","Преображенское","25616428","ООО ТЭК \"Киренскэнергосервис\"","3818025160","381801001"]
[399,"Качугский муниципальный район","Ангинское","25618402","АМО Ангинское","3830003388","383001001"]
[400,"Качугский муниципальный район","Бирюльское","25618407","АМО Бирюльское","3830003451","383001001"]
[401,"Качугский муниципальный район","Бутаковское","25618413","АМО Бутаковское","3830003638","383001001"]
[402,"Качугский муниципальный район","Вершино-Тутурское","25618416","МУП \"Качугское АТП\"","3827036560","382701001"]
[403,"Качугский муниципальный район","Качугское городское поселение","25618151","МКОУ Качугская СОШ №2","3830001503","383001001"]
[404,"Качугский муниципальный район","Качугское городское поселение","25618151","ОАО \"Дорожная служба Иркутской области\"","3808166080","383002001"]
[405,"Качугский муниципальный район","Качугское городское поселение","25618151","ООО \"Водолей\"","3827038422","382701001"]
[406,"Качугский муниципальный район","Качугское городское поселение","25618151","ООО \"ГАЗОМАРКЕТ\"","3827033431","382701001"]
[407,"Качугский муниципальный район","Качугское городское поселение","25618151","ООО \"Теплоснабжающая Компания п. Качуг\"","3827038408","382701001"]
[408,"Качугский муниципальный район","Качугское сельское поселение","25618431","АМО Качугское СП","3830003444","383001001"]
[409,"Качугский муниципальный район","Манзурское","25618437","АМО Манзурское СП","3830003652","383001001"]
[410,"Качугский муниципальный район","Манзурское","25618437","Филиал \"Иркутский\" ОАО \"Славянка\"","7702707386","381143001"]
[411,"Качугский муниципальный район","Харбатовское","25618443","АМО Харбатовское","3830003613","383001001"]
[412,"Качугский муниципальный район","Харбатовское","25618443","МКОУ СОШ Харбатовская","3830001542","383001001"]
[413,"Киренский муниципальный район","Алексеевское","25620155","ООО \"Алексеевская РЭБ флота\"","3831004480","382701001"]
[414,"Киренский муниципальный район","Алексеевское","25620155","ООО \"БЛАГО\"","3818029492","381801001"]
[415,"Киренский муниципальный район","Алексеевское","25620155","ООО \"Норд-Трейд\"","3818028379","381801001"]
[416,"Киренский муниципальный район","Алексеевское","25620155","ООО Благо","3818028386","381801001"]
[417,"Киренский муниципальный район","Бубновское","25620407","ООО \"ЖКХ-сервис\"\"","3818027840","381801001"]
[418,"Киренский муниципальный район","Визирнинское","25620410","ООО ТЭК \"Киренскэнергосервис\"","3818025160","381801001"]
[419,"Киренский муниципальный район","Киренское","25620101","МП \"Север\"","3818030113","381801001"]
[420,"Киренский муниципальный район","Киренское","25620101","ООО \"Аэропорт \"Киренск\"","3811135205","381101001"]
[421,"Киренский муниципальный район","Киренское","25620101","ООО \"Киренск-Авиа\"\"","3831000100","383101001"]
[422,"Киренский муниципальный район","Киренское","25620101","ООО \"УК \" Энергия\"","3831004169","383101001"]
[423,"Киренский муниципальный район","Киренское","25620101","ООО \"УК \"Тепло-Центр\"","3831000220","383101001"]
[424,"Киренский муниципальный район","Киренское","25620101","ООО \"УК Терминал\"","3831004176","383101001"]
[425,"Киренский муниципальный район","Киренское","25620101","ООО УК \"ГОРОД\"","3818030882","381801001"]
[426,"Киренский муниципальный район","Коршуновское","25620419","ООО ТЭК \"Киренскэнергосервис\"","3818025160","381801001"]
[427,"Киренский муниципальный район","Криволукское","25620425","ООО \" УК \"Сельтеплосети\"","3831003736","383101001"]
[428,"Киренский муниципальный район","Криволукское","25620425","ООО ТЭК \"Киренскэнергосервис\"","3818025160","381801001"]
[429,"Киренский муниципальный район","Макаровское","25620431","ООО ТЭК \"Киренскэнергосервис\"","3818025160","381801001"]
[430,"Киренский муниципальный район","Мироновское","25620434","ООО ТЭК \"Киренскэнергосервис\"","3818025160","381801001"]
[431,"Киренский муниципальный район","Юбилейнинское","25620453","ООО \"Теплоэнергосбыт\"","3818025963","381801001"]
[432,"Куйтунский муниципальный район","Андрюшинское","25622410","ОАО \"Куйтунская Нива\"","3814014600","381401001"]
[433,"Куйтунский муниципальный район","Барлукское","25622413","ООО \"Грассан\"","3823010923","383201001"]
[434,"Куйтунский муниципальный район","Большекашелакское","25622416","ИПБОЮЛ Бозоров Д.Г.","383203070270","отсутствует"]
[435,"Куйтунский муниципальный район","Иркутское","25622425","ИП БОЮЛ Нюргечев Г.В.","383202104342","отсутствует"]
[436,"Куйтунский муниципальный район","Каразейское","25622428","ИПБОЮЛ  Кузнецов Сергей  Александрович","383201010268","380000000"]
[437,"Куйтунский муниципальный район","Карымское","25622434","ИПБОЮЛ  Рытик Ольга Ивановна","383200450114","380000000"]
[438,"Куйтунский муниципальный район","Карымское","25622434","ООО \"Лессиб\"","3827022207","382701001"]
[439,"Куйтунский муниципальный район","Куйтунское","25622151","ИП Васильев Артем Михайлович","381205118759","отсутствует"]
[440,"Куйтунский муниципальный район","Куйтунское","25622151","ИП Глава КФХ Головань В.И.","383200090528","380000000"]
[441,"Куйтунский муниципальный район","Куйтунское","25622151","ИП Кашкан Сергей Анатольевич","383200613802","отсутствует"]
[442,"Куйтунский муниципальный район","Куйтунское","25622151","ИПБОЮЛ Байрамов Гаджибаба Исмаил Оглы","383201226500","383201001"]
[443,"Куйтунский муниципальный район","Куйтунское","25622151","Куйтунский филиал ФГБУ \"Управление \"Иркутскмелиоводхоз\"","3811032263","381101001"]
[444,"Куйтунский муниципальный район","Куйтунское","25622151","ОАО \"Иркутскоблгаз\"","3800000750","380850001"]
[445,"Куйтунский муниципальный район","Куйтунское","25622151","Остроухов Ю.В.","383202824608","380000000"]
[446,"Куйтунский муниципальный район","Кундуйское","25622436","ИПБОЮЛ  Егоров Петр Николаевич","381400434490","380000000"]
[447,"Куйтунский муниципальный район","Кундуйское","25622436","ИПБОЮЛ  Тимофеев Виктор Георгиевич","383201748672","380000000"]
[448,"Куйтунский муниципальный район","Кундуйское","25622436","Колхоз \" Годовщина Октября\"","3832001072","383201001"]
[449,"Куйтунский муниципальный район","Ленинское","25622438","ИП Умнов В. А.","383201278674","отсутствует"]
[450,"Куйтунский муниципальный район","Ленинское","25622438","ИПБОЮЛ  Колбичев Александр  Сергеевич","383200985423","380000000"]
[451,"Куйтунский муниципальный район","Тулюшское","25622449","ИПБОЮЛ  Баращенко Геннадий Александрович","383200183074","380000000"]
[452,"Куйтунский муниципальный район","Уянское","25622455","ИПБОЮЛ  Чернов Дмитрий Николаевич","383200735705","380000000"]
[453,"Куйтунский муниципальный район","Харикское","25622458","ИПБОЮЛ  Свириденко Александр Юрьевич","381401777317","380000000"]
[454,"Куйтунский муниципальный район","Чеботарихинское","25622461","ИПБОЮЛ  Майоров Владимир Константинович","383201135115","380000000"]
[455,"Мамско-Чуйский муниципальный район","Витимское","25624155","МУП \"Теплоэнерго\"","3833002054","380202001"]
[456,"Мамско-Чуйский муниципальный район","Витимское","25624155","ОАО \"Облжилкомхоз\"","3808133575","384901001"]
[457,"Мамско-Чуйский муниципальный район","Горно-Чуйское","25624160","МУП \"Теплоэнерго\"","3833002054","380202001"]
[458,"Мамско-Чуйский муниципальный район","Горно-Чуйское","25624160","ОАО \"Облжилкомхоз\"","3808133575","384901001"]
[459,"Мамско-Чуйский муниципальный район","Луговское","25624170","МУП \"Теплоэнерго\"","3833002054","380202001"]
[460,"Мамско-Чуйский муниципальный район","Луговское","25624170","ОАО \"Облжилкомхоз\"","3808133575","384901001"]
[461,"Мамско-Чуйский муниципальный район","Мамско-Чуйский муниципальный район","25624000","МУП \"Теплоэнерго\"","3833002054","380202001"]
[462,"Мамско-Чуйский муниципальный район","Мамское","25624151","МУП \"Теплоэнерго\"","3833002054","380202001"]
[463,"Мамско-Чуйский муниципальный район","Мамское","25624151","ОАО \"Облжилкомхоз\"","3808133575","384901001"]
[464,"Мамско-Чуйский муниципальный район","Мамское","25624151","ООО \"Мамский аэропорт\"","3802010288","380201001"]
[465,"Мамско-Чуйский муниципальный район","Согдиондонское","25624178","МУП \"Теплоэнерго\"","3833002054","380202001"]
[466,"Мамско-Чуйский муниципальный район","Согдиондонское","25624178","ОАО \"Облжилкомхоз\"","3808133575","384901001"]
[467,"Нижнеилимский муниципальный район","Березняковское","25626402","ООО \"КомСервис\"","3834015480","383401001"]
[468,"Нижнеилимский муниципальный район","Березняковское","25626402","ООО «Электрические котельные»","3834013193","383401001"]
[469,"Нижнеилимский муниципальный район","Брусничное","25626404","МУП КУ \"Пожарная часть  Нижнеилимского района\"","3834011622","383401001"]
[470,"Нижнеилимский муниципальный район","Видимское","25626155","Восточно-Сибирская дирекция по тепловодоснабжению - структурное подразделение центральной дирекции по тепловодоснабжению филиала ОАО \"РЖД\"","7708503727","385145042"]
[471,"Нижнеилимский муниципальный район","Видимское","25626155","МДОУ д/с \"Елочка\" п.Видим","3834007753","383401001"]
[472,"Нижнеилимский муниципальный район","Видимское","25626155","ООО \"Жилищно-коммунальные услуги\"","3834015680","383401001"]
[473,"Нижнеилимский муниципальный район","Видимское","25626155","ООО \"Родник\"","3834013041","383401001"]
[474,"Нижнеилимский муниципальный район","Железногорск-Илимское городское поселение","25626101","Восточно-Сибирская дирекция по тепловодоснабжению - структурное подразделение центральной дирекции по тепловодоснабжению филиала ОАО \"РЖД\"","7708503727","385145042"]
[475,"Нижнеилимский муниципальный район","Железногорск-Илимское городское поселение","25626101","ЗАО \"Электросеть\"","7714734225","383445001"]
[476,"Нижнеилимский муниципальный район","Железногорск-Илимское городское поселение","25626101","Коршуновский ГОК","3834002314","997550001"]
[477,"Нижнеилимский муниципальный район","Железногорск-Илимское городское поселение","25626101","МУП УК \"Коммунальные услуги\"","3834009920","383401001"]
[478,"Нижнеилимский муниципальный район","Железногорск-Илимское городское поселение","25626101","ОАО \"Иркутскэнерго\"","3800000220","997450001"]
[479,"Нижнеилимский муниципальный район","Железногорск-Илимское городское поселение","25626101","ООО \"Иркутские Коммунальные системы\"","3808219007","380081001"]
[480,"Нижнеилимский муниципальный район","Железногорск-Илимское городское поселение","25626101","ООО «Электрические котельные»","3834013193","383401001"]
[481,"Нижнеилимский муниципальный район","Коршуновское","25626411","ООО \"Наш дом\"","3834015521","383401001"]
[482,"Нижнеилимский муниципальный район","Коршуновское","25626411","ООО \"Элит\"","3834015472","383401001"]
[483,"Нижнеилимский муниципальный район","Новоигирминское","25626160","МОУ \"Игирменская ООШ\" п. Игирма","3834007200","383401001"]
[484,"Нижнеилимский муниципальный район","Новоигирминское","25626160","МУП \"ЖК сервис\"","3834015641","383401001"]
[485,"Нижнеилимский муниципальный район","Новоигирминское","25626160","ООО \"ЖЭУ\" Химки\"","3834011904","383401001"]
[486,"Нижнеилимский муниципальный район","Новоигирминское","25626160","ООО \"Комплексная УК ЖКХ\"","3834014422","383401001"]
[487,"Нижнеилимский муниципальный район","Новоигирминское","25626160","ООО \"Новоигирменская Управляющая компания\"","3834013637","383401001"]
[488,"Нижнеилимский муниципальный район","Новоигирминское","25626160","ООО \"СП СЭЛ-Тайрику\"","3808095143","384901001"]
[489,"Нижнеилимский муниципальный район","Новоигирминское","25626160","ООО \"ТеплоЭнергитическая Компания - 2\"","3834014775","383401001"]
[490,"Нижнеилимский муниципальный район","Новоилимское","25626412","ООО \"УК ЖКХ Новоилимск\"","3834015458","383401001"]
[491,"Нижнеилимский муниципальный район","Радищевское","25626162","ООО \"Комплексная УК ЖКХ\"","3834014422","383401001"]
[492,"Нижнеилимский муниципальный район","Речушинское","25626413","ИП Гамзяков С.Ю.","383406370166","383401001"]
[493,"Нижнеилимский муниципальный район","Речушинское","25626413","ООО \"Речушка\"","3834012880","383401001"]
[494,"Нижнеилимский муниципальный район","Речушинское","25626413","Филиал \"Ленское РНУ\"  ООО \"Востокнефтепровод\"","3801079671","380501001"]
[495,"Нижнеилимский муниципальный район","Рудногорское","25626163","ООО \"РУК ЖКХ\"","3834015306","383401001"]
[496,"Нижнеилимский муниципальный район","Рудногорское","25626163","ООО \"Стимул\"","3834015507","383401001"]
[497,"Нижнеилимский муниципальный район","Семигорское","25626418","ООО \"Семигорск\"","3834012873","383401001"]
[498,"Нижнеилимский муниципальный район","Хребтовское","25626165","Восточно-Сибирская дирекция по тепловодоснабжению - структурное подразделение центральной дирекции по тепловодоснабжению филиала ОАО \"РЖД\"","7708503727","385145042"]
[499,"Нижнеилимский муниципальный район","Шестаковское","25626170","МДОУ Д/с \"Елочка\" п.Шестаково","3834007954","383401001"]
[500,"Нижнеилимский муниципальный район","Шестаковское","25626170","ООО \"Ресурс\"","3834015560","383401001"]
[501,"Нижнеилимский муниципальный район","Янгелевское","25626175","ООО \"Коммунальщик\"","3834012182","383401001"]
[502,"Нижнеилимский муниципальный район","Янгелевское","25626175","ООО \"Комплексная УК ЖКХ\"","3834014422","383401001"]
[503,"Нижнеудинский муниципальный район","Алзамайcкое","25628105","Восточно-Сибирская дирекция по тепловодоснабжению - структурное подразделение центральной дирекции по тепловодоснабжению филиала ОАО \"РЖД\"","7708503727","385145042"]
[504,"Нижнеудинский муниципальный район","Алзамайcкое","25628105","МУП \"Коммунальник г. Алзамая\"","3813002923","381301001"]
[505,"Нижнеудинский муниципальный район","Алзамайcкое","25628105","ООО \"Вектор\"","3816015695","381601001"]
[506,"Нижнеудинский муниципальный район","Алзамайcкое","25628105","ООО \"ЖКХ\" г. Алзамая","3813003116","381301001"]
[507,"Нижнеудинский муниципальный район","Алзамайcкое","25628105","Ремонтно-механическое депо Алзамай - обособленное структурное подразделение Новосибирского филиала ОАО \"ВРК-1\"","7708737490","381645003"]
[508,"Нижнеудинский муниципальный район","Атагайское","25628155","Восточно-Сибирская дирекция по тепловодоснабжению - структурное подразделение центральной дирекции по тепловодоснабжению филиала ОАО \"РЖД\"","7708503727","385145042"]
[509,"Нижнеудинский муниципальный район","Атагайское","25628155","ООО СК \"Ремстрой\"","3816013881","381601001"]
[510,"Нижнеудинский муниципальный район","Верхнегутарское","25628407","Восточно-Сибирская дирекция по тепловодоснабжению - структурное подразделение центральной дирекции по тепловодоснабжению филиала ОАО \"РЖД\"","7708503727","385145042"]
[511,"Нижнеудинский муниципальный район","Замзорское","25628410","Восточно-Сибирская дирекция по тепловодоснабжению - структурное подразделение центральной дирекции по тепловодоснабжению филиала ОАО \"РЖД\"","7708503727","385145042"]
[512,"Нижнеудинский муниципальный район","Замзорское","25628410","ООО СК \"Ремстрой\"","3816013881","381601001"]
[513,"Нижнеудинский муниципальный район","Замзорское","25628410","УМП \"Районное ЖКХ\"","3813002634","381301001"]
[514,"Нижнеудинский муниципальный район","Замзорское","25628410","Филиал \"Иркутское РНУ\" ООО \"Востокнефтепровод\"","3801079671","380102001"]
[515,"Нижнеудинский муниципальный район","Заречное","25628411","Восточно-Сибирская дирекция по тепловодоснабжению - структурное подразделение центральной дирекции по тепловодоснабжению филиала ОАО \"РЖД\"","7708503727","385145042"]
[516,"Нижнеудинский муниципальный район","Иргейское","25628413","Восточно-Сибирская дирекция по тепловодоснабжению - структурное подразделение центральной дирекции по тепловодоснабжению филиала ОАО \"РЖД\"","7708503727","385145042"]
[517,"Нижнеудинский муниципальный район","Каменское","25628416","Восточно-Сибирская дирекция по тепловодоснабжению - структурное подразделение центральной дирекции по тепловодоснабжению филиала ОАО \"РЖД\"","7708503727","385145042"]
[518,"Нижнеудинский муниципальный район","Каменское","25628416","МУП \"Тепловодоканал\"","3813003109","381302001"]
[519,"Нижнеудинский муниципальный район","Каменское","25628416","ООО СК \"Ремстрой\"","3816013881","381601001"]
[520,"Нижнеудинский муниципальный район","Каменское","25628416","УМП \"Районное ЖКХ\"","3813002634","381301001"]
[521,"Нижнеудинский муниципальный район","Катарбейское","25628419","Восточно-Сибирская дирекция по тепловодоснабжению - структурное подразделение центральной дирекции по тепловодоснабжению филиала ОАО \"РЖД\"","7708503727","385145042"]
[522,"Нижнеудинский муниципальный район","Катарминское","25628422","Восточно-Сибирская дирекция по тепловодоснабжению - структурное подразделение центральной дирекции по тепловодоснабжению филиала ОАО \"РЖД\"","7708503727","385145042"]
[523,"Нижнеудинский муниципальный район","Костинское","25628423","Восточно-Сибирская дирекция по тепловодоснабжению - структурное подразделение центральной дирекции по тепловодоснабжению филиала ОАО \"РЖД\"","7708503727","385145042"]
[524,"Нижнеудинский муниципальный район","Костинское","25628423","ООО \"Тайга\"","3835040584","383501001"]
[525,"Нижнеудинский муниципальный район","Нерхинское","25628424","Восточно-Сибирская дирекция по тепловодоснабжению - структурное подразделение центральной дирекции по тепловодоснабжению филиала ОАО \"РЖД\"","7708503727","385145042"]
[526,"Нижнеудинский муниципальный район","Нижнеудинский муниципальный район","25628000","Восточно-Сибирская дирекция по тепловодоснабжению - структурное подразделение центральной дирекции по тепловодоснабжению филиала ОАО \"РЖД\"","7708503727","385145042"]
[527,"Нижнеудинский муниципальный район","Нижнеудинское","25628101","Восточно-Сибирская дирекция по тепловодоснабжению - структурное подразделение центральной дирекции по тепловодоснабжению филиала ОАО \"РЖД\"","7708503727","385145042"]
[528,"Нижнеудинский муниципальный район","Нижнеудинское","25628101","МУП \"Городское коммунальное предприятие\"","3813003148","381301001"]
[529,"Нижнеудинский муниципальный район","Нижнеудинское","25628101","МУП \"Тепловодоканал\"","3813003109","381302001"]
[530,"Нижнеудинский муниципальный район","Нижнеудинское","25628101","ООО \"Водсервис\"","3813003797","381301001"]
[531,"Нижнеудинский муниципальный район","Нижнеудинское","25628101","ООО \"Иркутск-Терминал\"  Нижнеудинский цех","3808083420","381332001"]
[532,"Нижнеудинский муниципальный район","Нижнеудинское","25628101","ООО \"Сток\"","3813003780","381301001"]
[533,"Нижнеудинский муниципальный район","Нижнеудинское","25628101","ООО \"Теплоресурс\"","3813003807","381301001"]
[534,"Нижнеудинский муниципальный район","Нижнеудинское","25628101","УМП \"Районное ЖКХ\"","3813002634","381301001"]
[535,"Нижнеудинский муниципальный район","Нижнеудинское","25628101","ФГУП \" Дорожно-эксплуатационное предприятие\"","3835060333","383501001"]
[536,"Нижнеудинский муниципальный район","Нижнеудинское","25628101","Филиал \"Иркутский\" ОАО \"Славянка\"","7702707386","381143001"]
[537,"Нижнеудинский муниципальный район","Нижнеудинское","25628101","Филиал ОАО \"РЭУ\" \"Иркутский\"","7714783092","381143001"]
[538,"Нижнеудинский муниципальный район","Порогское","25628425","Восточно-Сибирская дирекция по тепловодоснабжению - структурное подразделение центральной дирекции по тепловодоснабжению филиала ОАО \"РЖД\"","7708503727","385145042"]
[539,"Нижнеудинский муниципальный район","Солонецкое","25628428","Восточно-Сибирская дирекция по тепловодоснабжению - структурное подразделение центральной дирекции по тепловодоснабжению филиала ОАО \"РЖД\"","7708503727","385145042"]
[540,"Нижнеудинский муниципальный район","Староалзамайское","25628402","Восточно-Сибирская дирекция по тепловодоснабжению - структурное подразделение центральной дирекции по тепловодоснабжению филиала ОАО \"РЖД\"","7708503727","385145042"]
[541,"Нижнеудинский муниципальный район","Тофаларское","25628431","Восточно-Сибирская дирекция по тепловодоснабжению - структурное подразделение центральной дирекции по тепловодоснабжению филиала ОАО \"РЖД\"","7708503727","385145042"]
[542,"Нижнеудинский муниципальный район","Уковское","25628160","Восточно-Сибирская дирекция по тепловодоснабжению - структурное подразделение центральной дирекции по тепловодоснабжению филиала ОАО \"РЖД\"","7708503727","385145042"]
[543,"Нижнеудинский муниципальный район","Усть-Рубахинское","25628434","Восточно-Сибирская дирекция по тепловодоснабжению - структурное подразделение центральной дирекции по тепловодоснабжению филиала ОАО \"РЖД\"","7708503727","385145042"]
[544,"Нижнеудинский муниципальный район","Усть-Рубахинское","25628434","МУП \"Тепловодоканал\"","3813003109","381302001"]
[545,"Нижнеудинский муниципальный район","Усть-Рубахинское","25628434","ООО СК \"Ремстрой\"","3816013881","381601001"]
[546,"Нижнеудинский муниципальный район","Усть-Рубахинское","25628434","УМП \"Районное ЖКХ\"","3813002634","381301001"]
[547,"Нижнеудинский муниципальный район","Худоеланское","25628437","Восточно-Сибирская дирекция по тепловодоснабжению - структурное подразделение центральной дирекции по тепловодоснабжению филиала ОАО \"РЖД\"","7708503727","385145042"]
[548,"Нижнеудинский муниципальный район","Худоеланское","25628437","ООО СК \"Ремстрой\"","3816013881","381601001"]
[549,"Нижнеудинский муниципальный район","Чеховское","25628440","Восточно-Сибирская дирекция по тепловодоснабжению - структурное подразделение центральной дирекции по тепловодоснабжению филиала ОАО \"РЖД\"","7708503727","385145042"]
[550,"Нижнеудинский муниципальный район","Шебертинское","25628443","Восточно-Сибирская дирекция по тепловодоснабжению - структурное подразделение центральной дирекции по тепловодоснабжению филиала ОАО \"РЖД\"","7708503727","385145042"]
[551,"Нижнеудинский муниципальный район","Шебертинское","25628443","ООО СК \"Ремстрой\"","3816013881","381601001"]
[552,"Нижнеудинский муниципальный район","Широковское","25628446","Восточно-Сибирская дирекция по тепловодоснабжению - структурное подразделение центральной дирекции по тепловодоснабжению филиала ОАО \"РЖД\"","7708503727","385145042"]
[553,"Нижнеудинский муниципальный район","Шумское","25628165","ООО СК \"Ремстрой\"","3816013881","381601001"]
[554,"Нукутский муниципальный район","Алтарик","25832402","ОАО \"Нукутское РТП\"","8504000318","385101001"]
[555,"Нукутский муниципальный район","Закулей","25832404","ИП ГКФХ Иринцев В.В.","850400880018","отсутствует"]
[556,"Нукутский муниципальный район","Новоленино","25832407","ИП ГКФХ Осипов В.К.","850400567084","385101001"]
[557,"Нукутский муниципальный район","Новонукутское","25832410","ООО \"Крот\"","8504004376","385101001"]
[558,"Нукутский муниципальный район","Нукуты","25832413","ИП Шаповалов В.Н.","850400333946","385101001"]
[559,"Нукутский муниципальный район","Первомайское","25832416","ИП Шаповалов В.Н.","850400333946","385101001"]
[560,"Нукутский муниципальный район","Хадахан","25832419","СХЗАО \"Приморский\"","8504000808","385101001"]
[561,"Нукутский муниципальный район","Хареты","25832420","АМО МО \"Хареты\"","8504004129","385101001"]
[562,"Нукутский муниципальный район","Целинный","25832422","ИП Бальбурова Т.В.","850400735275","385101001"]
[563,"Ольхонский муниципальный район","Бугульдейское","25630402","МУП Бугульдейского МО \"ЖКХ\"","3836004003","383601001"]
[564,"Ольхонский муниципальный район","Еланцынское","25630404","ЗАО \"Сельстрой\"","3836000062","383601001"]
[565,"Ольхонский муниципальный район","Еланцынское","25630404","МУП \"Комхоз-сервис\"","3827039923","382701001"]
[566,"Ольхонский муниципальный район","Еланцынское","25630404","ОАО \"Иркутскоблгаз\"","3800000750","380850001"]
[567,"Ольхонский муниципальный район","Еланцынское","25630404","ООО \"Тепловик\"","3827038077","382701001"]
[568,"Ольхонский муниципальный район","Еланцынское","25630404","ООО \"Теплосеть\"","3836004363","383601001"]
[569,"Ольхонский муниципальный район","Онгуренское","25630407","МУП \"Подлеморье\"","3836004243","383601001"]
[570,"Ольхонский муниципальный район","Хужирское","25630155","МУП \"Байкал-Ольхон\"","3836003553","383601001"]
[571,"Ольхонский муниципальный район","Хужирское","25630155","ОАО \"Иркутскоблгаз\"","3800000750","380850001"]
[572,"Ольхонский муниципальный район","Шара-Тоготское","25630413","МУП \"Шара-Тогот\"","3836004500","383601001"]
[573,"Осинский район","Бильчир","25833404","МУП \"Служба заказчика\" Коммунальная служба Бильчира\"","3849028629","384901001"]
[574,"Осинский район","Бурят-Янгуты","25833407","ИП Болдырева Л.Л.","381270278255","отсутствует"]
[575,"Осинский район","Ирхидей","25833417","АМО \"Ирхидей\"","8505006048","850501001"]
[576,"Осинский район","Каха-Онгойское","25833422","АМО \"Коха - Онгойское\"","8505006009","850501001"]
[577,"Осинский район","Майск","25833424","АМО \"Майск\"","8505005968","850501001"]
[578,"Осинский район","Ново-Ленино","25833425","МУП \"Универсал\"  МО \"Ново-Ленино\"","8505004072","850501001"]
[579,"Осинский район","Обуса","25833426","АМО \"Обуса\"","8505005950","850501001"]
[580,"Осинский район","Оса","25833412","МУП \"Восток\"","3849024960","384901001"]
[581,"Осинский район","Оса","25833412","МУП ЖКХ АМО \"Оса\"","8505004160","850501001"]
[582,"Осинский район","Оса","25833412","ОАО \"Иркутскоблгаз\"","3800000750","380850001"]
[583,"Осинский район","Поселок Приморский","25833429","МУП \"Служба заказчика\"","3849008950","384901001"]
[584,"Осинский район","Русские Янгуты","25833433","АМО \"Русские Янгуты\"","8505006030","850501001"]
[585,"Осинский район","Улейское","25833440","МУП \"Труд\" МО \"Улейское\"","3849023162","384901001"]
[586,"Осинский район","Усть-Алтан","25833445","АМО \"Усть-Алтан\"","8505003791","850501001"]
[587,"Слюдянский муниципальный район","Байкальское","25634108","Восточно-Сибирская дирекция по тепловодоснабжению - структурное подразделение центральной дирекции по тепловодоснабжению филиала ОАО \"РЖД\"","7708503727","385145042"]
[588,"Слюдянский муниципальный район","Байкальское","25634108","МУП \"КОС БМО\"","3837004905","383701001"]
[589,"Слюдянский муниципальный район","Байкальское","25634108","ОАО \"Байкальский целлюлозно-бумажный комбинат\"","3837049102","383701001"]
[590,"Слюдянский муниципальный район","Байкальское","25634108","ОАО \"Иркутскоблгаз\"","3800000750","380850001"]
[591,"Слюдянский муниципальный район","Байкальское","25634108","ОАО \"Управление жилищно-коммунальными системами\"","3848006291","383701001"]
[592,"Слюдянский муниципальный район","Байкальское","25634108","ООО \"Жилье\"","3837004503","383702001"]
[593,"Слюдянский муниципальный район","Байкальское","25634108","ООО \"Тепловые сети\"","3848000860","384801001"]
[594,"Слюдянский муниципальный район","Култукское","25634162","Восточно-Сибирская дирекция по тепловодоснабжению - структурное подразделение центральной дирекции по тепловодоснабжению филиала ОАО \"РЖД\"","7708503727","385145042"]
[595,"Слюдянский муниципальный район","Култукское","25634162","ОАО \"Иркутскоблгаз\"","3800000750","380850001"]
[596,"Слюдянский муниципальный район","Култукское","25634162","ОАО \"Облжилкомхоз\"","3808133575","384901001"]
[597,"Слюдянский муниципальный район","Култукское","25634162","ООО \"Ангасолка+\"","3848000405","384801001"]
[598,"Слюдянский муниципальный район","Култукское","25634162","ООО \"Водоснабжение+\"","3848000388","384801001"]
[599,"Слюдянский муниципальный район","Култукское","25634162","ООО \"Иркутск-Терминал\"","3808083420","380801001"]
[600,"Слюдянский муниципальный район","Култукское","25634162","ООО \"Иркутск-Терминал\"","3808083420","384901001"]
[601,"Слюдянский муниципальный район","Култукское","25634162","ООО \"КОС\"","3848000130","384801001"]
[602,"Слюдянский муниципальный район","Маритуйское","25634404","Восточно-Сибирская дирекция по тепловодоснабжению - структурное подразделение центральной дирекции по тепловодоснабжению филиала ОАО \"РЖД\"","7708503727","385145042"]
[603,"Слюдянский муниципальный район","Портбайкальское","25634155","ООО \"БайкалКом\"","3837004599","383701001"]
[604,"Слюдянский муниципальный район","Слюдянское","25634101","Восточно-Сибирская дирекция по тепловодоснабжению - структурное подразделение центральной дирекции по тепловодоснабжению филиала ОАО \"РЖД\"","7708503727","385145042"]
[605,"Слюдянский муниципальный район","Слюдянское","25634101","ОАО \"Иркутскоблгаз\"","3800000750","380850001"]
[606,"Слюдянский муниципальный район","Слюдянское","25634101","ОАО \"Облжилкомхоз\"","3808133575","384901001"]
[607,"Слюдянский муниципальный район","Слюдянское","25634101","ООО \"Акватранс\"","3848006615","384801001"]
[608,"Слюдянский муниципальный район","Слюдянское","25634101","ООО \"Васттранс\"","3848006630","384801001"]
[609,"Слюдянский муниципальный район","Слюдянское","25634101","ООО \"Водоснабжение\"","3848000282","384801001"]
[610,"Слюдянский муниципальный район","Слюдянское","25634101","ООО \"КОС\"","3848000130","384801001"]
[611,"Слюдянский муниципальный район","Слюдянское","25634101","ООО \"Стоки\"","3848006686","384801001"]
[612,"Слюдянский муниципальный район","Слюдянское","25634101","ООО \"Чистый город\"","3848000148","384801001"]
[613,"Слюдянский муниципальный район","Утуликское","25634407","ООО \"Жилье\"","3837004503","383702001"]
[614,"Тайшетский муниципальный район","Березовское","25636404","МОУ Березовская СОШ","3838004055","383801001"]
[615,"Тайшетский муниципальный район","Березовское","25636404","ООО \"СК-Гарант\"","3816012817","381601001"]
[616,"Тайшетский муниципальный район","Бирюсинское","25636406","ООО  \" ЮртКомХоз\"","3815011391","381501001"]
[617,"Тайшетский муниципальный район","Бирюсинское городское поселение","25636105","МУП \"Бирюсинское ТВК\"","3815011049","381501001"]
[618,"Тайшетский муниципальный район","Бирюсинское городское поселение","25636105","ООО \"Бирюсинское коммунальное хозяйство\"","3815013286","381501001"]
[619,"Тайшетский муниципальный район","Борисовское","25636408","МУП РДК \"Юбилейный\"","3815013230","381501001"]
[620,"Тайшетский муниципальный район","Борисовское","25636408","ОГУСО \"Пуляевский психоневрологический интернат\".","3838001696","383801001"]
[621,"Тайшетский муниципальный район","Бузыкановское","25636410","Общество с ограниченной ответственностью \"ТеплоЭнергия\"","3816012670","381601001"]
[622,"Тайшетский муниципальный район","Венгерское","25636440","ИП Килин Д.Ф.","381501782374","381501001"]
[623,"Тайшетский муниципальный район","Венгерское","25636440","Красноярская дирекция по тепловодоснабжению центральной дирекции по тепловодоснабжению -  филиала ОАО \"РЖД\"","7708503727","381501001"]
[624,"Тайшетский муниципальный район","Джогинское","25636413","Общество с ограниченной ответственностью \"ТеплоЭнергия\"","3816012670","381601001"]
[625,"Тайшетский муниципальный район","Зареченское","25636417","Красноярская дирекция по тепловодоснабжению центральной дирекции по тепловодоснабжению -  филиала ОАО \"РЖД\"","7708503727","381501001"]
[626,"Тайшетский муниципальный район","Зареченское","25636417","ООО  \" ЮртКомХоз\"","3815011391","381501001"]
[627,"Тайшетский муниципальный район","Квитокское","25636155","Восточно-Сибирская дирекция по тепловодоснабжению - структурное подразделение центральной дирекции по тепловодоснабжению филиала ОАО \"РЖД\"","7708503727","385145042"]
[628,"Тайшетский муниципальный район","Квитокское","25636155","ООО \"МАЯК\"","3815015660","381501001"]
[629,"Тайшетский муниципальный район","Мирнинское","25636427","Красноярская дирекция по тепловодоснабжению центральной дирекции по тепловодоснабжению -  филиала ОАО \"РЖД\"","7708503727","381501001"]
[630,"Тайшетский муниципальный район","Мирнинское","25636427","ООО \"АЯН\"","3816012951","381601001"]
[631,"Тайшетский муниципальный район","Нижнезаимское","25636431","МУП РДК \"Юбилейный\"","3815013230","381501001"]
[632,"Тайшетский муниципальный район","Нижнезаимское","25636431","Общество с ограниченной ответственностью \"ТеплоЭнергия\"","3816012670","381601001"]
[633,"Тайшетский муниципальный район","Николаевское","25636428","ООО \"СК-Гарант\"","3816012817","381601001"]
[634,"Тайшетский муниципальный район","Новобирюсинское","25636162","ООО \"Содружество\"","3815011546","381501001"]
[635,"Тайшетский муниципальный район","Половино-Черемховское","25636434","ООО  \" ЮртКомХоз\"","3815011391","381501001"]
[636,"Тайшетский муниципальный район","Разгонское","25636465","ООО \"СК-Гарант\"","3816012817","381601001"]
[637,"Тайшетский муниципальный район","Рождественское","25636437","МУП РДК \"Юбилейный\"","3815013230","381501001"]
[638,"Тайшетский муниципальный район","Рождественское","25636437","ООО \"СК-Гарант\"","3816012817","381601001"]
[639,"Тайшетский муниципальный район","Соляновское","25636443","ООО \"СК-Гарант\"","3816012817","381601001"]
[640,"Тайшетский муниципальный район","Старо-Акульшетское","25636402","Восточно-Сибирская дирекция по тепловодоснабжению - структурное подразделение центральной дирекции по тепловодоснабжению филиала ОАО \"РЖД\"","7708503727","385145042"]
[641,"Тайшетский муниципальный район","Старо-Акульшетское","25636402","ТСЖ \"Наш общий дом\"","3815013053","381501001"]
[642,"Тайшетский муниципальный район","Тайшетское городское поселение","25636101","Восточно-Сибирская дирекция по тепловодоснабжению - структурное подразделение центральной дирекции по тепловодоснабжению филиала ОАО \"РЖД\"","7708503727","385145042"]
[643,"Тайшетский муниципальный район","Тайшетское городское поселение","25636101","ЗАО \"Байкалэнерго\"","3808108339","380801001"]
[644,"Тайшетский муниципальный район","Тайшетское городское поселение","25636101","ЗАО \"Водоканал\"","3815010038","381501001"]
[645,"Тайшетский муниципальный район","Тайшетское городское поселение","25636101","ООО \"Аякс\"","3815012067","381501001"]
[646,"Тайшетский муниципальный район","Тайшетское городское поселение","25636101","ООО \"Биоочистка\"","3815011881","381501001"]
[647,"Тайшетский муниципальный район","Тайшетское городское поселение","25636101","ООО \"Южное\"","3816013031","381601001"]
[648,"Тайшетский муниципальный район","Тайшетское городское поселение","25636101","ООО «ТайшетЭнергоСервис»","3815013247","381501001"]
[649,"Тайшетский муниципальный район","Тайшетское городское поселение","25636101","ООО ЖКХ \"Южное\"","3816014571","381601001"]
[650,"Тайшетский муниципальный район","Тайшетское городское поселение","25636101","Филиал \"Иркутское РНУ\" ООО \"Востокнефтепровод\"","3801079671","380102001"]
[651,"Тайшетский муниципальный район","Тамтачетское","25636466","МУП \"ЖКХ\" ст. Тамтачет","3815011948","381501001"]
[652,"Тайшетский муниципальный район","Тамтачетское","25636466","ООО \"Водолей\"","3816013144","381601001"]
[653,"Тайшетский муниципальный район","Черчетское","25636455","Общество с ограниченной ответственностью \"ТеплоЭнергия\"","3816012670","381601001"]
[654,"Тайшетский муниципальный район","Шелаевское","25636458","ООО \"АЯН\"","3816012951","381601001"]
[655,"Тайшетский муниципальный район","Шелеховское","25636461","ООО \"СК-Гарант\"","3816012817","381601001"]
[656,"Тайшетский муниципальный район","Шиткинское","25636174","МУП РДК \"Юбилейный\"","3815013230","381501001"]
[657,"Тайшетский муниципальный район","Шиткинское","25636174","Общество с ограниченной ответственностью \"ТеплоЭнергия\"","3816012670","381601001"]
[658,"Тайшетский муниципальный район","Юртинское","25636156","ООО  \" ЮртКомХоз\"","3815011391","381501001"]
[659,"Тайшетский муниципальный район","Юртинское","25636156","ООО \"Энергопром\"","3815012645","381501001"]
[660,"Тулунский муниципальный район","Азейское","25638401","МУСХП \"Центральное\"","3816006186","381601001"]
[661,"Тулунский муниципальный район","Азейское","25638401","ООО \"Компания Востсибуголь\" \"Разрез \"Тулунуголь\"","3808069986","381643001"]
[662,"Тулунский муниципальный район","Азейское","25638401","ООО \"Тепломонтаж-С\"","3816010263","381601001"]
[663,"Тулунский муниципальный район","Алгатуйское","25638453","ООО \"ЖКХ с. Алгатуй\"","3816007341","381601001"]
[664,"Тулунский муниципальный район","Алгатуйское","25638453","ООО \"Компания Востсибуголь\" \"Разрез \"Тулунуголь\"","3808069986","381643001"]
[665,"Тулунский муниципальный район","Аршанское","25638454","ООО \"Ремстройсервис\"","3816009885","381601001"]
[666,"Тулунский муниципальный район","Афанасьевское","25638440","ООО \"Теплосервис\"","3816007359","381601001"]
[667,"Тулунский муниципальный район","Будаговское","25638404","МУСХП \"Центральное\"","3816006186","381601001"]
[668,"Тулунский муниципальный район","Будаговское","25638404","ООО \"Тепломонтаж-С\"","3816010263","381601001"]
[669,"Тулунский муниципальный район","Бурхунское","25638407","ИП Стяжкин Сергей Иванович","381601476300","381601001"]
[670,"Тулунский муниципальный район","Бурхунское","25638407","МУСХП \"Центральное\"","3816006186","381601001"]
[671,"Тулунский муниципальный район","Бурхунское","25638407","ООО \"Тепломонтаж-С\"","3816010263","381601001"]
[672,"Тулунский муниципальный район","Евдокимовское","25638419","ООО \"Бадар\"","3816008313","381601001"]
[673,"Тулунский муниципальный район","Писаревское","25638445","МУСХП \"Центральное\"","3816006186","381601001"]
[674,"Тулунский муниципальный район","Писаревское","25638445","ООО «Техсервис Плюс»","3816007736","381601001"]
[675,"Тулунский муниципальный район","Шерагульское","25638452","МУСХП \"Центральное\"","3816006186","381601001"]
[676,"Усольский муниципальный район","Белореченское","25640153","МУП \"Транзит-Аква\"","3851006904","385101001"]
[677,"Усольский муниципальный район","Белореченское","25640153","ОАО \"Иркутскэнерго\"","3800000220","997450001"]
[678,"Усольский муниципальный район","Белореченское","25640153","ООО \"АкваСервис\"","3851001198","385101001"]
[679,"Усольский муниципальный район","Белореченское","25640153","ООО \"Транзит-аква\"","3819016785","385101001"]
[680,"Усольский муниципальный район","Белореченское","25640153","Филиал \"Иркутский\" ОАО \"Славянка\"","7702707386","381143001"]
[681,"Усольский муниципальный район","Белореченское","25640153","Филиал ОАО \"РЭУ\" \"Иркутский\"","7714783092","381143001"]
[682,"Усольский муниципальный район","Железнодорожное","25640407","ОАО \"Иркутскоблгаз\"","3800000750","380850001"]
[683,"Усольский муниципальный район","Железнодорожное","25640407","ОАО \"Облжилкомхоз\"","3808133575","384901001"]
[684,"Усольский муниципальный район","Железнодорожное","25640407","ОАО \"Облжилкомхоз\" Усольское Управление","3808133575","385101001"]
[685,"Усольский муниципальный район","Железнодорожное","25640407","ОГБОУ СПО \"Усольский аграрно-промышленный техникум\"","3840004091","385101001"]
[686,"Усольский муниципальный район","Железнодорожное","25640407","ООО \"Вертикаль\"","3819021601","385101001"]
[687,"Усольский муниципальный район","Железнодорожное","25640407","ООО \"Искра\"","3819021591","385101001"]
[688,"Усольский муниципальный район","Мальтинское","25640410","МУП \"Транзит-Аква\"","3851006904","385101001"]
[689,"Усольский муниципальный район","Мальтинское","25640410","ОАО \"Иркутскоблгаз\"","3800000750","380850001"]
[690,"Усольский муниципальный район","Мальтинское","25640410","ООО \"ТеплоСервис\"","3851999064","385101001"]
[691,"Усольский муниципальный район","Мальтинское","25640410","ООО \"ЭнергоКапитал\"","3851003798","385101001"]
[692,"Усольский муниципальный район","Мальтинское","25640410","ООО \"Энергосервис\"","3819019352","381901001"]
[693,"Усольский муниципальный район","Мишелевское","25640155","ОАО \"Иркутскоблгаз\"","3800000750","380850001"]
[694,"Усольский муниципальный район","Мишелевское","25640155","ООО \"Коммунальные услуги\"","3819022348","385101001"]
[695,"Усольский муниципальный район","Мишелевское","25640155","ООО \"Теплоисточник\"","3819015326","385101001"]
[696,"Усольский муниципальный район","Мишелевское","25640155","Филиал \"Иркутский\" ОАО \"Славянка\"","7702707386","381143001"]
[697,"Усольский муниципальный район","Мишелевское","25640155","Филиал ОАО \"РЭУ\" \"Иркутский\"","7714783092","381143001"]
[698,"Усольский муниципальный район","Новожилкинское","25640412","ОАО \"Облжилкомхоз\"","3808133575","384901001"]
[699,"Усольский муниципальный район","Новожилкинское","25640412","ОАО \"Облжилкомхоз\" Усольское Управление","3808133575","385101001"]
[700,"Усольский муниципальный район","Новожилкинское","25640412","ООО \"ЭНЕРГО ПЛЮС\"","3819021753","385101001"]
[701,"Усольский муниципальный район","Новомальтинское","25640414","ОАО \"Восточно-Сибирский комбинат строительных материалов\"","3819023207","381901001"]
[702,"Усольский муниципальный район","Новомальтинское","25640414","ООО \"Омега\"","3819021873","385101001"]
[703,"Усольский муниципальный район","Новомальтинское","25640414","ООО \"УК Теплосервис\"","3851002762","385101001"]
[704,"Усольский муниципальный район","Новомальтинское","25640414","ООО \"Управляющая компания Хозяйственник\"","3819022980","381901001"]
[705,"Усольский муниципальный район","Новомальтинское","25640414","ООО \"Утес\"","3851006005","385101001"]
[706,"Усольский муниципальный район","Новомальтинское","25640414","Филиал \"Иркутский\" ОАО \"Славянка\"","7702707386","381143001"]
[707,"Усольский муниципальный район","Раздольинское","25640416","Дом интернат","3819009876","385101001"]
[708,"Усольский муниципальный район","Раздольинское","25640416","МУП \"Тепловодотехсервис\"","3819016601","385101001"]
[709,"Усольский муниципальный район","Сосновское","25640419","МУП \"Авторитет\"","3851004061","385101001"]
[710,"Усольский муниципальный район","Сосновское","25640419","МУП \"Транзит-Аква\"","3851006904","385101001"]
[711,"Усольский муниципальный район","Сосновское","25640419","ОАО \"Облжилкомхоз\"","3808133575","384901001"]
[712,"Усольский муниципальный район","Сосновское","25640419","ОАО \"Облжилкомхоз\" Усольское Управление","3808133575","385101001"]
[713,"Усольский муниципальный район","Среднинское","25640160","ОАО \"Иркутскоблгаз\"","3800000750","380850001"]
[714,"Усольский муниципальный район","Среднинское","25640160","ООО \"УК Теплосервис\"","3851002762","385101001"]
[715,"Усольский муниципальный район","Среднинское","25640160","Филиал \"Иркутский\" ОАО \"Славянка\"","7702707386","381143001"]
[716,"Усольский муниципальный район","Среднинское","25640160","Филиал ОАО \"РЭУ\" \"Иркутский\"","7714783092","381143001"]
[717,"Усольский муниципальный район","Тайтурское","25640162","Восточно-Сибирская дирекция по тепловодоснабжению - структурное подразделение центральной дирекции по тепловодоснабжению филиала ОАО \"РЖД\"","7708503727","385145042"]
[718,"Усольский муниципальный район","Тайтурское","25640162","МЛПУ \"Тайтурская участковая больница\"","3840002866","385101001"]
[719,"Усольский муниципальный район","Тайтурское","25640162","ОАО \"Иркутскоблгаз\"","3800000750","380850001"]
[720,"Усольский муниципальный район","Тайтурское","25640162","ОАО \"Облжилкомхоз\"","3808133575","384901001"]
[721,"Усольский муниципальный район","Тайтурское","25640162","ОАО \"Облжилкомхоз\" Усольское Управление","3808133575","385101001"]
[722,"Усольский муниципальный район","Тайтурское","25640162","ООО \"Саяны +\"","3851007168","385101001"]
[723,"Усольский муниципальный район","Тайтурское","25640162","ООО \"УК Теплосервис\"","3851002762","385101001"]
[724,"Усольский муниципальный район","Тайтурское","25640162","Филиал \"Иркутский\" ОАО \"Славянка\"","7702707386","381143001"]
[725,"Усольский муниципальный район","Тельминское","25640173","ОАО \"Иркутскоблгаз\"","3800000750","380850001"]
[726,"Усольский муниципальный район","Тельминское","25640173","ООО \"Вертикаль\"","3819021601","385101001"]
[727,"Усольский муниципальный район","Тельминское","25640173","ООО \"Саяны +\"","3851007168","385101001"]
[728,"Усть-Илимский муниципальный район","Бадарминское","25642401","Восточно-Сибирская дирекция по тепловодоснабжению - структурное подразделение центральной дирекции по тепловодоснабжению филиала ОАО \"РЖД\"","7708503727","385145042"]
[729,"Усть-Илимский муниципальный район","Бадарминское","25642401","ОАО \"Облжилкомхоз\"","3808133575","384901001"]
[730,"Усть-Илимский муниципальный район","Бадарминское","25642401","ООО\"ЖКЦ\"","3817030199","381701001"]
[731,"Усть-Илимский муниципальный район","Ершовское","25642403","Восточно-Сибирская дирекция по тепловодоснабжению - структурное подразделение центральной дирекции по тепловодоснабжению филиала ОАО \"РЖД\"","7708503727","385145042"]
[732,"Усть-Илимский муниципальный район","Ершовское","25642403","ОАО \"Облжилкомхоз\"","3808133575","384901001"]
[733,"Усть-Илимский муниципальный район","Ершовское","25642403","ООО \"Борвей\"","3817029362","381701001"]
[734,"Усть-Илимский муниципальный район","Ершовское","25642403","ООО \"Ершовское ЖКХ\"","3817037162","381701001"]
[735,"Усть-Илимский муниципальный район","Железнодорожное","25642155","Восточно-Сибирская дирекция по тепловодоснабжению - структурное подразделение центральной дирекции по тепловодоснабжению филиала ОАО \"РЖД\"","7708503727","385145042"]
[736,"Усть-Илимский муниципальный район","Железнодорожное","25642155","Муниципальное предприятие \"АВТОГАРАНТ\"","3817034531","381701001"]
[737,"Усть-Илимский муниципальный район","Железнодорожное","25642155","ОАО \"Иркутскэнерго\"","3800000220","997450001"]
[738,"Усть-Илимский муниципальный район","Железнодорожное","25642155","ОАО \"Облжилкомхоз\"","3808133575","384901001"]
[739,"Усть-Илимский муниципальный район","Железнодорожное","25642155","ООО \"СвитСервис\"","3817036874","381701001"]
[740,"Усть-Илимский муниципальный район","Кеульское","25642402","Восточно-Сибирская дирекция по тепловодоснабжению - структурное подразделение центральной дирекции по тепловодоснабжению филиала ОАО \"РЖД\"","7708503727","385145042"]
[741,"Усть-Илимский муниципальный район","Кеульское","25642402","МУП\"КОС\"","3817030488","381701001"]
[742,"Усть-Илимский муниципальный район","Кеульское","25642402","ОАО \"Облжилкомхоз\"","3808133575","384901001"]
[743,"Усть-Илимский муниципальный район","Невонское","25642405","Восточно-Сибирская дирекция по тепловодоснабжению - структурное подразделение центральной дирекции по тепловодоснабжению филиала ОАО \"РЖД\"","7708503727","385145042"]
[744,"Усть-Илимский муниципальный район","Невонское","25642405","МП \"Скважина\"","3817039138","381701001"]
[745,"Усть-Илимский муниципальный район","Невонское","25642405","ОАО \"Облжилкомхоз\"","3808133575","384901001"]
[746,"Усть-Илимский муниципальный район","Подъеланское","25642404","Восточно-Сибирская дирекция по тепловодоснабжению - структурное подразделение центральной дирекции по тепловодоснабжению филиала ОАО \"РЖД\"","7708503727","385145042"]
[747,"Усть-Илимский муниципальный район","Подъеланское","25642404","ИП Прокопьева Наталья Александровна","381704084960","отсутствует"]
[748,"Усть-Илимский муниципальный район","Подъеланское","25642404","ОАО \"Облжилкомхоз\"","3808133575","384901001"]
[749,"Усть-Илимский муниципальный район","Седановское","25642407","Восточно-Сибирская дирекция по тепловодоснабжению - структурное подразделение центральной дирекции по тепловодоснабжению филиала ОАО \"РЖД\"","7708503727","385145042"]
[750,"Усть-Илимский муниципальный район","Седановское","25642407","ОАО \"Облжилкомхоз\"","3808133575","384901001"]
[751,"Усть-Илимский муниципальный район","Седановское","25642407","ООО \"Илим-Альянс\"","3817038663","381701001"]
[752,"Усть-Илимский муниципальный район","Тубинское","25642408","Восточно-Сибирская дирекция по тепловодоснабжению - структурное подразделение центральной дирекции по тепловодоснабжению филиала ОАО \"РЖД\"","7708503727","385145042"]
[753,"Усть-Илимский муниципальный район","Тубинское","25642408","ОАО \"Облжилкомхоз\"","3808133575","384901001"]
[754,"Усть-Илимский муниципальный район","Тубинское","25642408","ООО \"СпецЭнергоРесурс\"","3817042772","381701001"]
[755,"Усть-Илимский муниципальный район","Тубинское","25642408","ООО \"Тубинская служба услуг\"","3817040535","381701001"]
[756,"Усть-Илимский муниципальный район","Усть-Илимский муниципальный район","25642000","Восточно-Сибирская дирекция по тепловодоснабжению - структурное подразделение центральной дирекции по тепловодоснабжению филиала ОАО \"РЖД\"","7708503727","385145042"]
[757,"Усть-Илимский муниципальный район","Эдучанское","25642410","Восточно-Сибирская дирекция по тепловодоснабжению - структурное подразделение центральной дирекции по тепловодоснабжению филиала ОАО \"РЖД\"","7708503727","385145042"]
[758,"Усть-Илимский муниципальный район","Эдучанское","25642410","ОАО \"Облжилкомхоз\"","3808133575","384901001"]
[759,"Усть-Илимский муниципальный район","Эдучанское","25642410","ООО \"ЖКО\"","3817029595","381701001"]
[760,"Усть-Илимский муниципальный район","Эдучанское","25642410","ООО \"Надежда\"","3817039770","381701001"]
[761,"Усть-Кутский муниципальный район","Верхнемарковское","25644410","ООО УК \"Энергостандарт\"","3818027505","381801001"]
[762,"Усть-Кутский муниципальный район","Звезднинское","25644154","ООО  \"Звездный\"","3818024840","381801001"]
[763,"Усть-Кутский муниципальный район","Звезднинское","25644154","ООО \"Усть-Кутские тепловые сети и котельные\"","3818025152","381801001"]
[764,"Усть-Кутский муниципальный район","Звезднинское","25644154","ООО УК \"Энергосервис\"","3818024952","381801001"]
[765,"Усть-Кутский муниципальный район","Нийское","25644413","УК ООО \"Ресурс\"","3818028509","381801001"]
[766,"Усть-Кутский муниципальный район","Подымахинское","25644422","ООО \"Энергия\"","3818030498","381801001"]
[767,"Усть-Кутский муниципальный район","Ручейское","25644407","ИП Беккер А.А.","381802674774","отсутствует"]
[768,"Усть-Кутский муниципальный район","Ручейское","25644407","МП \"Каймоновский  ЛПХ\" Усть-Кутского МО","3818010131","381801001"]
[769,"Усть-Кутский муниципальный район","Ручейское","25644407","ООО \"Престиж\"","3818020796","381802002"]
[770,"Усть-Кутский муниципальный район","Ручейское","25644407","ООО УК \"Катран\"","3818029326","381101001"]
[771,"Усть-Кутский муниципальный район","Ручейское","25644407","ООО УК \"Север\"","3818028788","381801001"]
[772,"Усть-Кутский муниципальный район","Ручейское","25644407","ООО УК \"Энергия\"","3818031460","381801001"]
[773,"Усть-Кутский муниципальный район","Усть-Кутское городское поселение","25644101","ЗАО \"Ленаэкспортлес\"","3808097091","381801001"]
[774,"Усть-Кутский муниципальный район","Усть-Кутское городское поселение","25644101","ЗАО \"Санаторий Усть-Кут\"","3818000870","381801001"]
[775,"Усть-Кутский муниципальный район","Усть-Кутское городское поселение","25644101","ММП \"Автодор\" УКМО","3818025258","381801001"]
[776,"Усть-Кутский муниципальный район","Усть-Кутское городское поселение","25644101","ОАО \"Облжилкомхоз\"","3808133575","384901001"]
[777,"Усть-Кутский муниципальный район","Усть-Кутское городское поселение","25644101","ОАО \"Осетровский речной порт\"","3818000687","381801001"]
[778,"Усть-Кутский муниципальный район","Усть-Кутское городское поселение","25644101","ООО  \"Феникс Гранд\"","3818028139","381801001"]
[779,"Усть-Кутский муниципальный район","Усть-Кутское городское поселение","25644101","ООО \"АКВА\"","3818017602","381801001"]
[780,"Усть-Кутский муниципальный район","Усть-Кутское городское поселение","25644101","ООО \"Бирюса+\"","3818012883","381801001"]
[781,"Усть-Кутский муниципальный район","Усть-Кутское городское поселение","25644101","ООО \"Иркутск-Терминал\"","3808083420","380801001"]
[782,"Усть-Кутский муниципальный район","Усть-Кутское городское поселение","25644101","ООО \"Иркутск-Терминал\"","3808083420","384901001"]
[783,"Усть-Кутский муниципальный район","Усть-Кутское городское поселение","25644101","ООО \"Ленская тепловая компания\"","3811170496","381101001"]
[784,"Усть-Кутский муниципальный район","Усть-Кутское городское поселение","25644101","ООО \"Пламя\"","3818022377","381801001"]
[785,"Усть-Кутский муниципальный район","Усть-Кутское городское поселение","25644101","ООО \"Прогресс-сервис\"","3818026692","381801001"]
[786,"Усть-Кутский муниципальный район","Усть-Кутское городское поселение","25644101","ООО \"Стелс\"","3818025522","381801001"]
[787,"Усть-Кутский муниципальный район","Усть-Кутское городское поселение","25644101","ООО \"Стимул\"","3818024945","381801001"]
[788,"Усть-Кутский муниципальный район","Усть-Кутское городское поселение","25644101","ООО \"Стоки\"","3818017610","381801001"]
[789,"Усть-Кутский муниципальный район","Усть-Кутское городское поселение","25644101","ООО \"Усть-Кутские тепловые сети и котельные\"","3818025152","381801001"]
[790,"Усть-Кутский муниципальный район","Усть-Кутское городское поселение","25644101","ООО \"Энергосфера-Иркутск\"","3818031413","381801001"]
[791,"Усть-Кутский муниципальный район","Усть-Кутское городское поселение","25644101","ООО УК \"Водоканал-Сервис\"","3818018814","381801001"]
[792,"Усть-Кутский муниципальный район","Усть-Кутское городское поселение","25644101","ООО УК\"Бирюса\"","3818018652","381801001"]
[793,"Усть-Кутский муниципальный район","Усть-Кутское городское поселение","25644101","ООО\"СПЕЦАВТО\"","3818018758","381801001"]
[794,"Усть-Кутский муниципальный район","Усть-Кутское городское поселение","25644101","ФКУ ОИК-5 ГУФСИН России по Иркутской области","3818000824","381801001"]
[795,"Усть-Кутский муниципальный район","Янтальское","25644160","ООО \"Транзит Плюс\"","3818023941","381801001"]
[796,"Усть-Кутский муниципальный район","Янтальское","25644160","ООО \"Усть-Кутские тепловые сети и котельные\"","3818025152","381801001"]
[797,"Усть-Кутский муниципальный район","Янтальское","25644160","Филиал \"Ленское РНУ\"  ООО \"Востокнефтепровод\"","3801079671","380501001"]
[798,"Усть-Удинский муниципальный район","Аносовское","25646402","АМО Аносовское СП","3806002947","380601001"]
[799,"Усть-Удинский муниципальный район","Аносовское","25646402","ГУЭП \"Облкоммунэнерго-Сбыт\"","3811142185","381101001"]
[800,"Усть-Удинский муниципальный район","Аносовское","25646402","ИП Зубков В.Н.","384200052203","384201001"]
[801,"Усть-Удинский муниципальный район","Аталанское","25646404","ГУЭП \"Облкоммунэнерго-Сбыт\"","3811142185","381101001"]
[802,"Усть-Удинский муниципальный район","Аталанское","25646404","ИП Воробьев Р.В.","384201309123","отсутствует"]
[803,"Усть-Удинский муниципальный район","Балаганкинское","25646407","ИП Филимонов А.С.","382200668119","отсутствует"]
[804,"Усть-Удинский муниципальный район","Игжейское","25646413","ИП Лбов Олег Васильевич","384201269488","отсутствует"]
[805,"Усть-Удинский муниципальный район","Ключинское","25646447","ГУЭП \"Облкоммунэнерго-Сбыт\"","3811142185","381101001"]
[806,"Усть-Удинский муниципальный район","Малышевское","25646422","ИП \"Баринов А.Н.\"","384200647480","отсутствует"]
[807,"Усть-Удинский муниципальный район","Молькинское","25646425","ИП Палюрова А.В.","384200030866","384201001"]
[808,"Усть-Удинский муниципальный район","Новоудинское","25646428","ИП Парфенова О.Н.","384200314219","384201001"]
[809,"Усть-Удинский муниципальный район","Подволоченское","25646431","ГУЭП \"Облкоммунэнерго-Сбыт\"","3811142185","381101001"]
[810,"Усть-Удинский муниципальный район","Подволоченское","25646431","ИП Порубоев","384200290529","384201001"]
[811,"Усть-Удинский муниципальный район","Светлолобовское","25646434","АМО \"Светлолобовское СП\"","3806002993","380601001"]
[812,"Усть-Удинский муниципальный район","Светлолобовское","25646434","ИП Константинов В.П.","384200392513","384201001"]
[813,"Усть-Удинский муниципальный район","Светлолобовское","25646434","ООО \"Теплоком\"","3814015530","381401001"]
[814,"Усть-Удинский муниципальный район","Среднемуйское","25646437","АМО \"Среднемуйское СП\"","3806002785","380601001"]
[815,"Усть-Удинский муниципальный район","Усть-Удинское","25646151","ГУЭП \"Облкоммунэнерго-Сбыт\"","3811142185","381101001"]
[816,"Усть-Удинский муниципальный район","Усть-Удинское","25646151","ИП Горбацевич Дмитрий Сергеевич","384201368584","отсутствует"]
[817,"Усть-Удинский муниципальный район","Усть-Удинское","25646151","ООО \"Теплоком\"","3814015530","381401001"]
[818,"Усть-Удинский муниципальный район","Юголокское","25646446","ИП Сергеев М.Л.","384200574513","384201001"]
[819,"Черемховский муниципальный район","Алехинское","25648402","ООО \"Сибиряк плюс\"","3851000187","385101001"]
[820,"Черемховский муниципальный район","Алехинское","25648402","ООО УК \"Водоканал\"","3820012746","382203001"]
[821,"Черемховский муниципальный район","Голуметское","25648407","ООО \"Голуметьсервис\"","3820012048","382001001"]
[822,"Черемховский муниципальный район","Лоховское","25648428","ООО \"Кристалл\"","3851004640","385101001"]
[823,"Черемховский муниципальный район","Михайловское","25648155","ОАО \"Иркутскоблгаз\"","3800000750","380850001"]
[824,"Черемховский муниципальный район","Михайловское","25648155","ООО \"Теплоцентр\"","3851002226","385101001"]
[825,"Черемховский муниципальный район","Михайловское","25648155","ООО \"Теплоэнерго\"","3851999353","385101001"]
[826,"Черемховский муниципальный район","Михайловское","25648155","ООО \"Техресурс\"","3820012640","382001001"]
[827,"Черемховский муниципальный район","Михайловское","25648155","ООО Водоканал рп Михайловка","3851999730","385101001"]
[828,"Черемховский муниципальный район","Михайловское","25648155","ООО Теплосервис","3820011799","385101001"]
[829,"Черемховский муниципальный район","Михайловское","25648155","ООО УК Михайловская","3851002931","385101001"]
[830,"Черемховский муниципальный район","Новогромовское","25648417","ИП Скрябин","384300333790","382001001"]
[831,"Черемховский муниципальный район","Новогромовское","25648417","ООО\"Теплосервис\"","3820011679","382001001"]
[832,"Черемховский муниципальный район","Онотское","25648419","ООО\"Онот\"","3820012111","382201001"]
[833,"Черемховский муниципальный район","Парфеновское","25648422","ООО \"Кристалл\"","3851004640","385101001"]
[834,"Черемховский муниципальный район","Черемховское","25648443","ООО \"Сибиряк плюс\"","3851000187","385101001"]
[835,"Чунский муниципальный район","Бунбуйское","25650407","ИП \"Парфение\"","384402162128","381501001"]
[836,"Чунский муниципальный район","Лесогорское","25650162","ООО \"Коммунальщик\"","3815014699","381501001"]
[837,"Чунский муниципальный район","Лесогорское","25650162","ООО \"Лесогорская Котельная\"","3815014586","381501001"]
[838,"Чунский муниципальный район","Новочунское","25650419","НМУП ЖКХ \"Исток\"","3815012116","381501001"]
[839,"Чунский муниципальный район","Новочунское","25650419","ООО \"Пионерский ЛПХ\"","3844004222","381501001"]
[840,"Чунский муниципальный район","Новочунское","25650419","Филиал ОАО \"РЭУ\" \"Иркутский\"","7714783092","381143001"]
[841,"Чунский муниципальный район","Октябрьское","25650165","Филиал \"Иркутский\" ОАО \"Славянка\"","7702707386","381143001"]
[842,"Чунский муниципальный район","Таргизское","25650422","МУП \"Искра\"","3815012571","381501001"]
[843,"Чунский муниципальный район","Чунское","25650151","Восточно-Сибирская дирекция по тепловодоснабжению - структурное подразделение центральной дирекции по тепловодоснабжению филиала ОАО \"РЖД\"","7708503727","385145042"]
[844,"Чунский муниципальный район","Чунское","25650151","ООО \"Центральная котельная\"","3808092150","381501001"]
[845,"Шелеховский муниципальный район","Баклашинское","25655402","МУП \"Водоканал\"","3821005886","382101001"]
[846,"Шелеховский муниципальный район","Баклашинское","25655402","МУП \"Водоканал\" г.Иркутска","3807000276","381150001"]
[847,"Шелеховский муниципальный район","Баклашинское","25655402","МУП \"Дорожник\"","3848000853","384801001"]
[848,"Шелеховский муниципальный район","Баклашинское","25655402","МУП \"Шелеховские отопительные котельные\"","3821004265","382101001"]
[849,"Шелеховский муниципальный район","Баклашинское","25655402","МУП \"Шелеховские тепловые сети\"","3821009390","382101001"]
[850,"Шелеховский муниципальный район","Баклашинское","25655402","ОАО \"Иркутскэнерго\"","3800000220","997450001"]
[851,"Шелеховский муниципальный район","Баклашинское","25655402","ООО \"Специализированное предприятие по эксплуатации дорог и благоустройству\"","3848002258","384801001"]
[852,"Шелеховский муниципальный район","Баклашинское","25655402","Филиал \"Иркутский\" ОАО \"Славянка\"","7702707386","381143001"]
[853,"Шелеховский муниципальный район","Баклашинское","25655402","Филиал ОАО \"РЭУ\" \"Иркутский\"","7714783092","381143001"]
[854,"Шелеховский муниципальный район","Большелугское","25655153","МУП \"Водоканал\"","3821005886","382101001"]
[855,"Шелеховский муниципальный район","Большелугское","25655153","МУП \"Шелеховские отопительные котельные\"","3821004265","382101001"]
[856,"Шелеховский муниципальный район","Большелугское","25655153","Муниципальное предприятие \"Стандарт\"","3848003212","384801001"]
[857,"Шелеховский муниципальный район","Большелугское","25655153","ОАО \"Иркутскоблгаз\"","3800000750","380850001"]
[858,"Шелеховский муниципальный район","Подкаменское","25655408","Восточно-Сибирская дирекция по тепловодоснабжению - структурное подразделение центральной дирекции по тепловодоснабжению филиала ОАО \"РЖД\"","7708503727","385145042"]
[859,"Шелеховский муниципальный район","Подкаменское","25655408","МУП \"Водоканал\"","3821005886","382101001"]
[860,"Шелеховский муниципальный район","Шаманское","25655415","МУП \"Шелеховские отопительные котельные\"","3821004265","382101001"]
[861,"Шелеховский муниципальный район","город Шелехов","25655101","Восточно-Сибирская дирекция по тепловодоснабжению - структурное подразделение центральной дирекции по тепловодоснабжению филиала ОАО \"РЖД\"","7708503727","385145042"]
[862,"Шелеховский муниципальный район","город Шелехов","25655101","МУП \"Водоканал\"","3821005886","382101001"]
[863,"Шелеховский муниципальный район","город Шелехов","25655101","МУП \"Водоканал\" г.Иркутска","3807000276","381150001"]
[864,"Шелеховский муниципальный район","город Шелехов","25655101","МУП \"Шелеховские отопительные котельные\"","3821004265","382101001"]
[865,"Шелеховский муниципальный район","город Шелехов","25655101","ОАО \"Иркутскоблгаз\"","3800000750","380850001"]
[866,"Шелеховский муниципальный район","город Шелехов","25655101","ОАО \"Иркутскэнерго\"","3800000220","997450001"]
[867,"Шелеховский муниципальный район","город Шелехов","25655101","ОАО \"СУАЛ\" филиал \"ИркАЗ-СУАЛ\"","6612005052","382102001"]
[868,"Шелеховский муниципальный район","город Шелехов","25655101","ООО \"Шелеховская ЭнергоСетевая Компания\"","3821014048","381001001"]
[869,"Шелеховский муниципальный район","город Шелехов","25655101","ООО «Специализированное предприятие по эксплуатации дорог и благоустройству»","3848002258","381001001"]
[870,"Эхирит-Булагатский муниципальный район","Алужинское","25837401","ИП Андреев А.А.","850600022994","850601001"]
[871,"Эхирит-Булагатский муниципальный район","Ахинское","25837402","ИП Богомолов В.В.","850600475641","850601001"]
[872,"Эхирит-Булагатский муниципальный район","Гаханское","25837413","ИП Хотков Л.Д.","850600042006","850601001"]
[873,"Эхирит-Булагатский муниципальный район","Гаханское","25837413","МОУ Гаханская СОШ","8506006185","850601001"]
[874,"Эхирит-Булагатский муниципальный район","Захальское","25837416","ИП Абрамов А.С.","850600448775","850601001"]
[875,"Эхирит-Булагатский муниципальный район","Захальское","25837416","ООО \"ОКТАН Восток Генерация\"","3812127623","381201001"]
[876,"Эхирит-Булагатский муниципальный район","Захальское","25837416","ФГУП \"Элита\" Россельхозакадемии","8506002889","850601001"]
[877,"Эхирит-Булагатский муниципальный район","Капсальское","25837419","СХПК Капсальское","8506004967","850601001"]
[878,"Эхирит-Булагатский муниципальный район","Корсукское","25837420","ИП Борголов А.В.","850601647269","850601001"]
[879,"Эхирит-Булагатский муниципальный район","Корсукское","25837420","ООО \"ОКТАН Восток Генерация\"","3812127623","381201001"]
[880,"Эхирит-Булагатский муниципальный район","Кулункунское","25837422","ИП Добровольский Ю.А.","850600188132","850601001"]
[881,"Эхирит-Булагатский муниципальный район","Ново-Николаевское","25837432","ИП Китонова Е.А.","850601989583","отсутствует"]
[882,"Эхирит-Булагатский муниципальный район","Ново-Николаевское","25837432","ИП Степанов Р.Г.","8506010992","850601001"]
[883,"Эхирит-Булагатский муниципальный район","Олойское","25837435","ИП Дыгирова И.С.","850600927432","850601001"]
[884,"Эхирит-Булагатский муниципальный район","Олойское","25837435","ООО \"ОКТАН Восток Генерация\"","3812127623","381201001"]
[885,"Эхирит-Булагатский муниципальный район","Тугутуйское","25837442","ООО СХПП Тугутуйское","3808207611","850601001"]
[886,"Эхирит-Булагатский муниципальный район","Усть-Ордынское","25837444","МУП \"Каскад\"","8506007453","850601001"]
[887,"Эхирит-Булагатский муниципальный район","Усть-Ордынское","25837444","ОАО \"Иркутскоблгаз\"","3800000750","380850001"]
[888,"Эхирит-Булагатский муниципальный район","Усть-Ордынское","25837444","ОГУЭП \"Облкоммунэнерго\"","3800000252","850601001"]
[889,"Эхирит-Булагатский муниципальный район","Харазаргайское","25837447","ИП Ахмедшин Р.Х.","850600187964","850601001"]
[890,"Эхирит-Булагатский муниципальный район","Харатское","25837448","КФХ Просекинское","850600020274","850601001"]
[891,"Эхирит-Булагатский муниципальный район","Харатское","25837448","ООО \"ОКТАН Восток Генерация\"","3812127623","381201001"]
[892,"","","","Дизельная генерация","0000000000","000000000"]
[893,"","","","Другие поставщики","000000000000","000000000"]
[894,"","","","ЗАО \"Система\"","4205173700","420501001"]
[895,"","","","МУП \"Теплоэнерго\"","3833002054","380202001"]
[896,"","","","МУП УК \"Коммунальные услуги\"","3834009920","383401001"]
[897,"","","","ОАО  \"Российские железные дороги\" в лице Красноярской дирекции по энергообеспечению-структурного подразделения \"Трансэнерго\" филиала ОАО \"РЖД\"","7708503727","246045007"]
[898,"","","","ОАО \"АтомЭнергоСбыт\"","7704228075","772501001"]
[899,"","","","ОАО \"Облжилкомхоз\" Южный филиал","3808133575","382701001"]
[900,"","","","ОАО \"Оборонэнергосбыт\"","7704731218","770401001"]
[901,"","","","ОАО \"Оборонэнергосбыт\" филиал \"Забайкальский\"","7704731218","753643002"]
[902,"","","","ОАО \"ФСК ЕЭС\"","4716016979","772801001"]
[903,"","","","ООО \"ЖКХ\" г. Алзамая","3813003116","381301001"]
[904,"","","","ООО \"МЕЧЕЛ-ЭНЕРГО\"","7722245108","771401001"]
[905,"","","","ООО \"РН-Энерго\"","7706525041","772501001"]
[906,"","","","ООО \"РУСЭНЕРГОСБЫТ\"","7706284124","770601001"]
[907,"","","","ООО \"Русэнергоресурс\"","7706288496","770601001"]
[908,"","","","ООО \"ТранснефтьЭлектросетьСервис\"","6311049306","631101001"]
[909,"","","","УМП \"Районное ЖКХ\"","3813002634","381301001"]
[910,"","","","филиал \"Забайкальский\" ОАО \"Оборонэнерго\"","7704726225","753643001"]

{"sheet":"REESTR_FILTERED","index":18,"n_rows":19,"n_cols":8,"rows_kept":19,"cut":false,"hidden":true,"merged":[]}
["№","МР","МО","МО ОКТМО","ОРГАНИЗАЦИЯ","ИНН","КПП","ВИД ДЕЯТЕЛЬНОСТИ"]
[1,"Бодайбинский муниципальный район","Артемовское","25602155","МУП \"Артемовское ЖКХ\"","3802012461","380201001"]
[2,"Бодайбинский муниципальный район","Артемовское","25602155","ООО \"ТеплоВодоРесурс\"","3802013391","380201001"]
[3,"Бодайбинский муниципальный район","Балахнинское","25602156","МУП \"ТВС п.Балахнинский\"","3802011789","380201001"]
[4,"Бодайбинский муниципальный район","Балахнинское","25602156","ООО \"ТеплоВодоРесурс\"","3802013391","380201001"]
[5,"Бодайбинский муниципальный район","Бодайбинское","25602101","\"Золотая Русь\"","3802009162","380201001"]
[6,"Бодайбинский муниципальный район","Бодайбинское","25602101","ЗАО \"Витимэнерго\"","3802005802","380201001"]
[7,"Бодайбинский муниципальный район","Бодайбинское","25602101","ЗАО \"Витимэнергосбыт\"","3802010714","380201001"]
[8,"Бодайбинский муниципальный район","Бодайбинское","25602101","ЗАО \"Ленсиб\"","3802005464","380250001"]
[9,"Бодайбинский муниципальный район","Бодайбинское","25602101","ЗАО «Артель старателей «Витим»","3802007817","380201001"]
[10,"Бодайбинский муниципальный район","Бодайбинское","25602101","МУП \"Тепловодоканал\"","3802009268","380201001"]
[11,"Бодайбинский муниципальный район","Бодайбинское","25602101","ОАО \"Первенец\"","3802008546","380201001"]
[12,"Бодайбинский муниципальный район","Бодайбинское","25602101","ООО Вариант плюс","3802010087","380201001"]
[13,"Бодайбинский муниципальный район","Жуинское","25602402","МУП \"ТВС п.Перевоз\"","3802011958","380201001"]
[14,"Бодайбинский муниципальный район","Кропоткинское","25602158","МУП \"Комплекс тепловодоснабжения п.Кропоткин\"","3802013546","380201001"]
[15,"Бодайбинский муниципальный район","Кропоткинское","25602158","МУП \"ТВК п.Кропоткин\"","3802012221","380201001"]
[16,"Бодайбинский муниципальный район","Мамаканское","25602162","МУП \"ЖКХ п.Мамакан\"","3802010224","380201001"]
[17,"Бодайбинский муниципальный район","Мамаканское","25602162","МУП \"Тепловодоканал\"","3802009268","380201001"]
[18,"Бодайбинский муниципальный район","Мамаканское","25602162","ООО \"ТЭП-2\"","3802013539","380201001"]

{"sheet":"REESTR_MO","index":19,"n_rows":473,"n_cols":5,"rows_kept":473,"cut":false,"hidden":true,"merged":[]}
["МР","МО","МО_ОКТМО","МР","ИМЯ ДИАПАЗОНА"]
["Аларский муниципальный район","Аларский муниципальный район","25823000","Аларский муниципальный район","MO_LIST_2"]
["Аларский муниципальный район","Аларь","25823402","Ангарский муниципальный район","MO_LIST_3"]
["Аларский муниципальный район","Александровск","25823404","Балаганский муниципальный район","MO_LIST_4"]
["Аларский муниципальный район","Аляты","25823407","Баяндаевский муниципальный район","MO_LIST_5"]
["Аларский муниципальный район","Ангарское","25823410","Бодайбинский муниципальный район","MO_LIST_6"]
["Аларский муниципальный район","Бахтай","25823413","Боханский муниципальный район","MO_LIST_7"]
["Аларский муниципальный район","Егоровск","25823418","Братский муниципальный район","MO_LIST_8"]
["Аларский муниципальный район","Забитуй","25823414","Город Братск","MO_LIST_9"]
["Аларский муниципальный район","Зоны","25823419","Город Иркутск","MO_LIST_10"]
["Аларский муниципальный район","Иваническ","25823422","Город Саянск","MO_LIST_11"]
["Аларский муниципальный район","Куйта","25823425","Город Свирск","MO_LIST_12"]
["Аларский муниципальный район","Кутулик","25823426","Город Тулун","MO_LIST_13"]
["Аларский муниципальный район","Маниловск","25823416","Город Усолье-Сибирское","MO_LIST_14"]
["Аларский муниципальный район","Могоенок","25823428","Город Усть-Илимск","MO_LIST_15"]
["Аларский муниципальный район","Нельхай","25823431","Город Черемхово","MO_LIST_16"]
["Аларский муниципальный район","Ныгдинское","25823432","Жигаловский муниципальный район","MO_LIST_17"]
["Аларский муниципальный район","Табарсук","25823434","Заларинский муниципальный район","MO_LIST_18"]
["Аларский муниципальный район","Тыргетуй","25823437","Зиминский муниципальный район","MO_LIST_19"]
["Ангарский муниципальный район","Ангарский муниципальный район","25603000","Зиминское городское муниципальное образование","MO_LIST_20"]
["Ангарский муниципальный район","Город Ангарск","25603101","Иркутский  муниципальный район","MO_LIST_21"]
["Ангарский муниципальный район","Мегетское","25603155","Казачинско-Ленский муниципальный район","MO_LIST_22"]
["Ангарский муниципальный район","Одинское","25603405","Катангский муниципальный район","MO_LIST_23"]
["Ангарский муниципальный район","Савватеевское","25603408","Качугский муниципальный район","MO_LIST_24"]
["Балаганский муниципальный район","Балаганский муниципальный район","25601000","Киренский муниципальный район","MO_LIST_25"]
["Балаганский муниципальный район","Балаганское","25601151","Куйтунский муниципальный район","MO_LIST_26"]
["Балаганский муниципальный район","Биритское","25601405","Мамско-Чуйский муниципальный район","MO_LIST_27"]
["Балаганский муниципальный район","Заславское","25601410","Нижнеилимский муниципальный район","MO_LIST_28"]
["Балаганский муниципальный район","Коноваловское","25601415","Нижнеудинский муниципальный район","MO_LIST_29"]
["Балаганский муниципальный район","Кумарейское","25601418","Нукутский муниципальный район","MO_LIST_30"]
["Балаганский муниципальный район","Тарнопольское","25601425","Ольхонский муниципальный район","MO_LIST_31"]
["Балаганский муниципальный район","Шарагайское","25601435","Осинский район","MO_LIST_32"]
["Баяндаевский муниципальный район","Баяндаевский муниципальный район","25825000","Слюдянский муниципальный район","MO_LIST_33"]
["Баяндаевский муниципальный район","Баяндай","25825405","Тайшетский муниципальный район","MO_LIST_34"]
["Баяндаевский муниципальный район","Васильевск","25825408","Тулунский муниципальный район","MO_LIST_35"]
["Баяндаевский муниципальный район","Гаханы","25825403","Усольский муниципальный район","MO_LIST_36"]
["Баяндаевский муниципальный район","Курумчинский","25825414","Усть-Илимский муниципальный район","MO_LIST_37"]
["Баяндаевский муниципальный район","Кырма","25825420","Усть-Кутский муниципальный район","MO_LIST_38"]
["Баяндаевский муниципальный район","Люры","25825424","Усть-Удинский муниципальный район","MO_LIST_39"]
["Баяндаевский муниципальный район","Нагалык","25825428","Черемховский муниципальный район","MO_LIST_40"]
["Баяндаевский муниципальный район","Ользоны","25825432","Чунский муниципальный район","MO_LIST_41"]
["Баяндаевский муниципальный район","Покровка","25825434","Шелеховский муниципальный район","MO_LIST_42"]
["Баяндаевский муниципальный район","Половинка","25825435","Эхирит-Булагатский муниципальный район","MO_LIST_43"]
["Баяндаевский муниципальный район","Тургеневка","25825441"]
["Баяндаевский муниципальный район","Хогот","25825448"]
["Бодайбинский муниципальный район","Артемовское","25602155"]
["Бодайбинский муниципальный район","Балахнинское","25602156"]
["Бодайбинский муниципальный район","Бодайбинский муниципальный район","25602000"]
["Бодайбинский муниципальный район","Бодайбинское","25602101"]
["Бодайбинский муниципальный район","Жуинское","25602402"]
["Бодайбинский муниципальный район","Кропоткинское","25602158"]
["Бодайбинский муниципальный район","Мамаканское","25602162"]
["Боханский муниципальный район","Александровское","25826402"]
["Боханский муниципальный район","Бохан","25826405"]
["Боханский муниципальный район","Боханский муниципальный район","25826000"]
["Боханский муниципальный район","Буреть","25826407"]
["Боханский муниципальный район","Казачье","25826416"]
["Боханский муниципальный район","Каменка","25826419"]
["Боханский муниципальный район","Новая Ида","25826424"]
["Боханский муниципальный район","Олонки","25826429"]
["Боханский муниципальный район","Середкино","25826435"]
["Боханский муниципальный район","Тараса","25826438"]
["Боханский муниципальный район","Тихоновка","25826440"]
["Боханский муниципальный район","Укыр","25826442"]
["Боханский муниципальный район","Хохорск","25826449"]
["Боханский муниципальный район","Шаралдай","25826450"]
["Братский муниципальный район","Большеокинское","25604401"]
["Братский муниципальный район","Братский муниципальный район","25604000"]
["Братский муниципальный район","Вихоревское","25604103"]
["Братский муниципальный район","Добчурское","25604402"]
["Братский муниципальный район","Зябинское","25604456"]
["Братский муниципальный район","Илирское","25604404"]
["Братский муниципальный район","Калтукское","25604407"]
["Братский муниципальный район","Карахунское","25604410"]
["Братский муниципальный район","Кежемское","25604413"]
["Братский муниципальный район","Ключи-Булакское","25604416"]
["Братский муниципальный район","Кобинское","25604457"]
["Братский муниципальный район","Кобляковское","25604422"]
["Братский муниципальный район","Куватское","25604458"]
["Братский муниципальный район","Кузнецовское","25604425"]
["Братский муниципальный район","Наратайское","25604428"]
["Братский муниципальный район","Озернинское","25604431"]
["Братский муниципальный район","Покоснинское","25604437"]
["Братский муниципальный район","Прибойнинское","25604434"]
["Братский муниципальный район","Прибрежнинское","25604440"]
["Братский муниципальный район","Тангуйское","25604443"]
["Братский муниципальный район","Тарминское","25604445"]
["Братский муниципальный район","Турманское","25604447"]
["Братский муниципальный район","Тынкобьское","25604449"]
["Братский муниципальный район","Тэмьское","25604450"]
["Братский муниципальный район","Харанжинское","25604452"]
["Братский муниципальный район","Шумиловское","25604455"]
["Город Братск","Город Братск","25714000"]
["Город Иркутск","Город Иркутск","25701000"]
["Город Саянск","Город Саянск","25726000"]
["Город Свирск","Город Свирск","25746000"]
["Город Тулун","Город Тулун","25732000"]
["Город Усолье-Сибирское","Город Усолье-Сибирское","25736000"]
["Город Усть-Илимск","Город Усть-Илимск","25738000"]
["Город Черемхово","Город Черемхово","25745000"]
["Жигаловский муниципальный район","Дальне-Закорское","25606404"]
["Жигаловский муниципальный район","Жигаловский муниципальный район","25606000"]
["Жигаловский муниципальный район","Жигаловское","25606151"]
["Жигаловский муниципальный район","Знаменское","25606407"]
["Жигаловский муниципальный район","Лукиновское","25606419"]
["Жигаловский муниципальный район","Петровское","25606422"]
["Жигаловский муниципальный район","Рудовское","25606425"]
["Жигаловский муниципальный район","Тимошинское","25606431"]
["Жигаловский муниципальный район","Тутурское","25606434"]
["Жигаловский муниципальный район","Усть-Илгинское","25606437"]
["Жигаловский муниципальный район","Чиканское","25606440"]
["Заларинский муниципальный район","Бабагайское","25608402"]
["Заларинский муниципальный район","Бажирское","25608404"]
["Заларинский муниципальный район","Веренское","25608407"]
["Заларинский муниципальный район","Владимирское","25608410"]
["Заларинский муниципальный район","Заларинский муниципальный район","25608000"]
["Заларинский муниципальный район","Заларинское","25608151"]
["Заларинский муниципальный район","Моисеевское","25608416"]
["Заларинский муниципальный район","Мойганское","25608419"]
["Заларинский муниципальный район","Новочеремховское","25608422"]
["Заларинский муниципальный район","Семеновское","25608425"]
["Заларинский муниципальный район","Троицкое","25608428"]
["Заларинский муниципальный район","Тыретское","25608155"]
["Заларинский муниципальный район","Ханжиновское","25608434"]
["Заларинский муниципальный район","Холмогойское","25608437"]
["Заларинский муниципальный район","Хор-Тагнинское","25608440"]
["Заларинский муниципальный район","Черемшанское","25608443"]
["Зиминский муниципальный район","Батаминское","25610402"]
["Зиминский муниципальный район","Буринское","25610403"]
["Зиминский муниципальный район","Зиминский муниципальный район","25610000"]
["Зиминский муниципальный район","Зулумайское","25610404"]
["Зиминский муниципальный район","Кимильтейское","25610407"]
["Зиминский муниципальный район","Масляногорское","25610413"]
["Зиминский муниципальный район","Новолетниковское","25610416"]
["Зиминский муниципальный район","Покровское","25610419"]
["Зиминский муниципальный район","Услонское","25610422"]
["Зиминский муниципальный район","Ухтуйское","25610425"]
["Зиминский муниципальный район","Филипповское","25610428"]
["Зиминский муниципальный район","Хазанское","25610431"]
["Зиминский муниципальный район","Харайгунское","25610435"]
["Зиминское городское муниципальное образование","Зиминское городское муниципальное образование","25720000"]
["Иркутский  муниципальный район","Большереченское","25612155"]
["Иркутский  муниципальный район","Голоустнинское","25612404"]
["Иркутский  муниципальный район","Гороховское","25612407"]
["Иркутский  муниципальный район","Дзержинское","25612438"]
["Иркутский  муниципальный район","Иркутский  муниципальный район","25612000"]
["Иркутский  муниципальный район","Карлукское","25612408"]
["Иркутский  муниципальный район","Листвянское","25612160"]
["Иркутский  муниципальный район","Максимовское","25612410"]
["Иркутский  муниципальный район","Мамонское","25612439"]
["Иркутский  муниципальный район","Марковское","25612163"]
["Иркутский  муниципальный район","Молодежное","25612440"]
["Иркутский  муниципальный район","Никольское","25612413"]
["Иркутский  муниципальный район","Оекское","25612416"]
["Иркутский  муниципальный район","Ревякинское","25612419"]
["Иркутский  муниципальный район","Смоленское","25612411"]
["Иркутский  муниципальный район","Сосновоборское","25612441"]
["Иркутский  муниципальный район","Уриковское","25612425"]
["Иркутский  муниципальный район","Усть-Балейское","25612428"]
["Иркутский  муниципальный район","Усть-Кудинское","25612442"]
["Иркутский  муниципальный район","Ушаковское","25612431"]
["Иркутский  муниципальный район","Хомутовское","25612434"]
["Иркутский  муниципальный район","Ширяевское","25612437"]
["Казачинско-Ленский муниципальный район","Казаченское","25614404"]
["Казачинско-Ленский муниципальный район","Казачинско-Ленский муниципальный район","25614000"]
["Казачинско-Ленский муниципальный район","Карамское","25614407"]
["Казачинско-Ленский муниципальный район","Ключевское","25614417"]
["Казачинско-Ленский муниципальный район","Кунерминское","25614153"]
["Казачинско-Ленский муниципальный район","Магистральнинское","25614154"]
["Казачинско-Ленский муниципальный район","Мартыновское","25614413"]
["Казачинско-Ленский муниципальный район","Небельское","25614418"]
["Казачинско-Ленский муниципальный район","Новоселовское","25614416"]
["Казачинско-Ленский муниципальный район","Тарасовское","25614419"]
["Казачинско-Ленский муниципальный район","Ульканское","25614158"]
["Катангский муниципальный район","Ербогаченское","25616404"]
["Катангский муниципальный район","Катангский муниципальный район","25616000"]
["Катангский муниципальный район","Непское","25616419"]
["Катангский муниципальный район","Подволошинское","25616425"]
["Катангский муниципальный район","Преображенское","25616428"]
["Качугский муниципальный район","Ангинское","25618402"]
["Качугский муниципальный район","Белоусовское","25618404"]
["Качугский муниципальный район","Бирюльское","25618407"]
["Качугский муниципальный район","Большетарельское","25618410"]
["Качугский муниципальный район","Бутаковское","25618413"]
["Качугский муниципальный район","Верхоленское","25618419"]
["Качугский муниципальный район","Вершино-Тутурское","25618416"]
["Качугский муниципальный район","Залогское","25618422"]
["Качугский муниципальный район","Зареченское","25618425"]
["Качугский муниципальный район","Карлукское","25618428"]
["Качугский муниципальный район","Качугский муниципальный район","25618000"]
["Качугский муниципальный район","Качугское городское поселение","25618151"]
["Качугский муниципальный район","Качугское сельское поселение","25618431"]
["Качугский муниципальный район","Манзурское","25618437"]
["Качугский муниципальный район","Харбатовское","25618443"]
["Киренский муниципальный район","Алексеевское","25620155"]
["Киренский муниципальный район","Алымовское","25620402"]
["Киренский муниципальный район","Бубновское","25620407"]
["Киренский муниципальный район","Визирнинское","25620410"]
["Киренский муниципальный район","Киренский муниципальный район","25620000"]
["Киренский муниципальный район","Киренское","25620101"]
["Киренский муниципальный район","Коршуновское","25620419"]
["Киренский муниципальный район","Криволукское","25620425"]
["Киренский муниципальный район","Макаровское","25620431"]
["Киренский муниципальный район","Мироновское","25620434"]
["Киренский муниципальный район","Небельское","25620435"]
["Киренский муниципальный район","Петропавловское","25620437"]
["Киренский муниципальный район","Юбилейнинское","25620453"]
["Куйтунский муниципальный район","Алкинское","25622404"]
["Куйтунский муниципальный район","Андрюшинское","25622410"]
["Куйтунский муниципальный район","Барлукское","25622413"]
["Куйтунский муниципальный район","Большекашелакское","25622416"]
["Куйтунский муниципальный район","Иркутское","25622425"]
["Куйтунский муниципальный район","Каразейское","25622428"]
["Куйтунский муниципальный район","Карымское","25622434"]
["Куйтунский муниципальный район","Куйтунский муниципальный район","25622000"]
["Куйтунский муниципальный район","Куйтунское","25622151"]
["Куйтунский муниципальный район","Кундуйское","25622436"]
["Куйтунский муниципальный район","Ленинское","25622438"]
["Куйтунский муниципальный район","Лермонтовское","25622440"]
["Куйтунский муниципальный район","Мингатуйское","25622443"]
["Куйтунский муниципальный район","Наратайское","25622446"]
["Куйтунский муниципальный район","Новотельбинское","25622447"]
["Куйтунский муниципальный район","Панагинское","25622462"]
["Куйтунский муниципальный район","Тулюшское","25622449"]
["Куйтунский муниципальный район","Усть-Кадинское","25622452"]
["Куйтунский муниципальный район","Уховское","25622454"]
["Куйтунский муниципальный район","Уянское","25622455"]
["Куйтунский муниципальный район","Харикское","25622458"]
["Куйтунский муниципальный район","Чеботарихинское","25622461"]
["Мамско-Чуйский муниципальный район","Витимское","25624155"]
["Мамско-Чуйский муниципальный район","Горно-Чуйское","25624160"]
["Мамско-Чуйский муниципальный район","Луговское","25624170"]
["Мамско-Чуйский муниципальный район","Мамско-Чуйский муниципальный район","25624000"]
["Мамско-Чуйский муниципальный район","Мамское","25624151"]
["Мамско-Чуйский муниципальный район","Согдиондонское","25624178"]
["Нижнеилимский муниципальный район","Березняковское","25626402"]
["Нижнеилимский муниципальный район","Брусничное","25626404"]
["Нижнеилимский муниципальный район","Видимское","25626155"]
["Нижнеилимский муниципальный район","Дальнинское","25626406"]
["Нижнеилимский муниципальный район","Железногорск-Илимское городское поселение","25626101"]
["Нижнеилимский муниципальный район","Заморское","25626408"]
["Нижнеилимский муниципальный район","Коршуновское","25626411"]
["Нижнеилимский муниципальный район","Нижнеилимский муниципальный район","25626000"]
["Нижнеилимский муниципальный район","Новоигирминское","25626160"]
["Нижнеилимский муниципальный район","Новоилимское","25626412"]
["Нижнеилимский муниципальный район","Радищевское","25626162"]
["Нижнеилимский муниципальный район","Речушинское","25626413"]
["Нижнеилимский муниципальный район","Рудногорское","25626163"]
["Нижнеилимский муниципальный район","Семигорское","25626418"]
["Нижнеилимский муниципальный район","Соцгородокское","25626420"]
["Нижнеилимский муниципальный район","Хребтовское","25626165"]
["Нижнеилимский муниципальный район","Шестаковское","25626170"]
["Нижнеилимский муниципальный район","Янгелевское","25626175"]
["Нижнеудинский муниципальный район","Алзамайcкое","25628105"]
["Нижнеудинский муниципальный район","Атагайское","25628155"]
["Нижнеудинский муниципальный район","Верхнегутарское","25628407"]
["Нижнеудинский муниципальный район","Замзорское","25628410"]
["Нижнеудинский муниципальный район","Заречное","25628411"]
["Нижнеудинский муниципальный район","Иргейское","25628413"]
["Нижнеудинский муниципальный район","Каменское","25628416"]
["Нижнеудинский муниципальный район","Катарбейское","25628419"]
["Нижнеудинский муниципальный район","Катарминское","25628422"]
["Нижнеудинский муниципальный район","Костинское","25628423"]
["Нижнеудинский муниципальный район","Нерхинское","25628424"]
["Нижнеудинский муниципальный район","Нижнеудинский муниципальный район","25628000"]
["Нижнеудинский муниципальный район","Нижнеудинское","25628101"]
["Нижнеудинский муниципальный район","Порогское","25628425"]
["Нижнеудинский муниципальный район","Солонецкое","25628428"]
["Нижнеудинский муниципальный район","Староалзамайское","25628402"]
["Нижнеудинский муниципальный район","Тофаларское","25628431"]
["Нижнеудинский муниципальный район","Уковское","25628160"]
["Нижнеудинский муниципальный район","Усть-Рубахинское","25628434"]
["Нижнеудинский муниципальный район","Худоеланское","25628437"]
["Нижнеудинский муниципальный район","Чеховское","25628440"]
["Нижнеудинский муниципальный район","Шебертинское","25628443"]
["Нижнеудинский муниципальный район","Широковское","25628446"]
["Нижнеудинский муниципальный район","Шумское","25628165"]
["Нукутский муниципальный район","Алтарик","25832402"]
["Нукутский муниципальный район","Закулей","25832404"]
["Нукутский муниципальный район","Новоленино","25832407"]
["Нукутский муниципальный район","Новонукутское","25832410"]
["Нукутский муниципальный район","Нукутский муниципальный район","25832000"]
["Нукутский муниципальный район","Нукуты","25832413"]
["Нукутский муниципальный район","Первомайское","25832416"]
["Нукутский муниципальный район","Хадахан","25832419"]
["Нукутский муниципальный район","Хареты","25832420"]
["Нукутский муниципальный район","Целинный","25832422"]
["Нукутский муниципальный район","Шаратское","25832427"]
["Ольхонский муниципальный район","Бугульдейское","25630402"]
["Ольхонский муниципальный район","Еланцынское","25630404"]
["Ольхонский муниципальный район","Куретское","25630410"]
["Ольхонский муниципальный район","Ольхонский муниципальный район","25630000"]
["Ольхонский муниципальный район","Онгуренское","25630407"]
["Ольхонский муниципальный район","Хужирское","25630155"]
["Ольхонский муниципальный район","Шара-Тоготское","25630413"]
["Осинский район","Бильчир","25833404"]
["Осинский район","Бурят-Янгуты","25833407"]
["Осинский район","Ирхидей","25833417"]
["Осинский район","Каха-Онгойское","25833422"]
["Осинский район","Майск","25833424"]
["Осинский район","Ново-Ленино","25833425"]
["Осинский район","Обуса","25833426"]
["Осинский район","Оса","25833412"]
["Осинский район","Осинский район","25833000"]
["Осинский район","Поселок Приморский","25833429"]
["Осинский район","Русские Янгуты","25833433"]
["Осинский район","Улейское","25833440"]
["Осинский район","Усть-Алтан","25833445"]
["Слюдянский муниципальный район","Байкальское","25634108"]
["Слюдянский муниципальный район","Быстринское","25634402"]
["Слюдянский муниципальный район","Култукское","25634162"]
["Слюдянский муниципальный район","Маритуйское","25634404"]
["Слюдянский муниципальный район","Новоснежнинское","25634408"]
["Слюдянский муниципальный район","Портбайкальское","25634155"]
["Слюдянский муниципальный район","Слюдянский муниципальный район","25634000"]
["Слюдянский муниципальный район","Слюдянское","25634101"]
["Слюдянский муниципальный район","Утуликское","25634407"]
["Тайшетский муниципальный район","Березовское","25636404"]
["Тайшетский муниципальный район","Бирюсинское","25636406"]
["Тайшетский муниципальный район","Бирюсинское городское поселение","25636105"]
["Тайшетский муниципальный район","Борисовское","25636408"]
["Тайшетский муниципальный район","Брусовское","25636462"]
["Тайшетский муниципальный район","Бузыкановское","25636410"]
["Тайшетский муниципальный район","Венгерское","25636440"]
["Тайшетский муниципальный район","Джогинское","25636413"]
["Тайшетский муниципальный район","Екунчетское","25636463"]
["Тайшетский муниципальный район","Еланское","25636415"]
["Тайшетский муниципальный район","Зареченское","25636417"]
["Тайшетский муниципальный район","Квитокское","25636155"]
["Тайшетский муниципальный район","Мирнинское","25636427"]
["Тайшетский муниципальный район","Нижнезаимское","25636431"]
["Тайшетский муниципальный район","Николаевское","25636428"]
["Тайшетский муниципальный район","Новобирюсинское","25636162"]
["Тайшетский муниципальный район","Полинчетское","25636422"]
["Тайшетский муниципальный район","Половино-Черемховское","25636434"]
["Тайшетский муниципальный район","Разгонское","25636465"]
["Тайшетский муниципальный район","Рождественское","25636437"]
["Тайшетский муниципальный район","Соляновское","25636443"]
["Тайшетский муниципальный район","Старо-Акульшетское","25636402"]
["Тайшетский муниципальный район","Тайшетский муниципальный район","25636000"]
["Тайшетский муниципальный район","Тайшетское городское поселение","25636101"]
["Тайшетский муниципальный район","Тальское","25636446"]
["Тайшетский муниципальный район","Тамтачетское","25636466"]
["Тайшетский муниципальный район","Тимирязевское","25636452"]
["Тайшетский муниципальный район","Черчетское","25636455"]
["Тайшетский муниципальный район","Шелаевское","25636458"]
["Тайшетский муниципальный район","Шелеховское","25636461"]
["Тайшетский муниципальный район","Шиткинское","25636174"]
["Тайшетский муниципальный район","Юртинское","25636156"]
["Тулунский муниципальный район","Азейское","25638401"]
["Тулунский муниципальный район","Алгатуйское","25638453"]
["Тулунский муниципальный район","Аршанское","25638454"]
["Тулунский муниципальный район","Афанасьевское","25638440"]
["Тулунский муниципальный район","Будаговское","25638404"]
["Тулунский муниципальный район","Бурхунское","25638407"]
["Тулунский муниципальный район","Владимирское","25638408"]
["Тулунский муниципальный район","Гадалейское","25638410"]
["Тулунский муниципальный район","Гуранское","25638416"]
["Тулунский муниципальный район","Евдокимовское","25638419"]
["Тулунский муниципальный район","Едогонское","25638422"]
["Тулунский муниципальный район","Икейское","25638425"]
["Тулунский муниципальный район","Ишидейское","25638413"]
["Тулунский муниципальный район","Кирейское","25638428"]
["Тулунский муниципальный район","Котикское","25638431"]
["Тулунский муниципальный район","Мугунское","25638437"]
["Тулунский муниципальный район","Нижнебурбукское","25638438"]
["Тулунский муниципальный район","Октябрьское","25638442"]
["Тулунский муниципальный район","Перфиловское","25638443"]
["Тулунский муниципальный район","Писаревское","25638445"]
["Тулунский муниципальный район","Сибирякское","25638444"]
["Тулунский муниципальный район","Тулунский муниципальный район","25638000"]
["Тулунский муниципальный район","Умыганское","25638446"]
["Тулунский муниципальный район","Усть-Кульское","25638449"]
["Тулунский муниципальный район","Шерагульское","25638452"]
["Усольский муниципальный район","Белореченское","25640153"]
["Усольский муниципальный район","Большееланское","25640404"]
["Усольский муниципальный район","Железнодорожное","25640407"]
["Усольский муниципальный район","Мальтинское","25640410"]
["Усольский муниципальный район","Мишелевское","25640155"]
["Усольский муниципальный район","Новожилкинское","25640412"]
["Усольский муниципальный район","Новомальтинское","25640414"]
["Усольский муниципальный район","Раздольинское","25640416"]
["Усольский муниципальный район","Сосновское","25640419"]
["Усольский муниципальный район","Среднинское","25640160"]
["Усольский муниципальный район","Тайтурское","25640162"]
["Усольский муниципальный район","Тальянское","25640422"]
["Усольский муниципальный район","Тельминское","25640173"]
["Усольский муниципальный район","Усольский муниципальный район","25640000"]
["Усть-Илимский муниципальный район","Бадарминское","25642401"]
["Усть-Илимский муниципальный район","Ершовское","25642403"]
["Усть-Илимский муниципальный район","Железнодорожное","25642155"]
["Усть-Илимский муниципальный район","Кеульское","25642402"]
["Усть-Илимский муниципальный район","Невонское","25642405"]
["Усть-Илимский муниципальный район","Подъеланское","25642404"]
["Усть-Илимский муниципальный район","Седановское","25642407"]
["Усть-Илимский муниципальный район","Тубинское","25642408"]
["Усть-Илимский муниципальный район","Усть-Илимский муниципальный район","25642000"]
["Усть-Илимский муниципальный район","Эдучанское","25642410"]
["Усть-Кутский муниципальный район","Верхнемарковское","25644410"]
["Усть-Кутский муниципальный район","Звезднинское","25644154"]
["Усть-Кутский муниципальный район","Нийское","25644413"]
["Усть-Кутский муниципальный район","Подымахинское","25644422"]
["Усть-Кутский муниципальный район","Ручейское","25644407"]
["Усть-Кутский муниципальный район","Усть-Кутский муниципальный район","25644000"]
["Усть-Кутский муниципальный район","Усть-Кутское городское поселение","25644101"]
["Усть-Кутский муниципальный район","Янтальское","25644160"]
["Усть-Удинский муниципальный район","Аносовское","25646402"]
["Усть-Удинский муниципальный район","Аталанское","25646404"]
["Усть-Удинский муниципальный район","Балаганкинское","25646407"]
["Усть-Удинский муниципальный район","Игжейское","25646413"]
["Усть-Удинский муниципальный район","Ключинское","25646447"]
["Усть-Удинский муниципальный район","Малышевское","25646422"]
["Усть-Удинский муниципальный район","Молькинское","25646425"]
["Усть-Удинский муниципальный район","Новоудинское","25646428"]
["Усть-Удинский муниципальный район","Подволоченское","25646431"]
["Усть-Удинский муниципальный район","Светлолобовское","25646434"]
["Усть-Удинский муниципальный район","Среднемуйское","25646437"]
["Усть-Удинский муниципальный район","Усть-Удинский муниципальный район","25646000"]
["Усть-Удинский муниципальный район","Усть-Удинское","25646151"]
["Усть-Удинский муниципальный район","Чичковское","25646448"]
["Усть-Удинский муниципальный район","Юголокское","25646446"]
["Черемховский муниципальный район","Алехинское","25648402"]
["Черемховский муниципальный район","Бельское","25648404"]
["Черемховский муниципальный район","Булайское","25648405"]
["Черемховский муниципальный район","Голуметское","25648407"]
["Черемховский муниципальный район","Зерновское","25648410"]
["Черемховский муниципальный район","Каменно-Ангарское","25648412"]
["Черемховский муниципальный район","Лоховское","25648428"]
["Черемховский муниципальный район","Михайловское","25648155"]
["Черемховский муниципальный район","Нижнеиретское","25648416"]
["Черемховский муниципальный район","Новогромовское","25648417"]
["Черемховский муниципальный район","Новостроевское","25648418"]
["Черемховский муниципальный район","Онотское","25648419"]
["Черемховский муниципальный район","Парфеновское","25648422"]
["Черемховский муниципальный район","Саянское","25648425"]
["Черемховский муниципальный район","Тальниковское","25648431"]
["Черемховский муниципальный район","Тунгусское","25648434"]
["Черемховский муниципальный район","Узколугское","25648437"]
["Черемховский муниципальный район","Черемховский муниципальный район","25648000"]
["Черемховский муниципальный район","Черемховское","25648443"]
["Чунский муниципальный район","Балтуринское","25650402"]
["Чунский муниципальный район","Бунбуйское","25650407"]
["Чунский муниципальный район","Веселовское","25650410"]
["Чунский муниципальный район","Каменское","25650414"]
["Чунский муниципальный район","Лесогорское","25650162"]
["Чунский муниципальный район","Мухинское","25650416"]
["Чунский муниципальный район","Новочунское","25650419"]
["Чунский муниципальный район","Октябрьское","25650165"]
["Чунский муниципальный район","Таргизское","25650422"]
["Чунский муниципальный район","Червянское","25650425"]
["Чунский муниципальный район","Чунский муниципальный район","25650000"]
["Чунский муниципальный район","Чунское","25650151"]
["Шелеховский муниципальный район","Баклашинское","25655402"]
["Шелеховский муниципальный район","Большелугское","25655153"]
["Шелеховский муниципальный район","Олхинское","25655407"]
["Шелеховский муниципальный район","Подкаменское","25655408"]
["Шелеховский муниципальный район","Шаманское","25655415"]
["Шелеховский муниципальный район","Шелеховский муниципальный район","25655000"]
["Шелеховский муниципальный район","город Шелехов","25655101"]
["Эхирит-Булагатский муниципальный район","Алужинское","25837401"]
["Эхирит-Булагатский муниципальный район","Ахинское","25837402"]
["Эхирит-Булагатский муниципальный район","Гаханское","25837413"]
["Эхирит-Булагатский муниципальный район","Захальское","25837416"]
["Эхирит-Булагатский муниципальный район","Капсальское","25837419"]
["Эхирит-Булагатский муниципальный район","Корсукское","25837420"]
["Эхирит-Булагатский муниципальный район","Кулункунское","25837422"]
["Эхирит-Булагатский муниципальный район","Ново-Николаевское","25837432"]
["Эхирит-Булагатский муниципальный район","Олойское","25837435"]
["Эхирит-Булагатский муниципальный район","Тугутуйское","25837442"]
["Эхирит-Булагатский муниципальный район","Усть-Ордынское","25837444"]
["Эхирит-Булагатский муниципальный район","Харазаргайское","25837447"]
["Эхирит-Булагатский муниципальный район","Харатское","25837448"]
["Эхирит-Булагатский муниципальный район","Эхирит-Булагатский муниципальный район","25837400"]

{"sheet":"modChange","index":20,"n_rows":0,"n_cols":0,"rows_kept":0,"cut":false,"hidden":true,"merged":[]}

{"sheet":"modPROV","index":21,"n_rows":0,"n_cols":0,"rows_kept":0,"cut":false,"hidden":true,"merged":[]}

{"sheet":"modTitleSheetHeaders","index":22,"n_rows":0,"n_cols":0,"rows_kept":0,"cut":false,"hidden":true,"merged":[]}

{"sheet":"modServiceModule","index":23,"n_rows":0,"n_cols":0,"rows_kept":0,"cut":false,"hidden":true,"merged":[]}

{"sheet":"modCommandButton","index":24,"n_rows":0,"n_cols":0,"rows_kept":0,"cut":false,"hidden":true,"merged":[]}

{"sheet":"modReestr","index":25,"n_rows":0,"n_cols":0,"rows_kept":0,"cut":false,"hidden":true,"merged":[]}

{"sheet":"modClassifierValidate","index":26,"n_rows":0,"n_cols":0,"rows_kept":0,"cut":false,"hidden":true,"merged":[]}

{"sheet":"modInfo","index":27,"n_rows":4,"n_cols":2,"rows_kept":4,"cut":false,"hidden":true,"merged":[]}
[]
[null,"Нажмите кнопку \"Выбрать организацию из списка\" для автоматического ввода реквизитов организации"]
[null,"Нет доступных обновлений, версия отчёта актуальна"]
[null,"Нажмите кнопку \"Обновить реестр МО\" если реестр не загружен или не актуален "]

{"sheet":"modfrmReestr","index":28,"n_rows":0,"n_cols":0,"rows_kept":0,"cut":false,"hidden":true,"merged":[]}

{"sheet":"modfrmDateChoose","index":29,"n_rows":0,"n_cols":0,"rows_kept":0,"cut":false,"hidden":true,"merged":[]}

{"sheet":"modDblClick","index":30,"n_rows":0,"n_cols":0,"rows_kept":0,"cut":false,"hidden":true,"merged":[]}

{"sheet":"Паспорт","index":31,"n_rows":71,"n_cols":57,"rows_kept":71,"cut":false,"hidden":true,"merged":[[42,8,42,10],[43,8,43,10],[41,8,41,10],[38,8,38,10],[39,8,39,10],[40,8,40,10],[52,8,52,10],[53,8,53,10],[44,8,44,10],[45,8,45,10],[50,8,50,10],[51,8,51,10],[48,8,48,10],[49,8,49,10],[46,8,46,10],[47,8,47,10],[3,3,3,10],[12,5,12,10],[13,5,13,10],[6,5,6,10],[7,5,7,10],[5,3,5,10],[8,5,8,10],[9,5,9,10],[10,5,10,10],[11,5,11,10],[14,6,14,9],[21,5,21,10],[17,3,17,10],[15,5,15,10],[18,5,18,10],[19,5,19,10],[20,5,20,10],[30,5,30,10],[31,7,31,10],[32,7,32,10],[22,5,22,10],[23,5,23,10],[29,3,29,10],[25,3,25,10],[26,5,26,10],[27,3,27,10],[33,3,33,10],[54,3,54,10],[62,5,62,10],[57,5,57,10],[58,5,58,10],[56,3,56,10],[36,8,36,10],[37,8,37,10],[59,5,59,10],[35,3,35,10],[64,3,64,10],[61,3,61,10],[63,5,63,10],[70,5,70,10],[69,5,69,10],[68,5,68,10],[67,5,67,10],[66,3,66,10]]}
[null,null,null,null,null,null,null,null,null,null,null,null,null,null,null,null,null,null,null,null,null,null,null,null,null,null,null,null,null,null,null,null,null,null,null,null,null,null,null,null,null,null,null,null,null,null,null,"Код диапазона:","Название диапазона:","Сфера регулирования:","Подсфера:","Тип информации в шаблоне:","Состояние шаблона:","Периодичность:","\"Геотип\" шаблона:","Тип шаблона:","Заказчик:"]
[null,null,null,null,null,null,null,null,null,null,null,null,null,null,null,null,null,null,null,null,null,null,null,null,null,null,null,null,null,null,null,null,null,null,null,null,null,null,null,null,null,null,null,null,null,null,null,"ps_sr","Сфера регулирования:","Не определено","Не определено","Не определено","Не определено","Не определено","Не определено","Не определено","Не определено"]
[null,null,null,null,null,null,null,null,null,null,null,null,null,null,null,null,null,null,null,null,null,null,null,null,null,null,null,null,null,null,null,null,null,null,null,null,null,null,null,null,null,null,null,null,null,null,null,"ps_ti","Тип информации в шаблоне:","NETS","водоотведение - очистка","Статистический","Проект","Единовременный","Региональный шаблон","Атомарный","РЭК"]
[null,null,null,"Паспорт к шаблону",null,null,null,null,null,null,null,null,null,null,null,null,null,null,null,null,null,null,null,null,null,null,null,null,null,null,null,null,null,null,null,null,null,null,null,null,null,null,null,null,null,null,null,"ps_ssh","Состояние шаблона:","Аэропорты","водоотведение - передача","Расчетный","Утвержден","Ежемесячный","Муниципальный шаблон","Сводный","ФСТ"]
[null,null,null,null,null,null,null,null,null,null,null,null,null,null,null,null,null,null,null,null,null,null,null,null,null,null,null,null,null,null,null,null,null,null,null,null,null,null,null,null,null,null,null,null,null,null,null,"ps_p","Периодичность:","Газ","водоотведение - прием","Обосновывающие материалы",null,"Ежеквартальный","Шаблон от организации",null,"Экспертная организация"]
[null,null,null,"1. Общие сведения",null,null,null,null,null,null,null,null,null,null,null,null,null,null,null,null,null,null,null,null,null,null,null,null,null,null,null,null,null,null,null,null,null,null,null,null,null,null,null,null,null,null,null,"ps_geo","\"Геотип\" шаблона:","Железные дороги","водоснабжение - очистка",null,null,"Ежегодный"]
[null,null,null,"1.1","Код",null,null,null,null,null,null,null,null,null,null,null,null,null,null,null,null,null,null,null,null,null,null,null,null,null,null,null,null,null,null,null,null,null,null,null,null,null,null,null,null,null,null,"ps_tsh","Тип шаблона:","ЖКХ","водоснабжение - передача"]
[null,null,null,"1.2","Краткое наименование",null,null,null,null,null,null,null,null,null,null,null,null,null,null,null,null,null,null,null,null,null,null,null,null,null,null,null,null,null,null,null,null,null,null,null,null,null,null,null,null,null,null,"ps_psr","Подсфера:","Медицина","водоснабжение - подъем"]
[null,null,null,"1.3","Полное наименование",null,null,null,null,null,null,null,null,null,null,null,null,null,null,null,null,null,null,null,null,null,null,null,null,null,null,null,null,null,null,null,null,null,null,null,null,null,null,null,null,null,null,"ps_z","Заказчик:","Порты","выработка ТС"]
[null,null,null,"1.4","Сфера регулирования ",null,null,null,null,null,null,null,null,null,null,null,null,null,null,null,null,null,null,null,null,null,null,null,null,null,null,null,null,null,null,null,null,null,null,null,null,null,null,null,null,null,null,null,null,"Связь","выработка ТС в режиме комбинированной выработки"]
[null,null,null,"1.5","Подсфера",null,null,null,null,null,null,null,null,null,null,null,null,null,null,null,null,null,null,null,null,null,null,null,null,null,null,null,null,null,null,null,null,null,null,null,null,null,null,null,null,null,null,null,null,"Транспорт","выработка электрической энергии"]
[null,null,null,"1.6","Состояние шаблона (Утвержден/Проект)",null,null,null,null,null,null,null,null,null,null,null,null,null,null,null,null,null,null,null,null,null,null,null,null,null,null,null,null,null,null,null,null,null,null,null,null,null,null,null,null,null,null,null,null,"Электроэнергетика","выработка+передача+сбыт ТС"]
[null,null,null,"1.7","Заказчик",null,null,null,null,null,null,null,null,null,null,null,null,null,null,null,null,null,null,null,null,null,null,null,null,null,null,null,null,null,null,null,null,null,null,null,null,null,null,null,null,null,null,null,null,null,"передача ТС"]
[null,null,null,"1.8","Отчитывается",null,null,null,null,null,null,null,null,null,null,null,null,null,null,null,null,null,null,null,null,null,null,null,null,null,null,null,null,null,null,null,null,null,null,null,null,null,null,null,null,null,null,null,null,null,"передача ЭЭ"]
[null,null,null,"1.9","Тип шаблона",null,"Если шаблон сводный, необходимо указать код атомарного шаблона для него:",null,null,null,null,null,null,null,null,null,null,null,null,null,null,null,null,null,null,null,null,null,null,null,null,null,null,null,null,null,null,null,null,null,null,null,null,null,null,null,null,null,null,null,"сбыт ТС"]
[null,null,null,"1.10","Текущая версия",null,null,null,null,null,null,null,null,null,null,null,null,null,null,null,null,null,null,null,null,null,null,null,null,null,null,null,null,null,null,null,null,null,null,null,null,null,null,null,null,null,null,null,null,null,"сбыт ЭЭ"]
[null,null,null,null,null,null,null,null,null,null,null,null,null,null,null,null,null,null,null,null,null,null,null,null,null,null,null,null,null,null,null,null,null,null,null,null,null,null,null,null,null,null,null,null,null,null,null,null,null,null,"ТБО"]
[null,null,null,"2. Организационные"]
[null,null,null,"2.1","Тип информации в шаблоне "]
[null,null,null,"2.2","Ответственный регулятор (от заказчика)"]
[null,null,null,"2.3","Ответственный специалист (от СМА)"]
[null,null,null,"2.4","Ответственный программист (от СМА)"]
[null,null,null,"2.5","Ответственные за сбор данных (от СМА)"]
[null,null,null,"2.6","Ответственные за сбор данных (от заказчика)"]
[]
[null,null,null,"3. Законодательство (методики, приказы, постановления ...)"]
[null,null,"first","3.1","Документ1"]
[null,null,"end","Добавить документ"]
[]
[null,null,null,"4. Периодичность"]
[null,null,null,"4.1","Периодичность"]
[null,null,null,null,"Мониторинги(прошедшие и плановые)","Дата начала","Дата окончания","Согласно (приказ, постановление, письмо)"]
[null,null,"first","4.2.1","Мониторинг1"]
[null,null,"end","Добавить мониторинг"]
[]
[null,null,null,"5. Состав шаблона"]
[null,null,null,null,"Лист","Последняя дата изменений эскиза","Состояние листа","Наименование витрины для листа","Комментарии"]
[null,null,"first","5.1.1"]
[null,null,"Удалить","5.1.2"]
[null,null,"Удалить","5.1.3"]
[null,null,"Удалить","5.1.4"]
[null,null,"Удалить","5.1.5"]
[null,null,"Удалить","5.1.6"]
[null,null,"Удалить","5.1.7"]
[null,null,"Удалить","5.1.8"]
[null,null,"Удалить","5.1.9"]
[null,null,"Удалить","5.1.10"]
[null,null,"Удалить","5.1.11"]
[null,null,"Удалить","5.1.12"]
[null,null,"Удалить","5.1.13"]
[null,null,"Удалить","5.1.14"]
[null,null,"Удалить","5.1.15"]
[null,null,"Удалить","5.1.16"]
[null,null,"Удалить","5.1.17"]
[null,null,"end","Добавить лист"]
[]
[null,null,null,"6. Сроки и даты"]
[null,null,null,"6.1.1","Даты получения последних эскизов, от экспертов"]
[null,null,null,"6.1.2","Даты отправки шаблона на проверку"]
[null,null,null,"6.1.3","Предполагаемый срок сдачи шаблона в эксплуатацию"]
[]
[null,null,null,"7. Версии"]
[null,null,null,null,"Версия","Отличия от предыдущей"]
[null,null,"first","7.1"]
[null,null,"end","Добавить версию"]
[]
[null,null,null,"8. Дополнительно"]
[null,null,null,"8.1","Аналогичные(\"похожие\") шаблоны"]
[null,null,null,"8.2","Особенности шаблона"]
[null,null,null,"8.3","Модуль на основе данного шаблона"]
[null,null,null,"8.4","Процедуры загрузки данных в витрины"]

{"sheet":"modRegionSelectSub","index":32,"n_rows":0,"n_cols":0,"rows_kept":0,"cut":false,"hidden":true,"merged":[]}

{"sheet":"modThisWorkbook","index":33,"n_rows":0,"n_cols":0,"rows_kept":0,"cut":false,"hidden":true,"merged":[]}

{"sheet":"modReestrMO","index":34,"n_rows":0,"n_cols":0,"rows_kept":0,"cut":false,"hidden":true,"merged":[]}

{"sheet":"modSheetMain01","index":35,"n_rows":0,"n_cols":0,"rows_kept":0,"cut":false,"hidden":true,"merged":[]}

{"sheet":"modSheetMain02","index":36,"n_rows":0,"n_cols":0,"rows_kept":0,"cut":false,"hidden":true,"merged":[]}

{"sheet":"modSheetMain03","index":37,"n_rows":0,"n_cols":0,"rows_kept":0,"cut":false,"hidden":true,"merged":[]}

{"sheet":"modSheetMain04","index":38,"n_rows":0,"n_cols":0,"rows_kept":0,"cut":false,"hidden":true,"merged":[]}

{"sheet":"modSheetMain05","index":39,"n_rows":0,"n_cols":0,"rows_kept":0,"cut":false,"hidden":true,"merged":[]}

{"sheet":"modSheetMain06","index":40,"n_rows":0,"n_cols":0,"rows_kept":0,"cut":false,"hidden":true,"merged":[]}

{"sheet":"modSheetMain07","index":41,"n_rows":0,"n_cols":0,"rows_kept":0,"cut":false,"hidden":true,"merged":[]}

{"sheet":"modSheetMain08","index":42,"n_rows":0,"n_cols":0,"rows_kept":0,"cut":false,"hidden":true,"merged":[]}

{"sheet":"modSheetMain09","index":43,"n_rows":0,"n_cols":0,"rows_kept":0,"cut":false,"hidden":true,"merged":[]}